{"text_format":"1","workbook":"xlsx","n_sheets":21,"sheets":["I.i II Ogólne i  Ident.","I.A WUM","II.A Wspólnik ","III działalność","IV.Opis operacji","A - Prosięta - rozwój","B - Mleko - rozwój","C - Opasy - rozwój","D - Pozostałe operacje","V.zestawienie RF","VI.Finans.","VII.Inf.zał.","VII.Inf.zał. NN","VIII. Ośw. Podmiotu","Zał 1 Ośw. współpos. gosp","Zał. 2 Oświad. właściciela","Zał 3 Ośw. współp. nier","Zał. 4 Opis Zadań","zał. 5 następca_nabywca","Zał 6 Ośw. następcy prawneg","Zał 7 Zgoda osoby WUM"],"not_rendered":{"charts":0,"images":0,"macros":1,"external_links":7,"defined_names":92,"comments":0,"pivot_tables":0},"unopened":[],"bounds":{"document_bytes":16777216,"sheet_cells":100000,"rows_first":2000,"rows_last":500,"rows_between":2000,"halvings":0,"cell_chars":16384,"cell_head_chars":4096},"cells_cut":0,"cells_raw":0,"read":"whole","date_system":"1900"}

{"sheet":"I.i II Ogólne i  Ident.","index":0,"n_rows":70,"n_cols":47,"rows_kept":70,"cut":false,"hidden":false,"merged":[[67,18,67,26],[67,27,67,36],[64,3,64,17],[65,3,65,17],[66,3,66,17],[67,3,67,17],[64,18,64,26],[64,27,64,36],[65,18,65,26],[65,27,65,36],[66,18,66,26],[66,27,66,36],[32,20,32,28],[29,11,29,36],[59,2,59,5],[60,2,60,5],[59,6,59,9],[46,2,46,6],[46,7,46,16],[46,17,46,26],[46,27,46,36],[47,2,47,6],[58,17,58,26],[58,27,58,36],[31,3,31,36],[48,2,48,7],[49,2,49,7],[49,8,49,12],[49,13,49,23],[57,2,57,6],[44,17,44,25],[39,23,39,30],[38,2,38,5],[38,7,38,20],[38,23,38,30],[45,2,45,8],[1,31,1,36],[11,13,12,34],[11,2,12,12],[0,1,1,25],[1,26,1,30],[2,1,5,25],[3,26,4,37],[6,1,6,25],[27,2,27,36],[68,2,68,37],[69,28,69,36],[5,26,6,37],[51,2,51,18],[54,2,54,36],[51,19,51,36],[50,19,50,36],[13,28,13,30],[13,32,13,34],[10,2,10,35],[22,2,22,28],[23,2,23,28],[7,1,7,37],[8,1,9,37],[24,2,24,34],[29,3,29,10],[32,2,32,19],[14,2,15,14],[14,15,15,36],[18,2,20,28],[19,29,19,36],[69,2,69,19],[56,2,56,8],[32,29,32,36],[70,2,70,19],[70,20,70,27],[70,28,70,36],[33,2,35,19],[33,29,33,36],[50,2,50,18],[43,2,43,36],[36,2,36,12],[36,23,36,31],[48,24,48,36],[56,26,56,36],[48,8,48,12],[48,13,48,23],[44,2,44,8],[44,9,44,16],[49,24,49,36],[34,20,34,36],[33,20,33,28],[55,2,55,8],[55,26,55,36],[57,27,57,36],[58,2,58,6],[58,7,58,16],[69,20,69,27],[45,9,45,16],[45,17,45,25],[47,7,47,16],[45,26,45,36],[44,26,44,36],[47,17,47,26],[47,27,47,36],[63,3,63,36],[60,27,60,36],[59,10,59,18],[60,10,60,18],[59,19,59,26],[60,6,60,9],[59,27,59,36],[55,9,55,16],[55,17,55,25],[56,17,56,25],[56,9,56,16],[57,7,57,16],[57,17,57,26],[60,19,60,26]]}
[null,"Agencja Restrukturyzacji i Modernizacji Rolnictwa"]
[null,null,null,null,null,null,null,null,null,null,null,null,null,null,null,null,null,null,null,null,null,null,null,null,null,null,"Symbol formularza",null,null,null,null,"W-1/4.1.3"]
[null,"WNIOSEK                                                                                                                                 o przyznanie pomocy na operacje typu „Modernizacja gospodarstw rolnych” w ramach poddziałania „Wsparcie inwestycji w gospodarstwach rolnych” objętego Programem Rozwoju Obszarów Wiejskich na lata 2014–2020 w obszarze:"]
[null,null,null,null,null,null,null,null,null,null,null,null,null,null,null,null,null,null,null,null,null,null,null,null,null,null,"Potwierdzenie przyjęcia przez Oddział Regionalny ARiMR\n/Biuro Powiatowe ARiMR/\n/pieczęć/"]
[]
[null,null,null,null,null,null,null,null,null,null,null,null,null,null,null,null,null,null,null,null,null,null,null,null,null,null,"...............................................\nData przyjęcia i podpis"]
[null,"(wybierz z listy obszar wsparcia)",null,null,null,null,null,null,null,null,null,null,null,null,null,null,null,null,null,null,null,null,null,null,null,null,null,null,null,null,null,null,null,null,null,null,null,null,null,null,null,null,null,null,"(wybierz z listy obszar wsparcia)"]
[null,".................................................................................................................................................................\nZnak sprawy",null,null,null,null,null,null,null,null,null,null,null,null,null,null,null,null,null,null,null,null,null,null,null,null,null,null,null,null,null,null,null,null,null,null,null,null,null,null,null,null,null,null,"rozwój produkcji prosiąt"]
[null,"W celu poprawnego wypełnienia wniosku podmiot ubiegający się o przyznanie pomocy powinien zapoznać się z instrukcją jego wypełniania",null,null,null,null,null,null,null,null,null,null,null,null,null,null,null,null,null,null,null,null,null,null,null,null,null,null,null,null,null,null,null,null,null,null,null,null,null,null,null,null,null,null,"rozwój produkcji mleka krowiego"]
[null,null,null,null,null,null,null,null,null,null,null,null,null,null,null,null,null,null,null,null,null,null,null,null,null,null,null,null,null,null,null,null,null,null,null,null,null,null,null,null,null,null,null,null,"rozwój produkcji bydła mięsnego"]
[null,null,null,null,null,null,null,null,null,null,null,null,null,null,null,null,null,null,null,null,null,null,null,null,null,null,null,null,null,null,null,null,null,null,null,null,null,null,null,null,null,null,null,null,"związanym z racjonalizacją technologii produkcji, wprowadzeniem innowacji, zmianą profilu produkcji, zwiększeniem skali produkcji, poprawą jakości produkcji lub zwiększeniem wartości dodanej produktu"]
[null,null,"I. CZĘŚĆ OGÓLNA"]
[]
[]
[null,null,"1.1. CEL ZŁOŻENIA:",null,null,null,null,null,null,null,null,null,null,null,null,"(wybierz z listy)",null,null,null,null,null,null,null,null,null,null,null,null,null,null,null,null,null,null,null,null,null,null,null,null,null,null,null,null,null,null,"(wybierz z listy)"]
[null,null,null,null,null,null,null,null,null,null,null,null,null,null,null,null,null,null,null,null,null,null,null,null,null,null,null,null,null,null,null,null,null,null,null,null,null,null,null,null,null,null,null,null,null,null,"złożenie wniosku"]
[null,null,null,null,null,null,null,null,null,null,null,null,null,null,null,null,null,null,null,null,null,null,null,null,null,null,null,null,null,null,null,null,null,null,null,null,null,null,null,null,null,null,null,null,null,null,"zmiana wniosku"]
[null,null,null,null,null,null,null,null,null,null,null,null,null,null,null,null,null,null,null,null,null,null,null,null,null,null,null,null,null,null,null,null,null,null,null,null,null,null,null,null,null,null,null,null,null,null,"korekta wniosku"]
[null,null," 1.2. WNIOSEK SKŁADANY JEST PRZEZ OSOBY WSPÓLNIE WNIOSKUJĄCE",null,null,null,null,null,null,null,null,null,null,null,null,null,null,null,null,null,null,null,null,null,null,null,null,null,null,null,null,null,null,null,null,null,null,null,null,null,null,null,null,null,"(wybierz z listy)",null,"wycofanie wniosku"]
[null,null,null,null,null,null,null,null,null,null,null,null,null,null,null,null,null,null,null,null,null,null,null,null,null,null,null,null,null,"(wybierz z listy)",null,null,null,null,null,null,null,null,null,null,null,null,null,null,"TAK",null,"złożenie wniosku następcy prawnego Beneficjenta"]
[null,null,null,null,null,null,null,null,null,null,null,null,null,null,null,null,null,null,null,null,null,null,null,null,null,null,null,null,null,null,null,null,null,null,null,null,null,null,null,null,null,null,null,null,"NIE",null,"złożenie wniosku nabywcy o przyznanie pomocy"]
[]
[]
[null,null,"II. DANE PODMIOTU UBIEGAJĄCEGO SIĘ O PRZYZNANIE POMOCY "]
[null,null,"1. Numer identyfikacyjny ",null,null,null,null,null,null,null,null,null,null,null,null,null,null,null,null,null,null,null,null,null,null,null,null,null,null,null,null,null,null,null,null,null,null,null,null,null,null,null,null,null,"(wybierz z listy)"]
[null,null,"1.1.1",null,null,null,null,null,null,null,null,null,null,null,null,null,"1.2.",null,null,null,null,null,null,null,null,null,null,null,null,null,null,null,null,null,null,null,null,null,null,null,null,null,null,null,"OSOBA FIZYCZNA"]
[null,null,null,null,null,null,null,null,null,null,null,null,null,null,null,null,null,null,null,null,null,null,null,null,null,null,null,null,null,null,null,null,null,null,null,null,null,null,null,null,null,null,null,null,"OSOBA PRAWNA"]
[null,null,"1Uwaga: W pozycji 1.1 należy wpisać numer identyfikacyjny podmiotu ubiegającego się o przyznanie pomocy albo numer identyfikacyjny:\n1)  jego współmałżonka, jeżeli wyraził zgodę na nadanie mu tego numeru – w przypadku osoby fizycznej;\n2)  spółki cywilnej, której jest wspólnikiem – w przypadku wspólnika spółki cywilnej.\n\nW przypadku niewypełnienia pozycji 1.1 Numer identyfikacyjny, jeżeli nie dołączono wniosku o wpis do ewidencji producentów, o której mowa w przepisach o krajowym systemie ewidencji producentów, ewidencji gospodarstw rolnych oraz ewidencji wniosków o przyznanie płatności, albo jego kopii, Agencja pozostawia wniosek bez rozpatrzenia, bez uprzedniego wezwania do usunięcia braków, z zastrzeżeniem sytuacji gdy numer ten można ustalić w ewidencji producentów.\n",null,null,null,null,null,null,null,null,null,null,null,null,null,null,null,null,null,null,null,null,null,null,null,null,null,null,null,null,null,null,null,null,null,null,null,null,null,null,null,null,null,"SPÓŁKA OSOBOWA W ROZUMIENIU KODEKSU SPÓŁEK HANDLOWYCH"]
[null,null,null,null,null,null,null,null,null,null,null,null,null,null,null,null,null,null,null,null,null,null,null,null,null,null,null,null,null,null,null,null,null,null,null,null,null,null,null,null,null,null,null,null,"WSPÓLNICY SPÓŁKI CYWILNEJ"]
[null,null,"2.","Rodzaj podmiotu ubiegającego się o przyznanie pomocy",null,null,null,null,null,null,null,"(wybierz z listy)"]
[]
[null,null,"3.","Dane podmiotu ubiegającego się o przyznanie pomocy"]
[null,null,"3.1. Nazwisko/Nazwa: ",null,null,null,null,null,null,null,null,null,null,null,null,null,null,null,null,null,"3.2. Pierwsze imię",null,null,null,null,null,null,null,null,"3.3. Drugie Imię"]
[]
[null,null,null,null,null,null,null,null,null,null,null,null,null,null,null,null,null,null,null,null,"3.4. PESEL/data urodzenia"]
[]
[null,null,"3.5. NIP",null,null,null,null,null,null,null,null,null,null,"3.6 REGON",null,null,null,null,null,null,null,null,null,"3.7. NR KRS",null,null,null,null,null,null,null,null,null,null,null,null,null,null,null,null,null,null,null,null,null,null,"(wybierz z listy)"]
[null,null,null,null,null,null,null,null,null,null,null,null,null,null,null,null,null,null,null,null,null,null," ",null,null,null,null,null,null,null,null,null,null,null,null,null,null,null,null,null,null,null,null,null,null,null,"KOBIETA "]
[null,null,"3.8. Kod kraju",null,null,null,null,"3.9. Numer paszportu lub innego dokumentu tożsamości ",null,null,null,null,null,null,null,null,null,null,null,null,null,null,null,"3.10. Płeć:",null,null,null,null,null,null,null,null,null,null,null,null,null,null,null,null,null,null,null,null,null,null,"MĘŻCZYZNA "]
[null,null,null,null,null,null,null,null,null,null,null,null,null,null,null,null,null,null,null,null,null,null,null,"(wybierz z listy)"]
[]
[]
[]
[null,null,"4. Adres podmiotu ubiegającego się o przyznanie pomocy (miejsce zamieszkania osoby fizycznej lub siedziba w przypadku pozostałych podmiotów)"]
[null,null,"4.1. Kraj",null,null,null,null,null,null,"4.2. Województwo",null,null,null,null,null,null,null,"4.3. Powiat",null,null,null,null,null,null,null,null,"4.4. Gmina"]
[]
[null,null,"4.5. Kod pocztowy",null,null,null,null,"4.6. Poczta",null,null,null,null,null,null,null,null,null,"4.7. Miejscowość",null,null,null,null,null,null,null,null,null,"4.8 Ulica"]
[]
[null,null,"4.9. Nr domu",null,null,null,null,null,"4.10. Nr lokalu",null,null,null,null,"4.11. Telefon stacjonarny/ komórkowy",null,null,null,null,null,null,null,null,null,null,"4.12. Faks"]
[]
[null,null,"4.13. E-mail",null,null,null,null,null,null,null,null,null,null,null,null,null,null,null,null,"4.14. Adres www"]
[]
[]
[]
[null,null,"5. Adres do korespondencji (wypełnić, jeśli jest inny niż w pkt 4 lub ustanowiono pełnomocnika)"]
[null,null,"5.1. Kraj",null,null,null,null,null,null,"5.2. Województwo",null,null,null,null,null,null,null,"5.3. Powiat",null,null,null,null,null,null,null,null,"5.4. Gmina"]
[]
[null,null,"5.5. Kod pocztowy",null,null,null,null,"5.6. Poczta",null,null,null,null,null,null,null,null,null,"5.7. Miejscowość",null,null,null,null,null,null,null,null,null,"5.8 Ulica"]
[]
[null,null,"5.9. Nr domu",null,null,null,"5.10. Nr lokalu",null,null,null,"5.11.Telefon stacjonarny/komórkowy",null,null,null,null,null,null,null,null,"5.12. Faks",null,null,null,null,null,null,null,"5.13. E-mail"]
[]
[]
[]
[null,null,"6.","Dane osób upoważnionych do reprezentowania podmiotu ubiegającego się o przyznanie pomocy (dotyczy podmiotów niebędących osobą fizyczną)"]
[null,null,"Lp.","Nazwisko/ Nazwa",null,null,null,null,null,null,null,null,null,null,null,null,null,null,"Pierwsze imię",null,null,null,null,null,null,null,null," PESEL"]
[null,null,"6.1."]
[null,null,"6.2."]
[null,null,"6.3."]
[null,null,"7. Dane pełnomocnika podmiotu ubiegającego się o przyznanie pomocy"]
[null,null,"7.1. Nazwisko/Nazwa: ",null,null,null,null,null,null,null,null,null,null,null,null,null,null,null,null,null,"7.2. Pierwsze imię",null,null,null,null,null,null,null,"7.3 PESEL"]

{"sheet":"I.A WUM","index":1,"n_rows":85,"n_cols":50,"rows_kept":85,"cut":false,"hidden":false,"merged":[[7,42,8,43],[50,4,50,20],[49,4,49,20],[48,4,48,20],[50,32,50,37],[58,38,58,43],[57,21,57,24],[49,25,49,26],[51,21,51,24],[55,25,55,26],[51,4,51,20],[57,30,57,31],[57,32,57,37],[58,4,58,20],[58,30,58,31],[58,32,58,37],[55,21,55,24],[58,27,58,29],[57,38,57,43],[48,38,48,43],[49,32,49,37],[50,38,50,43],[49,38,49,43],[48,32,48,37],[26,21,26,24],[43,4,43,20],[39,21,39,24],[38,21,38,24],[35,21,35,24],[36,21,36,24],[42,4,42,20],[41,2,41,43],[31,25,31,26],[34,4,34,20],[42,38,42,43],[30,4,30,20],[31,4,31,20],[42,2,51,3],[42,25,42,26],[51,32,51,37],[51,38,51,43],[33,2,38,3],[29,21,29,24],[40,38,40,43],[46,32,46,37],[46,38,46,43],[47,25,47,26],[47,32,47,37],[81,2,81,35],[80,2,80,35],[77,2,79,35],[68,2,69,35],[61,27,61,31],[62,2,62,15],[62,21,62,26],[62,27,62,31],[62,32,62,37],[61,21,61,24],[67,36,70,43],[63,32,63,37],[61,25,61,26],[61,32,61,37],[61,38,61,43],[63,38,63,43],[62,38,62,43],[64,32,64,37],[64,38,64,43],[64,2,64,31],[63,2,63,31],[61,2,61,20],[59,27,59,29],[59,30,59,31],[59,32,59,37],[59,38,59,43],[39,2,39,20],[40,2,40,20],[60,25,60,26],[60,27,60,29],[58,25,58,26],[59,25,59,26],[60,30,60,31],[60,32,60,37],[60,38,60,43],[60,21,60,24],[59,21,59,24],[58,21,58,24],[57,4,57,20],[60,2,60,20],[59,2,59,20],[56,2,56,43],[55,2,55,20],[57,2,58,3],[57,25,57,26],[57,27,57,29],[22,3,22,43],[25,2,25,43],[23,2,23,20],[23,21,23,26],[39,25,39,26],[55,27,55,31],[27,21,27,24],[55,32,55,37],[55,38,55,43],[31,21,31,24],[28,21,28,24],[35,4,35,20],[30,21,30,24],[37,21,37,24],[34,21,34,24],[32,2,32,43],[37,38,37,43],[34,32,34,37],[34,38,34,43],[29,25,29,26],[26,4,26,20],[27,4,27,20],[28,4,28,20],[29,4,29,20],[47,38,47,43],[43,32,43,37],[43,38,43,43],[44,32,44,37],[42,32,42,37],[46,25,46,26],[44,25,44,26],[47,4,47,20],[46,4,46,20],[45,4,45,20],[44,4,44,20],[45,38,45,43],[44,38,44,43],[45,25,45,26],[45,32,45,37],[47,21,47,24],[46,21,46,24],[44,21,44,24],[45,21,45,24],[42,21,42,24],[40,21,40,24],[33,21,33,24],[40,25,40,26],[40,27,40,29],[40,30,40,31],[42,27,51,31],[49,21,49,24],[48,25,48,26],[43,25,43,26],[43,21,43,24],[50,25,50,26],[50,21,50,24],[51,25,51,26],[48,21,48,24],[33,4,33,20],[37,25,37,26],[36,4,36,20],[33,25,33,26],[33,27,33,29],[33,30,33,31],[33,32,33,37],[40,32,40,37],[39,30,39,31],[39,32,39,37],[36,27,36,29],[36,30,36,31],[36,32,36,37],[37,27,37,29],[37,30,37,31],[39,27,39,29],[36,25,36,26],[38,27,38,29],[38,30,38,31],[38,25,38,26],[35,25,35,26],[37,4,37,20],[38,4,38,20],[37,32,37,37],[38,32,38,37],[38,38,38,43],[39,38,39,43],[36,38,36,43],[35,27,35,29],[35,30,35,31],[35,32,35,37],[35,38,35,43],[30,25,30,26],[30,27,30,29],[30,30,30,31],[34,25,34,26],[34,27,34,29],[34,30,34,31],[30,38,30,43],[31,27,31,29],[31,30,31,31],[31,32,31,37],[31,38,31,43],[30,32,30,37],[33,38,33,43],[27,38,27,43],[28,25,28,26],[28,27,28,29],[28,30,28,31],[28,32,28,37],[28,38,28,43],[27,25,27,26],[29,27,29,29],[29,30,29,31],[29,32,29,37],[29,38,29,43],[15,28,17,29],[18,34,20,35],[83,2,83,35],[84,2,84,35],[83,36,83,43],[84,36,84,43],[72,36,75,43],[77,36,79,43],[80,36,80,43],[81,36,81,43],[82,36,82,43],[82,2,82,35],[23,27,23,31],[23,32,23,37],[23,38,23,43],[26,2,31,3],[26,25,26,26],[26,27,26,29],[26,30,26,31],[26,32,26,37],[26,38,26,43],[27,27,27,29],[27,30,27,31],[27,32,27,37],[15,38,17,39],[18,38,20,39],[8,32,8,33],[9,32,11,33],[12,32,14,33],[8,34,8,35],[9,34,11,35],[12,34,14,35],[12,38,14,39],[18,36,20,37],[12,36,14,37],[9,36,11,37],[9,16,11,21],[12,2,14,2],[3,28,3,30],[3,32,3,34],[4,29,4,33],[8,28,8,29],[8,30,8,31],[8,38,8,39],[12,40,14,41],[12,16,14,21],[12,28,14,29],[12,30,14,31],[9,28,11,29],[7,28,7,41],[18,28,20,29],[18,30,20,31],[15,2,17,2],[18,16,20,21],[15,30,17,31],[15,36,17,37],[15,16,17,21],[18,40,20,41],[4,3,4,25],[6,3,6,36],[7,16,8,21],[16,23,16,26],[19,23,19,26],[15,32,17,33],[18,32,20,33],[15,34,17,35],[7,2,8,2],[7,13,7,15],[8,13,8,15],[9,30,11,31],[10,23,10,26],[13,23,13,26],[7,22,8,27],[9,2,11,2],[0,19,0,43],[0,1,0,18],[2,2,2,43],[73,2,74,35],[24,27,24,31],[24,32,24,37],[24,38,24,43],[24,21,24,26],[24,2,24,20],[9,42,11,43],[12,42,14,43],[15,42,17,43],[18,42,20,43],[7,3,8,12],[9,3,11,12],[12,3,14,12],[15,3,17,12],[18,3,20,12],[8,36,8,37],[8,40,8,41],[9,40,11,41],[9,38,11,39],[18,2,20,2],[15,40,17,41]]}
[null,"Podmiot (Imię i Nazwisko/Nazwa):",null,null,null,null,null,null,null,null,null,null,null,null,null,null,null,null,null,{"$f":"'I.i II Ogólne i  Ident.'!U34&'I.i II Ogólne i  Ident.'!W38&'I.i II Ogólne i  Ident.'!AD34&'I.i II Ogólne i  Ident.'!W38&'I.i II Ogólne i  Ident.'!C34","v":"  "}]
[]
[null,null,"I.A INFORMACJE PODAWANE W PRZYPADKU WNIOSKU O PRZYZNANIE POMOCY SKŁADANEGO PRZEZ OSOBY WSPÓLNIE WNIOSKUJĄCE - (wypełnia tylko osoba wiodąca) "]
[]
[null," ","1. ","Liczba osób wspólnie wnioskujących:"]
[]
[null,null,"2.","W skład grupy osób wspólnie wnioskujących wchodzą:"]
[null,null,"Lp","Dane osób wspólnie wnioskujących",null,null,null,null,null,null,null,null,null,"Osoba wiodąca",null,null,"Numer identyfikacyjny producenta",null,null,null,null,null,"Wielkość ekonomiczna gospodarstwa pow. 10000 EURO",null,null,null,null,null,"zakres prac w odniesieniu do każdego przedmiotu operacji (w %)",null,null,null,null,null,null,null,null,null,null,null,null,null,"średnia arytme-tyczna"]
[null,null,null,null,null,null,null,null,null,null,null,null,null,"TAK",null,null,null,null,null,null,null,null,null,null,null,null,null,null,1,null,2,null,3,null,4,null,5,null,6,null,7]
[null,null,1]
[null,null,null,null,null,null,null,null,null,null,null,null,null,null,null,null,null,null,null,null,null,null,null,"(wybierz z listy)"]
[null,null,null,null,null,null,null,null,null,null,null,null,null,null,null,null,null,null,null,null,null,null,null,null,null,null,null,null,null,null,null,null,null,null,null,null,null,null,null,null,null,null,null,null,null,null,null,null,null,"(wybierz z listy)"]
[null,null,2,null,null,null,null,null,null,null,null,null,null,null,null,null,null,null,null,null,null,null,null,null,null,null,null,null,null,null,null,null,null,null,null,null,null,null,null,null,null,null,null,null,null,null,null,null,null,"TAK"]
[null,null,null,null,null,null,null,null,null,null,null,null,null,null,null,null,null,null,null,null,null,null,null,"(wybierz z listy)",null,null,null,null,null,null,null,null,null,null,null,null,null,null,null,null,null,null,null,null,null,null,null,null,null,"NIE"]
[]
[null,null,3]
[null,null,null,null,null,null,null,null,null,null,null,null,null,null,null,null,null,null,null,null,null,null,null,"(wybierz z listy)"]
[]
[null,null,"(…)"]
[null,null,null,null,null,null,null,null,null,null,null,null,null,null,null,null,null,null,null,null,null,null,null,"(wybierz z listy)"]
[]
[]
[null,null,"3.","PLANOWANE KOSZTY REALIZACJI OPERACJI -  łącznie dla osób wspólnie wnioskujących"]
[null,null,"Rodzaje kosztów",null,null,null,null,null,null,null,null,null,null,null,null,null,null,null,null,null,null,"Ilość ",null,null,null,null,null,"Powie-rzchnia/\nObjętość",null,null,null,null,"Całkowity koszt operacji\n(w zł z VAT)",null,null,null,null,null,"Koszty kwalifikowalne operacji\n(w zł bez VAT)"]
[null,null,1,null,null,null,null,null,null,null,null,null,null,null,null,null,null,null,null,null,null,2,null,null,null,null,null,3,null,null,null,null,4,null,null,null,null,null,5]
[null,null,"Planowane do wybudowania budynki produkcyjne"]
[null,null,"w tym:",null,"obory",null,null,null,null,null,null,null,null,null,null,null,null,null,null,null,null,null,null,null,null,"szt",null,null,null,null,"m2"]
[null,null,null,null,"chlewnie",null,null,null,null,null,null,null,null,null,null,null,null,null,null,null,null,null,null,null,null,"szt",null,null,null,null,"m2"]
[null,null,null,null,"inne budynki przeznaczone na inwentarz żywy",null,null,null,null,null,null,null,null,null,null,null,null,null,null,null,null,null,null,null,null,"szt",null,null,null,null,"m2"]
[null,null,null,null,"szklarnie",null,null,null,null,null,null,null,null,null,null,null,null,null,null,null,null,null,null,null,null,"szt",null,null,null,null,"m2"]
[null,null,null,null,"magazyny paszowe",null,null,null,null,null,null,null,null,null,null,null,null,null,null,null,null,null,null,null,null,"szt",null,null,null,null,"m2"]
[null,null,null,null,"pozostałe budynki gospodarcze",null,null,null,null,null,null,null,null,null,null,null,null,null,null,null,null,null,null,null,null,"szt",null,null,null,null,"m2"]
[null,null,"Planowane do modernizacji budynki produkcyjne"]
[null,null,"w tym:",null,"obory",null,null,null,null,null,null,null,null,null,null,null,null,null,null,null,null,null,null,null,null,"szt",null,null,null,null,"m2"]
[null,null,null,null,"chlewnie",null,null,null,null,null,null,null,null,null,null,null,null,null,null,null,null,null,null,null,null,"szt",null,null,null,null,"m2"]
[null,null,null,null,"inne budynki przeznaczone na inwentarz żywy",null,null,null,null,null,null,null,null,null,null,null,null,null,null,null,null,null,null,null,null,"szt",null,null,null,null,"m2"]
[null,null,null,null,"szklarnie",null,null,null,null,null,null,null,null,null,null,null,null,null,null,null,null,null,null,null,null,"szt",null,null,null,null,"m2"]
[null,null,null,null,"magazyny paszowe",null,null,null,null,null,null,null,null,null,null,null,null,null,null,null,null,null,null,null,null,"szt",null,null,null,null,"m2"]
[null,null,null,null,"pozostałe budynki gospodarcze",null,null,null,null,null,null,null,null,null,null,null,null,null,null,null,null,null,null,null,null,"szt",null,null,null,null,"m2"]
[null,null,"Płyty obornikowe",null,null,null,null,null,null,null,null,null,null,null,null,null,null,null,null,null,null,null,null,null,null,"szt",null,null,null,null,"m2"]
[null,null,"Zbiorniki na gnojówkę i gnojowicę",null,null,null,null,null,null,null,null,null,null,null,null,null,null,null,null,null,null,null,null,null,null,"szt",null,null,null,null,"m3"]
[null,null,"Planowane do zakupienia sprzęty ruchome"]
[null,null,"w tym:",null,"ciągniki rolnicze",null,null,null,null,null,null,null,null,null,null,null,null,null,null,null,null,null,null,null,null,"szt"]
[null,null,null,null,"ładowarki samobieżne",null,null,null,null,null,null,null,null,null,null,null,null,null,null,null,null,null,null,null,null,"szt"]
[null,null,null,null,"kombajny zbożowe",null,null,null,null,null,null,null,null,null,null,null,null,null,null,null,null,null,null,null,null,"szt"]
[null,null,null,null,"maszyny do zbioru (z wyłączeniem kombajnów zbożowych) ",null,null,null,null,null,null,null,null,null,null,null,null,null,null,null,null,null,null,null,null,"szt"]
[null,null,null,null,"przyczepy transportowe",null,null,null,null,null,null,null,null,null,null,null,null,null,null,null,null,null,null,null,null,"szt"]
[null,null,null,null,"narzędzia i maszyny do uprawy gleby",null,null,null,null,null,null,null,null,null,null,null,null,null,null,null,null,null,null,null,null,"szt"]
[null,null,null,null,"maszyny do nawożenia",null,null,null,null,null,null,null,null,null,null,null,null,null,null,null,null,null,null,null,null,"szt"]
[null,null,null,null,"maszyny i urządzenia do siewu i sadzenia",null,null,null,null,null,null,null,null,null,null,null,null,null,null,null,null,null,null,null,null,"szt"]
[null,null,null,null,"pozostałe maszyny i urządzenia",null,null,null,null,null,null,null,null,null,null,null,null,null,null,null,null,null,null,null,null,"szt"]
[null,null,null,null,"elementy wyposażenia, elementy maszyn, narzędzi, wyposażenie dodatkowe",null,null,null,null,null,null,null,null,null,null,null,null,null,null,null,null,null,null,null,null,"szt"]
[]
[]
[]
[null,null,"Planowany do zakupu sprzęt komputerowy",null,null,null,null,null,null,null,null,null,null,null,null,null,null,null,null,null,null,null,null,null,null,"szt"]
[null,null,"Elementy infrastruktury technicznej"]
[null,null,"w tym:",null,"place manewrowe",null,null,null,null,null,null,null,null,null,null,null,null,null,null,null,null,null,null,null,null,"szt",null,null,null,null,"m2"]
[null,null,null,null,"drogi dojazdowe",null,null,null,null,null,null,null,null,null,null,null,null,null,null,null,null,null,null,null,null,"szt",null,null,null,null,"mb"]
[null,null,"Planowane do założenia sady lub plantacje krzewów owocowych, gatunków owocujących efektywnie dłużej niż 5 lat",null,null,null,null,null,null,null,null,null,null,null,null,null,null,null,null,null,null,null,null,null,null,"szt",null,null,null,null,"ha"]
[null,null,"Planowane do wybudowania lub zmodernizowania obiekty służące produkcji i sprzedaży bezpośredniej w gospodarstwach rolnych",null,null,null,null,null,null,null,null,null,null,null,null,null,null,null,null,null,null,null,null,null,null,"szt",null,null,null,null,"m2"]
[null,null,"Pozostałe inwestycje",null,null,null,null,null,null,null,null,null,null,null,null,null,null,null,null,null,null,null,null,null,null,"szt"]
[null,null,"Koszty ogólne"]
[null,null,"Koszty niekwalifikowalne"]
[null,null,"Suma kosztów",null,null,null,null,null,null,null,null,null,null,null,null,null,null,null,null,null,null,null,null,null,null,null,null,null,null,null,null,null,{"$f":"SUM(AG27:AL32)+SUM(AG34:AL41)+SUM(AG43:AL52)+AG56+SUM(AG58:AL64)","v":0},null,null,null,null,null,{"$f":"SUM(AM27:AR32)+SUM(AM34:AR41)+SUM(AM43:AR52)+AM56+SUM(AM58:AR63)","v":0}]
[]
[]
[]
[null,null,"4. Limit pomocy dla osób wspólnie wnioskujących (w zł):"]
[]
[]
[]
[]
[null,null,"5.  Kwota do wykorzystania przez osoby wspólnie wnioskujące (w zł):"]
[]
[]
[]
[null,null,"6. WNIOSKOWANA KWOTA POMOCY ŁĄCZNIE przez osoby wspólnie wnioskujące\n(suma pkt 6.1. - 6.5.) w tym:",null,null,null,null,null,null,null,null,null,null,null,null,null,null,null,null,null,null,null,null,null,null,null,null,null,null,null,null,null,null,null,null,null,{"$f":"SUM(AK81:AR85)","v":0}]
[]
[]
[null,null,"6.1. Wnioskowana kwota pomocy łącznie dla I etapu operacji"]
[null,null,"6.2. Wnioskowana kwota pomocy łącznie dla II etapu operacji"]
[null,null,"6.3. Wnioskowana kwota pomocy łącznie dla III etapu operacji"]
[null,null,"6.4. Wnioskowana kwota pomocy łącznie dla IV etapu operacji"]
[null,null,"6.5. Wnioskowana kwota pomocy łącznie dla V etapu operacji"]

{"sheet":"II.A Wspólnik ","index":2,"n_rows":55,"n_cols":42,"rows_kept":55,"cut":false,"hidden":false,"merged":[[1,1,1,11],[1,12,1,35],[40,8,40,12],[40,13,40,23],[38,2,38,6],[38,7,38,16],[38,17,38,26],[40,2,40,7],[45,26,45,35],[45,2,45,8],[44,26,44,35],[41,2,41,18],[41,19,41,35],[42,2,42,18],[42,19,42,35],[43,2,43,35],[45,9,45,16],[45,17,45,25],[40,24,40,35],[32,23,32,30],[17,5,17,35],[36,26,36,35],[39,2,39,7],[39,8,39,12],[19,5,19,6],[19,7,19,35],[34,2,34,35],[29,2,29,12],[29,23,29,31],[25,2,25,19],[25,28,25,35],[22,3,22,10],[22,12,22,35],[26,2,28,19],[26,20,26,27],[25,20,25,27],[26,28,26,35],[31,2,31,5],[2,2,2,3],[2,4,2,33],[12,1,12,2],[12,3,12,34],[8,2,8,11],[4,15,4,26],[15,5,15,35],[11,29,11,34],[11,3,11,27],[13,5,13,35],[11,1,11,2],[4,28,4,35],[4,5,4,12],[50,3,50,34],[46,27,46,35],[44,2,44,8],[46,17,46,26],[49,2,49,5],[48,6,48,9],[49,6,49,9],[48,10,48,19],[49,10,49,19],[47,27,47,35],[47,2,47,6],[47,7,47,16],[48,2,48,5],[48,20,48,27],[47,17,47,26],[49,20,49,27],[48,28,48,35],[49,28,49,35],[35,26,35,35],[35,2,35,8],[35,9,35,16],[35,17,35,25],[31,7,31,20],[31,23,31,30],[27,20,27,30],[46,2,46,6],[46,7,46,16],[44,9,44,16],[44,17,44,25],[39,13,39,23],[36,2,36,8],[36,9,36,16],[36,17,36,25],[37,27,37,35],[38,27,38,35],[39,24,39,35],[37,2,37,6],[37,7,37,16],[37,17,37,26],[52,16,52,26],[51,27,51,35],[52,27,52,35],[55,2,55,19],[55,20,55,27],[55,28,55,35],[53,2,53,36],[54,28,54,35],[54,2,54,19],[54,20,54,27],[52,3,52,15],[51,3,51,15],[51,16,51,26]]}
[]
[null,"Podmiot (Imię i Nazwisko/Nazwa):",null,null,null,null,null,null,null,null,null,null,{"$f":"'I.i II Ogólne i  Ident.'!U34&'I.i II Ogólne i  Ident.'!W38&'I.i II Ogólne i  Ident.'!AD34&'I.i II Ogólne i  Ident.'!W38&'I.i II Ogólne i  Ident.'!C34","v":"  "}]
[null,null,"II.A. ",null,"DANE"]
[]
[null,null,null,null,null,"WSPÓŁPOSIADACZA",null,null,null,null,null,null,null,null,null,"WSPÓLNIKA SPÓŁKI CYWILNEJ ",null,null,null,null,null,null,null,null,null,null,null,null,"WSPÓŁMAŁŻONKA"]
[]
[]
[]
[null,null,"1. NUMER IDENTYFIKACYJNY:",null,null,null,null,null,null,null,null,null,"1.1.",null,null,null,null,null,null,null,null,null,null,null,"1.2.",null,null,null,null,null,null,null,null,null,null,null,null,null,null,"(wybierz z listy)"]
[null,null,null,null,null,null,null,null,null,null,null,null,null,null,null,null,null,null,null,null,null,null,null,null,null,null,null,null,null,null,null,null,null,null,null,null,null,null,null,"TAK"]
[null,null,null,null,null,null,null,null,null,null,null,null,null,null,null,null,null,null,null,null,null,null,null,null,null,null,null,null,null,null,null,null,null,null,null,null,null,null,null,"NIE"]
[null,"1.3. ",null,"Wpisany numer jest numerem nadanym osobie, której dane zawarto poniżej",null,null,null,null,null,null,null,null,null,null,null,null,null,null,null,null,null,null,null,null,null,null,null,null,null,"(wybierz z listy)"]
[null,"1.4. ",null,"Rodzaj powiązania podmiotu ubiegającego się o przyznanie pomocy z posiadaczem numeru:"]
[null,null,null,null,null,"podmiot ubiegający się o przyznanie pomocy jest współposiadaczem gospodarstwa rolnego",null,null,null,null,null,null,null,null,null,null,null,null,null,null,null,null,null,null,null,null,null,null,null,null,null,null,null,null,null,null,null,null,null,"X"]
[]
[null,null,null,null,null,"podmiot ubiegający się o przyznanie pomocy jest małżonkiem współposiadacza gospodarstwa "]
[null,null,null,null,null,null,null,null,null,null,null,null,null,null,null,null,null,null,null,null,null,null,null,null,null,null,null,null,null,null,null,null,null,null,null,null,null,null,null,"(wybierz z listy)"]
[null,null,null,null,null,"podmiot ubiegający się o przyznanie pomocy jest małżonkiem posiadacza numeru identyfikacyjnego",null,null,null,null,null,null,null,null,null,null,null,null,null,null,null,null,null,null,null,null,null,null,null,null,null,null,null,null,null,null,null,null,null,"OSOBA FIZYCZNA"]
[null,null,null,null,null,null,null,null,null,null,null,null,null,null,null,null,null,null,null,null,null,null,null,null,null,null,null,null,null,null,null,null,null,null,null,null,null,null,null,"OSOBA PRAWNA"]
[null,null,null,null,null,"inne: ",null,null,null,null,null,null,null,null,null,null,null,null,null,null,null,null,null,null,null,null,null,null,null,null,null,null,null,null,null,null,null,null,null,"SPÓŁKA OSOBOWA W ROZUMIENIU KOSEKSU SPÓŁEK HANDLOWYCH"]
[null,null,null,null,null,null,null,null,null,null,null,null,null,null,null,null,null,null,null,null,null,null,null,null,null,null,null,null,null,null,null,null,null,null,null,null,null,null,null,"WSPÓLNICY SPÓŁKI CYWILNEJ"]
[]
[null,null,"2.","Rodzaj podmiotu:",null,null,null,null,null,null,null,null,"(wybierz z listy)"]
[null,null,null,null,null,null,null,null,null,null,null,null,null,null,null,null,null,null,null,null,null,null,null,null,null,null,null,null,null,null,null,null,null,null,null,null,null,null,null,null,null,"(wybierz z listy)"]
[null,null,"3.","Dane identyfikacyjne:",null,null,null,null,null,null,null,null,null,null,null,null,null,null,null,null,null,null,null,null,null,null,null,null,null,null,null,null,null,null,null,null,null,null,null,null,null,"KOBIETA "]
[null,null,"3.1. Nazwisko/Nazwa: ",null,null,null,null,null,null,null,null,null,null,null,null,null,null,null,null,null,"3.2. Pierwsze imię",null,null,null,null,null,null,null,"3.3. Drugie Imię",null,null,null,null,null,null,null,null,null,null,null,null,"MĘŻCZYZNA "]
[]
[null,null,null,null,null,null,null,null,null,null,null,null,null,null,null,null,null,null,null,null,"3.4. PESEL/data urodzenia"]
[]
[null,null,"3.5. NIP",null,null,null,null,null,null,null,null,null,null,"3.6 REGON",null,null,null,null,null,null,null,null,null,"3.7. KRS"]
[]
[null,null,"3.8. Kod kraju",null,null,null,null,"3.9. Numer paszportu lub innego dokumentu tożsamości ",null,null,null,null,null,null,null,null,null,null,null,null,null,null,null,"3.10. Płeć:"]
[null,null,null,null,null,null,null,null,null,null,null,null,null,null,null,null,null,null,null,null,null,null,null,"(wybierz z listy)"]
[]
[null,null,"4. Adres  (zamieszkania osoby fizycznej lub siedziby w przypadku pozostałych form prawnych)"]
[null,null,"4.1. Kraj",null,null,null,null,null,null,"4.2. Województwo",null,null,null,null,null,null,null,"4.3. Powiat",null,null,null,null,null,null,null,null,"4.4. Gmina"]
[]
[null,null,"4.5. Kod pocztowy",null,null,null,null,"4.6. Poczta",null,null,null,null,null,null,null,null,null,"4.7. Miejscowość",null,null,null,null,null,null,null,null,null,"4.8 Ulica"]
[]
[null,null,"4.9. Nr domu",null,null,null,null,null,"4.10. Nr lokalu",null,null,null,null,"4.11. Telefon stacjonarny/ komórkowy",null,null,null,null,null,null,null,null,null,null,"4.12. Faks"]
[]
[null,null,"4.13. E-mail",null,null,null,null,null,null,null,null,null,null,null,null,null,null,null,null,"4.14. Adres www"]
[]
[null,null,"5. Adres do korespondencji"]
[null,null,"5.1. Kraj",null,null,null,null,null,null,"5.2. Województwo",null,null,null,null,null,null,null,"5.3. Powiat",null,null,null,null,null,null,null,null,"5.4. Gmina"]
[]
[null,null,"5.5. Kod pocztowy",null,null,null,null,"5.6. Poczta",null,null,null,null,null,null,null,null,null,"5.7. Miejscowość",null,null,null,null,null,null,null,null,null,"5.8 Ulica"]
[]
[null,null,"5.9. Nr domu",null,null,null,"5.10. Nr lokalu",null,null,null,"5.11. Telefon stacjonarny/ komórkowy",null,null,null,null,null,null,null,null,null,"5.12. Faks",null,null,null,null,null,null,null,"5.13. E-mail"]
[]
[null,null,"6.","Dane osób upoważnionych do reprezentowania"]
[null,null,"Lp.","Nazwisko/Nazwa",null,null,null,null,null,null,null,null,null,null,null,null,"Pierwsze imię",null,null,null,null,null,null,null,null,null,null,"PESEL"]
[null,null,"6.1"]
[null,null,"7. Dane pełnomocnika "]
[null,null,"7.1. Nazwisko/Nazwa: ",null,null,null,null,null,null,null,null,null,null,null,null,null,null,null,null,null,"7.2. Pierwsze imię",null,null,null,null,null,null,null,"7.3. PESEL"]

{"sheet":"III działalność","index":3,"n_rows":67,"n_cols":48,"rows_kept":67,"cut":false,"hidden":false,"merged":[[1,2,1,9],[64,4,64,36],[22,4,25,26],[22,28,25,35],[27,30,27,32],[27,34,27,36],[42,28,42,35],[62,4,62,25],[29,28,29,37],[54,4,55,29],[54,30,54,35],[58,4,60,35],[28,4,28,25],[28,28,28,35],[42,4,43,26],[3,2,3,36],[5,2,5,3],[5,4,5,35],[6,4,10,26],[7,2,7,3],[8,28,8,35],[9,2,9,3],[38,4,40,35],[35,4,36,26],[13,2,14,3],[13,4,14,26],[13,29,14,29],[13,30,14,30],[13,31,14,31],[13,32,14,32],[18,2,20,3],[18,4,20,29],[31,2,31,3],[31,4,31,27],[31,28,31,35],[22,2,25,2],[28,2,28,3],[1,10,1,36],[54,2,54,3],[56,2,56,3],[56,4,56,36],[47,28,47,35],[33,2,33,3],[33,4,33,28],[33,30,33,32],[33,34,33,36],[34,28,34,30],[34,32,34,34],[35,2,35,3],[35,28,35,35],[42,2,42,3],[15,4,15,29],[38,2,38,3],[57,2,59,3],[45,2,45,3],[45,4,46,27],[47,2,47,3],[47,4,48,26],[49,2,49,3],[49,4,51,35]]}
[]
[null,null,"Podmiot (Imię i Nazwisko/Nazwa):",null,null,null,null,null,null,null,{"$f":"'I.i II Ogólne i  Ident.'!U34&'I.i II Ogólne i  Ident.'!W38&'I.i II Ogólne i  Ident.'!AD34&'I.i II Ogólne i  Ident.'!W38&'I.i II Ogólne i  Ident.'!C34","v":"  "}]
[]
[null,null,"III. CHARAKTERYSTYKA PROWADZONEJ DZIAŁALNOŚCI I PODMIOTU UBIEGAJĄCEGO SIĘ O PRZYZNANIE POMOCY"]
[]
[null,null,"1.",null,"Informacje dotyczące gospodarstwa"]
[null,null,null,null,"Gospodarstwo stanowi współwłasność (w tym jest przedmiotem małżeńskiej wspólności ustawowej lub umownej wspólności majątkowej) lub jest przedmiotem współposiadania2"]
[null,null,"1.1",null,null,null,null,null,null,null,null,null,null,null,null,null,null,null,null,null,null,null,null,null,null,null,null,null,null,null,null,null,null,null,null,null,null,null,null,null,null,"(wybierz z listy)"]
[null,null,null,null,null,null,null,null,null,null,null,null,null,null,null,null,null,null,null,null,null,null,null,null,null,null,null,null,"(wybierz z listy)",null,null,null,null,null,null,null,null,null,null,null,null,"TAK"]
[null,null,null,null,null,null,null,null,null,null,null,null,null,null,null,null,null,null,null,null,null,null,null,null,null,null,null,null,null,null,null,null,null,null,null,null,null,null,null,null,null,"NIE"]
[]
[]
[]
[null,null,"1.2.",null,"Liczba współwłaścicieli lub współposiadaczy gospodarstwa"]
[]
[]
[]
[]
[null,null,"1.3.",null,"Liczba współposiadaczy w odniesieniu do nieruchomości, będących przedmiotem współposiadania, wchodzących w skład gospodarstwa podmiotu ubiegającego się o przyznanie pomocy"]
[]
[]
[null,null,null,null,null,null,null,null,null,null,null,null,null,null,null,null,null,null,null,null,null,null,null,null,null,null,null,null,null,null,null,null,null,null,null,null,null,null,null,null,null,"(wybierz z listy)"]
[null,null,"1.4",null,"Siedziba gospodarstwa położona jest na obszarze o niekorzystnych warunkach gospodarowania (ONW)",null,null,null,null,null,null,null,null,null,null,null,null,null,null,null,null,null,null,null,null,null,null,null,"(wybierz z listy)",null,null,null,null,null,null,null,null,null,null,null,null,"nie dotyczy"]
[null,null,null,null,null,null,null,null,null,null,null,null,null,null,null,null,null,null,null,null,null,null,null,null,null,null,null,null,null,null,null,null,null,null,null,null,null,null,null,null,null,"obszar górski"]
[null,null,null,null,null,null,null,null,null,null,null,null,null,null,null,null,null,null,null,null,null,null,null,null,null,null,null,null,null,null,null,null,null,null,null,null,null,null,null,null,null,"obszar ze specyficznymi utrudnieniami"]
[null,null,null,null,null,null,null,null,null,null,null,null,null,null,null,null,null,null,null,null,null,null,null,null,null,null,null,null,null,null,null,null,null,null,null,null,null,null,null,null,null,"obszar nizinny (I lub II strefa)"]
[]
[]
[null,null,"1.5",null,"Działy specjalne produkcji rolnej",null,null,null,null,null,null,null,null,null,null,null,null,null,null,null,null,null,null,null,null,null,null,null,"(wybierz z listy)"]
[null,null,null,null,null,null,null,null,null,null,null,null,null,null,null,null,null,null,null,null,null,null,null,null,null,null,null,null,null,null,null,null,null,null,null,null,null,null,","]
[]
[null,null,"1.6",null,"Gospodarstwo, którego dotyczy operacja, jest gospodarstwem ekologicznym",null,null,null,null,null,null,null,null,null,null,null,null,null,null,null,null,null,null,null,null,null,null,null,"(wybierz z listy)"]
[]
[null,null,"2.",null,"Podmiot ubiegający się o przyznanie pomocy: "]
[]
[null,null,"2.1",null,"korzystał ze wsparcia w ramach PROW 2007-2013 (jeśli TAK, wymienić poniżej kod działania):",null,null,null,null,null,null,null,null,null,null,null,null,null,null,null,null,null,null,null,null,null,null,null,"(wybierz z listy)"]
[]
[]
[null,null,"2.1.1"]
[]
[]
[]
[null,null,"2.2.",null,"ubiega się o pomoc lub przyznano mu pomoc finansową w ramach typu operacji \"RESTRUKTURYZACJA MAŁYCH GOSPODARSTW\" w ramach poddziałania \"POMOC NA ROZPOCZĘCIE DZIAŁALNOŚCI GOSPODARCZEJ NA RZECZ ROZWOJU MAŁYCH GOSPODARSTW\" PROW 2014-2020",null,null,null,null,null,null,null,null,null,null,null,null,null,null,null,null,null,null,null,null,null,null,null,"(wybierz z listy)"]
[]
[]
[null,null,"3.3.",null,"działania …. PROW 2014-2020"]
[]
[null,null,"2.3.",null,"korzystał ze wsparcia innego niż wymienione w pkt 2.2 w ramach któregokolwiek z działań PROW 2014-2020 (jeśli TAK wymienić poniżej kod działania/ poddziałania/ typu operacji):",null,null,null,null,null,null,null,null,null,null,null,null,null,null,null,null,null,null,null,null,null,null,null,"(wybierz z listy)"]
[]
[null,null,"2.3.1"]
[]
[]
[]
[]
[null,null,"3.",null,"Podmiot ubiegający się o przyznanie pomocy jest młodym rolnikiem w rozumieniu § 4 ust. 6 pkt 3 rozporządzenia Ministra Rolnictwa i Rozwoju Wsi z dnia 21 sierpnia 2015 r. w sprawie szczegółowych warunków i trybu przyznawania oraz wypłaty pomocy finansowej na operacje typu „Modernizacja gospodarstw rolnych” w ramach poddziałania „Wsparcie inwestycji w gospodarstwach rolnych” objętego PROW na lata 2014–2020 (Dz.U. poz. 1371), zwanego dalej rozporządzeniem",null,null,null,null,null,null,null,null,null,null,null,null,null,null,null,null,null,null,null,null,null,null,null,null,null,"(wybierz z listy)"]
[]
[null,null,"3.1.",null,"Kwalifikacje zawodowe podmiotu ubiegającego się o przyznanie pomocy, będącego młodym rolnikiem\n w rozumieniu § 4 ust. 6 pkt 3 rozporządzenia"]
[]
[null,null,null,null,"(wybierz z listy)"]
[]
[null,null,null,null,null,null,null,null,null,null,null,null,null,null,null,null,null,null,null,null,null,null,null,null,null,null,null,null,null,null,null,null,null,null,null,null,null,null,null,null,null,null,null,null,null,null,null,"(wybierz z listy)"]
[null,null,null,null,null,null,null,null,null,null,null,null,null,null,null,null,null,null,null,null,null,null,null,null,null,null,null,null,null,null,null,null,null,null,null,null,null,null,null,null,null,null,null,null,null,null,null,"stopień naukowy doktora lub ukończone studia trzeciego stopnia z dziedziny nauk rolniczych lub z dziedziny nauk weterynaryjnych"]
[null,null,"3.2",null,"Data rozpoczęcia prowadzenia gospodarstwa jako kierujący",null,null,null,null,null,null,null,null,null,null,null,null,null,null,null,null,null,null,null,null,null,null,null,"-",null,null,"-",null,null,null,null,null,null,null,null,null,null,null,null,null,null,null,"ukończone studia pierwszego stopnia lub studia drugiego stopnia lub jednolite studia magisterskie, lub studia magisterskie na kierunku: rolnictwo, ogrodnictwo, weterynaria - w przypadku gdy w gospodarstwie są prowadzone chów lub hodowla zwierząt, technika rolnicza i leśna, zootechnika lub na kierunkach studiów, w ramach których zakres kształcenia albo standardy kształcenia obejmują treści związane z działalnością rolniczą, w wymiarze łącznym co najmniej 200 godzin lub co najmniej 30 punktów uzyskanych w ramach Europejskiego Systemu Transferu i Akumulacji Punktów Zaliczonych (European Credit Transfer System),"]
[null,null,null,null,null,null,null,null,null,null,null,null,null,null,null,null,null,null,null,null,null,null,null,null,null,null,null,null,null,null,null,null,null,null,null,null,null,null,null,null,null,null,null,null,null,null,null,"ukończone studia pierwszego stopnia lub studia drugiego stopnia, lub jednolite studia magisterskie, lub studia magisterskie na kierunku innym niż wymienione w pkt 5.1.2, oraz co najmniej 3-letni staż pracy w rolnictwie lub ukończone studia podyplomowe w zakresie związanym z działalnością rolniczą,"]
[null,null,null,null,"2 W przypadku, gdy w polu 1.1 wybrano TAK, dane każdego ze współposiadaczy (w tym małżonka, jeśli dotyczy) należy umieścić w części wniosku II.A. Dane współposiadacza/ wspólnika spółki cywilnej/współmałżonka.",null,null,null,null,null,null,null,null,null,null,null,null,null,null,null,null,null,null,null,null,null,null,null,null,null,null,null,null,null,null,null,null,null,null,null,null,null,null,null,null,null,null,"kwalifikacje w zawodzie rolniczym na poziomie kwalifikacji technika rolnika, ogrodnika, architektury krajobrazu, hodowcy koni, pszczelarza, weterynarii - w przypadku gdy w gospodarstwie są prowadzone chów lub hodowla zwierząt, agrobiznesu, mechanizacji rolnictwa, turystyki wiejskiej, lub kwalifikacje w zawodzie rolniczym na poziomie zasadniczej szkoły zawodowej: rolnik, ogrodnik, pszczelarz, mechanik operator pojazdów i maszyn rolniczych,"]
[null,null,null,null,null,null,null,null,null,null,null,null,null,null,null,null,null,null,null,null,null,null,null,null,null,null,null,null,null,null,null,null,null,null,null,null,null,null,null,null,null,null,null,null,null,null,null,"tytuł wykwalifikowanego robotnika lub tytuł mistrza, lub tytuł zawodowy lub tytuł zawodowy mistrza, w zawodzie: rolnik, ogrodnik, pszczelarz, mechanik operator pojazdów i maszyn rolniczych, uzyskany w formach pozaszkolnych oraz co najmniej 3-letni staż pracy w rolnictwie,"]
[null,null,null,null,null,null,null,null,null,null,null,null,null,null,null,null,null,null,null,null,null,null,null,null,null,null,null,null,null,null,null,null,null,null,null,null,null,null,null,null,null,null,null,null,null,null,null,"wykształcenie średnie oraz co najmniej 4-letni staż pracy w rolnictwie."]

{"sheet":"IV.Opis operacji","index":4,"n_rows":70,"n_cols":50,"rows_kept":70,"cut":false,"hidden":false,"merged":[[69,2,69,34],[73,2,74,28],[76,2,77,28],[79,2,80,28],[82,2,84,28],[64,1,65,1],[64,2,65,28],[64,30,64,32],[64,34,64,36],[65,29,65,36],[66,1,67,1],[66,2,67,28],[66,30,66,32],[66,34,66,36],[67,29,67,36],[62,2,62,3],[62,4,62,17],[62,18,62,22],[62,23,62,29],[62,30,62,36],[63,2,63,3],[63,4,63,17],[63,18,63,22],[63,23,63,29],[63,30,63,36],[59,2,61,3],[59,4,61,17],[59,18,61,22],[59,23,60,36],[61,23,61,29],[61,30,61,36],[54,2,54,36],[55,1,57,1],[55,2,57,27],[55,31,55,33],[55,34,55,36],[56,29,56,36],[49,2,49,6],[49,7,49,16],[49,17,49,26],[49,27,49,36],[51,2,51,36],[53,2,53,36],[47,2,47,14],[47,15,47,20],[47,21,47,25],[47,26,47,36],[48,2,48,6],[48,7,48,16],[48,17,48,26],[48,27,48,36],[45,2,45,14],[45,15,45,25],[45,26,45,36],[46,2,46,14],[46,15,46,20],[46,21,46,25],[46,26,46,36],[39,30,39,32],[39,34,39,36],[40,2,40,27],[40,29,40,36],[42,2,42,36],[44,2,44,14],[44,15,44,25],[44,26,44,36],[33,1,35,1],[33,2,35,28],[33,30,33,32],[33,34,33,36],[34,29,34,36],[36,1,37,1],[36,30,36,32],[36,34,36,36],[37,2,37,27],[37,29,37,36],[28,2,28,34],[29,2,29,21],[30,1,32,1],[30,2,32,28],[30,30,30,32],[30,34,30,36],[31,29,31,36],[20,2,20,36],[22,2,22,36],[22,47,22,81],[24,2,24,36],[25,19,26,25],[25,29,26,35],[26,2,27,17],[27,19,27,25],[27,29,27,35],[15,2,17,3],[15,4,17,17],[15,25,17,36],[16,18,16,23],[18,2,19,3],[18,4,19,17],[18,25,19,36],[19,18,19,23],[8,2,8,36],[10,1,11,1],[10,2,11,24],[12,2,14,3],[12,4,14,17],[12,25,14,36],[13,18,13,23],[1,1,1,9],[1,10,1,36],[2,1,2,37],[3,2,3,12],[5,2,5,36],[6,2,6,36]]}
[]
[null,"Podmiot (Imię i Nazwisko/Nazwa):",null,null,null,null,null,null,null,null,{"$f":"'I.i II Ogólne i  Ident.'!U34&'I.i II Ogólne i  Ident.'!W38&'I.i II Ogólne i  Ident.'!AD34&'I.i II Ogólne i  Ident.'!W38&'I.i II Ogólne i  Ident.'!C34","v":"  "}]
[]
[null,null,"IV. OPIS PLANOWANEJ OPERACJI"]
[]
[null,"1.","Zgodność operacji z celami Programu Rozwoju Obszarów Wiejskich na lata 2014-2020, zwanego dalej Programem"]
[null,"1.1. ","Cel szczegółowy"]
[]
[null,null,"Poprawa wyników gospodarczych wszystkich gospodarstw oraz ułatwianie restrukturyzacji i modernizacji gospodarstw, szczególnie z myślą o zwiększeniu uczestnictwa w rynku i zorientowania na rynek, a także zróżnicowania produkcji rolnej (2A)",null,null,null,null,null,null,null,null,null,null,null,null,null,null,null,null,null,null,null,null,null,null,null,null,null,null,null,null,null,null,null,null,null,null,null,null,null,"(wybierz z listy)"]
[null,null,null,null,null,null,null,null,null,null,null,null,null,null,null,null,null,null,null,null,null,null,null,null,null,null,null,null,null,null,null,null,null,null,null,null,null,null,null,null,"Poprawa wyników gospodarczych wszystkich gospodarstw rolnych i ułatwianie restrukturyzacji i modernizacji gospodarstw rolnych, szczególnie z myślą o zwiększeniu uczestnictwa w rynku i zorientowania na rynek oraz zróżnicowania produkcji rolnej (2A)"]
[null,"1.2. ","Zgodność operacji z celami przekrojowymi Programu"]
[]
[null,null,"1.2.1. ",null,"Innowacyjność"]
[null,null,null,null,null,null,null,null,null,null,null,null,null,null,null,null,null,null,"(wybierz z listy)",null,null,null,null,null,null,null,null,null,null,null,null,null,null,null,null,null,null,null,null,null,"(wybierz z listy)"]
[null,null,null,null,null,null,null,null,null,null,null,null,null,null,null,null,null,null,null,null,null,null,null,null,null,null,null,null,null,null,null,null,null,null,null,null,null,null,null,null,"TAK"]
[null,null,"1.2.2.",null,"Środowisko ",null,null,null,null,null,null,null,null,null,null,null,null,null,null,null,null,null,null,null,null,null,null,null,null,null,null,null,null,null,null,null,null,null,null,null,"NIE"]
[null,null,null,null,null,null,null,null,null,null,null,null,null,null,null,null,null,null,"(wybierz z listy)"]
[]
[null,null,"1.2.3.",null,"Klimat"]
[null,null,null,null,null,null,null,null,null,null,null,null,null,null,null,null,null,null,"(wybierz z listy)"]
[null,"1.3","Cel operacji"]
[]
[null,null,{"$f":"AX25","v":"Cel operacji wpisywany automatycznie po wybraniu obszaru wsparcia na stronie tytułowej."},null,null,null,null,null,null,null,null,null,null,null,null,null,null,null,null,null,null,null,null,null,null,null,null,null,null,null,null,null,null,null,null,null,null,null,null,null,"(wybierz z listy)"]
[]
[null,"2.","Realizacja operacji przyczyni się do poprawy ogólnych wyników gospodarstwa, tj. ma na celu poprawę konkurencyjności i zwiększenie rentowności gospodarstwa oraz doprowadzi do wzrostu wartości dodanej brutto w gospodarstwie (GVA), co najmniej o 10% w odniesieniu do roku w którym przypada dzień rozpoczęcia terminu składania wniosków o przyznanie pomocy, w którym został złożony dany wniosek, w okresie 5 lat od dnia przyznania pomocy.",null,null,null,null,null,null,null,null,null,null,null,null,null,null,null,null,null,null,null,null,null,null,null,null,null,null,null,null,null,null,null,null,null,null,null,null,null,null,null,null,null,null,null,null,null,null,{"$f":"IF('I.i II Ogólne i  Ident.'!B7=\"(wybierz z listy obszar wsparcia)\",\"Cel operacji wpisywany automatycznie po wybraniu obszaru wsparcia na stronie tytułowej.\",IF('I.i II Ogólne i  Ident.'!B7=\"rozwój produkcji prosiąt\",\"Zwiększenie rentowności i konkurencyjności gospodarstwa w obszarze rozwój produkcji prosiąt.\",IF('I.i II Ogólne i  Ident.'!B7=\"rozwój produkcji mleka krowiego\",\"Zwiększenie rentowności i konkurencyjności gospodarstwa w obszarze rozwój produkcji mleka krowiego.\",AX28)))","v":"Cel operacji wpisywany automatycznie po wybraniu obszaru wsparcia na stronie tytułowej."}]
[null,null,null,null,null,null,null,null,null,null,null,null,null,null,null,null,null,null,null,"w okresie bazowym",null,null,null,null,null,null,null,null,null,"w okresie docelowym"]
[null,null,"Wartość dodana brutto gospodarstwa (w zł.) 3"]
[null,"2.1",null,null,null,null,null,null,null,null,null,null,null,null,null,null,null,null,null,null,null,null,null,null,null,null,null,null,null,null,null,null,null,null,null,null,null,null,null,null,null,null,null,null,null,null,null,null,null,{"$f":"IF('I.i II Ogólne i  Ident.'!B7=\"rozwój produkcji bydła mięsnego\",\"Zwiększenie rentowności i konkurencyjności gospodarstwa w obszarze rozwój produkcji bydła mięsnego.\",IF('I.i II Ogólne i  Ident.'!B7=\"związanym z racjonalizacją technologii produkcji, wprowadzeniem innowacji, zmianą profilu produkcji, zwiększeniem skali produkcji, poprawą jakości produkcji lub zwiększeniem wartości dodanej produktu\",\"Zwiększenie rentowności i konkurencyjności gospodarstwa związane z racjonalizacją technologii produkcji, wprowadzeniem innowacji, zmianą profilu produkcji, zwiększeniem skali produkcji, poprawą jakości produkcji lub zwiększeniem wartości dodanej produktu.\",\" \"))","v":" "}]
[]
[null,"3.","Dodatkowo operacja przyczyni się do:"]
[null,"3.1.","poprawy efektywności korzystania z zasobów wodnych w gospodarstwie"]
[null,null,null,null,null,null,null,null,null,null,null,null,null,null,null,null,null,null,null,null,null,null,null,null,null,null,null,null,null,"(wybierz z listy)",null,null,null,null,null,null,null,null,null,null,null,null,null,null,null,null,"(wybierz z listy)"]
[null,null,null,null,null,null,null,null,null,null,null,null,null,null,null,null,null,null,null,null,null,null,null,null,null,null,null,null,null,null,null,null,null,null,null,null,null,null,null,null,null,null,null,null,null,null,"TAK"]
[null,"3.2.","poprawy efektywności wykorzystania energii w gospodarstwie",null,null,null,null,null,null,null,null,null,null,null,null,null,null,null,null,null,null,null,null,null,null,null,null,null,null,null,null,null,null,null,null,null,null,null,null,null,null,null,null,null,null,null,"NIE"]
[null,null,null,null,null,null,null,null,null,null,null,null,null,null,null,null,null,null,null,null,null,null,null,null,null,null,null,null,null,"(wybierz z listy)"]
[]
[null,"3.3."]
[null,null,"zwiększenia wykorzystywania odnawialnych źródeł energii w gospodarstwie",null,null,null,null,null,null,null,null,null,null,null,null,null,null,null,null,null,null,null,null,null,null,null,null,null,null,"(wybierz z listy)"]
[]
[]
[null,"3.4.","redukcji emisji gazów cieplarnianych i amoniaku z rolnictwa w gospodarstwie",null,null,null,null,null,null,null,null,null,null,null,null,null,null,null,null,null,null,null,null,null,null,null,null,null,null,"(wybierz z listy)"]
[]
[null,"4.","Lokalizacja operacji (miejsce realizacji inwestycji)"]
[]
[null,null,"4.1.1. Województwo",null,null,null,null,null,null,null,null,null,null,null,null,"4.1.2. Powiat",null,null,null,null,null,null,null,null,null,null,"4.1.3. Gmina",null,null,null,null,null,null,null,null,null,null,null,null,null,null,null,null,null,null,null,"(wybierz z listy)"]
[null,null,"(wybierz z listy)",null,null,null,null,null,null,null,null,null,null,null,null,null,null,null,null,null,null,null,null,null,null,null,null,null,null,null,null,null,null,null,null,null,null,null,null,null,null,null,null,null,null,null,"DOLNOŚLĄSKIE"]
[null,null,"4.1.4. Ulica",null,null,null,null,null,null,null,null,null,null,null,null,"4.1.5. Nr domu",null,null,null,null,null,"4.1.6. Nr lokalu",null,null,null,null,"4.1.7. Miejscowość",null,null,null,null,null,null,null,null,null,null,null,null,null,null,null,null,null,null,null,"KUJAWSKO-POMORSKIE"]
[null,null,null,null,null,null,null,null,null,null,null,null,null,null,null,null,null,null,null,null,null,null,null,null,null,null,null,null,null,null,null,null,null,null,null,null,null,null,null,null,null,null,null,null,null,null,"LUBELSKIE"]
[null,null,"4.1.8. Kod pocztowy",null,null,null,null,"4.1.9. Poczta",null,null,null,null,null,null,null,null,null,"4.1.10. Nazwa i nr obrębu ewidencyjnego",null,null,null,null,null,null,null,null,null,"4.1.11. Nr działki ewidencyjnej",null,null,null,null,null,null,null,null,null,null,null,null,null,null,null,null,null,null,"LUBUSKIE"]
[null,null,null,null,null,null,null,null,null,null,null,null,null,null,null,null,null,null,null,null,null,null,null,null,null,null,null,null,null,null,null,null,null,null,null,null,null,null,null,null,null,null,null,null,null,null,"ŁÓDZKIE"]
[null,null,null,null,null,null,null,null,null,null,null,null,null,null,null,null,null,null,null,null,null,null,null,null,null,null,null,null,null,null,null,null,null,null,null,null,null,null,null,"ŚLĄSKIE",null,null,null,null,null,null,"MAŁOPOLSKIE"]
[null,"4.2","Miejsce przechowywania/garażowania (inne niż wskazane w pkt. 4)",null,null,null,null,null,null,null,null,null,null,null,null,null,null,null,null,null,null,null,null,null,null,null,null,null,null,null,null,null,null,null,null,null,null,null,null,null,null,null,null,null,null,null,"MAZOWIECKIE"]
[null,null,null,null,null,null,null,null,null,null,null,null,null,null,null,null,null,null,null,null,null,null,null,null,null,null,null,null,null,null,null,null,null,null,null,null,null,null,null,null,null,null,null,null,null,null,"OPOLSKIE "]
[null,"4.2.1",null,null,null,null,null,null,null,null,null,null,null,null,null,null,null,null,null,null,null,null,null,null,null,null,null,null,null,null,null,null,null,null,null,null,null,null,null,null,null,null,null,null,null,null,"PODKARPACKIE"]
[null,null,"Uwaga: Szczegółowe dane dotyczące działek ewidencyjnych wchodzących w skład nieruchomości, na której będzie realizowana operacja bezpośrednio związana z nieruchomością (tj. dotycząca budowy, przebudowy, remontu połączonego z modernizacją, nasadzenia, infrastruktury, zagospodarowania terenu oraz zakupu maszyn, urządzeń, sprzętu i wyposażenia związanego (wykorzystywanego)  z nieruchomością), należy umieścić w Biznesplanie będącym załącznikiem do wniosku o przyznanie pomocy.",null,null,null,null,null,null,null,null,null,null,null,null,null,null,null,null,null,null,null,null,null,null,null,null,null,null,null,null,null,null,null,null,null,null,null,null,null,null,null,null,null,null,null,"PODLASKIE"]
[null,"5.","OPERACJA DOTYCZY PRODUKCJI W DZIEDZINIE OBJĘTEJ LIMITOWANIEM PRODUKCJI",null,null,null,null,null,null,null,null,null,null,null,null,null,null,null,null,null,null,null,null,null,null,null,null,null,null,null,null,null,null,null,null,null,null,null,null,null,null,null,null,null,null,null,"POMORSKIE"]
[null,null,null,null,null,null,null,null,null,null,null,null,null,null,null,null,null,null,null,null,null,null,null,null,null,null,null,null,null,"(wybierz z listy)",null,null,null,null,null,null,null,null,null,null,null,null,null,null,null,null,"ŚLĄSKIE"]
[null,null,null,null,null,null,null,null,null,null,null,null,null,null,null,null,null,null,null,null,null,null,null,null,null,null,null,null,null,null,null,null,null,null,null,null,null,null,null,null,null,null,null,null,null,null,"ŚWIĘTOKRZYSKIE"]
[null,null,null,null,null,null,null,null,null,null,null,null,null,null,null,null,null,null,null,null,null,null,null,null,null,null,null,null,null,null,null,null,null,null,null,null,null,null,null,null,null,null,null,null,null,null,"WARMIŃSKO-MAZURSKIE"]
[null,null,"L.p.",null,"Wielkość limitów produkcji przyznanych podmiotowi ubiegającemu się o przyznanie pomocy",null,null,null,null,null,null,null,null,null,null,null,null,null,"Jednostka",null,null,null,null,"Wielkość",null,null,null,null,null,null,null,null,null,null,null,null,null,null,null,null,null,null,null,null,null,null,"WIELKOPOLSKIE"]
[null,null,null,null,null,null,null,null,null,null,null,null,null,null,null,null,null,null,null,null,null,null,null,null,null,null,null,null,null,null,null,null,null,null,null,null,null,null,null,null,null,null,null,null,null,null,"ZACHODNIOPOMORSKIE"]
[null,null,null,null,null,null,null,null,null,null,null,null,null,null,null,null,null,null,null,null,null,null,null,"Obecna",null,null,null,null,null,null,"Docelowa"]
[null,null,"1."]
[null,null,"2."]
[null,"6.","Operacja wpływa na zwiększenie uczestnictwa w rynku"]
[null,null,null,null,null,null,null,null,null,null,null,null,null,null,null,null,null,null,null,null,null,null,null,null,null,null,null,null,null,"(wybierz z listy)"]
[null,"7.","Operacja wpływa na zróżnicowanie produkcji rolnej"]
[null,null,null,null,null,null,null,null,null,null,null,null,null,null,null,null,null,null,null,null,null,null,null,null,null,null,null,null,null,"(wybierz z listy)"]
[]
[null,null,"3 Należy wypełnić w oparciu o dane określone w Biznesplanie"]

{"sheet":"A - Prosięta - rozwój","index":5,"n_rows":33,"n_cols":54,"rows_kept":33,"cut":false,"hidden":false,"merged":[[32,2,32,34],[29,1,31,1],[29,2,31,28],[30,29,30,36],[17,29,17,36],[18,31,18,33],[19,1,22,1],[19,2,22,28],[24,1,27,1],[24,2,27,28],[25,29,25,36],[3,1,3,37],[7,2,7,19],[7,20,7,27],[7,29,7,36],[1,1,1,9],[1,10,1,36],[4,2,5,36],[8,2,8,19],[8,20,8,27],[8,29,8,36],[14,21,14,28],[15,2,15,27],[9,1,11,1],[9,2,11,27],[12,1,13,1],[20,29,20,36],[13,29,13,36],[15,29,15,36],[12,2,13,27],[14,29,14,36],[17,2,17,20],[17,21,17,27],[10,29,10,36],[16,29,16,36],[16,21,16,28]]}
[]
[null,"Podmiot (Imię i Nazwisko/Nazwa):",null,null,null,null,null,null,null,null,{"$f":"'I.i II Ogólne i  Ident.'!U34&'I.i II Ogólne i  Ident.'!W38&'I.i II Ogólne i  Ident.'!AD34&'I.i II Ogólne i  Ident.'!W38&'I.i II Ogólne i  Ident.'!C34","v":"  "}]
[]
[]
[null,"IV.A.","CEL OPERACJI - ZWIĘKSZENIE RENTOWNOŚCI I KONKURENCYJNOŚCI GOSPODARSTWA W OBSZARZE ROZWÓJ PRODUKCJI PROSIĄT"]
[]
[]
[]
[]
[null,"1.","W wyniku realizacji operacji wzrost średniej rocznej liczby loch w stadzie wyniesie (w szt.) "]
[null,null,null,null,null,null,null,null,null,null,null,null,null,null,null,null,null,null,null,null,null,null,null,null,null,null,null,null,null,null,null,null,null,null,null,null,null,null,null,null,null,null,null,null,null,null,null,null,null,null,null,null,null,"(wybierz z listy)"]
[null,null,null,null,null,null,null,null,null,null,null,null,null,null,null,null,null,null,null,null,null,null,null,null,null,null,null,null,null,null,null,null,null,null,null,null,null,null,null,null,null,null,null,null,null,null,null,null,null,null,null,null,null,"TAK"]
[null,"2.","W wyniku realizacji operacji średnia roczna liczba loch w stadzie będzie wynosiła (w szt.) 3",null,null,null,null,null,null,null,null,null,null,null,null,null,null,null,null,null,null,null,null,null,null,null,null,null,null,null,null,null,null,null,null,null,null,null,null,null,null,null,null,null,null,null,null,null,null,null,null,null,null,"NIE"]
[]
[]
[null,"3.","Liczba utrzymywanych loch w okresie bazowym (w szt) 3"]
[]
[null,"4.","Liczba prosiąt w okresie bazowym (w szt) 3"]
[null,null,null,null,null,null,null,null,null,null,null,null,null,null,null,null,null,null,null,null,null,null,null,null,null,null,null,null,null,null,null,null,null,null,"NIE"]
[null,"5.","Podmiot ubiegający się o przyznanie pomocy uczestniczy w unijnym systemie jakości, o którym mowa w art. 16 ust. 1 lit. a rozporządzenia Parlamentu Europejskiego i Rady (UE) nr 1305/2013 z dnia 17 grudnia 2013 r. w sprawie wsparcia rozwoju obszarów wiejskich przez Europejski Fundusz Rolny na rzecz Rozwoju Obszarów Wiejskich (EFRROW) i uchylającego rozporządzenie Rady (WE) nr 1698/2005 (Dz. Urz. UE L 347 z 20.12.2013, str. 487, z późn. zm.), zwanego dalej \"rozporządzeniem nr 1305/2013\", lub krajowym systemie jakości, o którym mowa w art. 16 ust. 1 lit. b tego rozporządzenia, w ramach działania „Systemy jakości produktów rolnych i środków spożywczych\" objętego PROW 2014-2020"]
[null,null,null,null,null,null,null,null,null,null,null,null,null,null,null,null,null,null,null,null,null,null,null,null,null,null,null,null,null,"(wybierz z listy)"]
[]
[]
[]
[null,"6.","Podmiot ubiegający się o przyznanie pomocy uczestniczy w systemie rolnictwa ekologicznego, o  którym mowa w rozporządzeniu Rady (WE) nr 834/2007 z dnia 28 czerwca 2007 r. w sprawie produkcji ekologicznej i znakowania produktów ekologicznych i uchylającym rozporządzenie (EWG) nr 2092/91(Dz. Urz. UE L 189 z 20.07.2007, str. 1, z późn. zm.), zwanego dalej rozporządzeniem nr 834/2007 "]
[null,null,null,null,null,null,null,null,null,null,null,null,null,null,null,null,null,null,null,null,null,null,null,null,null,null,null,null,null,"(wybierz z listy)"]
[]
[]
[]
[null,"7.","Operacja uwzględnia inwestycje służące ochronie środowiska lub zapobieganiu zmianie klimatu"]
[null,null,null,null,null,null,null,null,null,null,null,null,null,null,null,null,null,null,null,null,null,null,null,null,null,null,null,null,null,"(wybierz z listy)"]
[]
[null,null,"3 Należy wypełnić w oparciu o dane określone w Biznesplanie"]

{"sheet":"B - Mleko - rozwój","index":6,"n_rows":34,"n_cols":54,"rows_kept":34,"cut":false,"hidden":false,"merged":[[24,1,27,1],[24,2,27,28],[28,31,28,33],[29,1,31,1],[29,2,31,28],[30,29,30,36],[20,1,22,1],[7,1,8,1],[1,1,1,9],[1,10,1,36],[11,1,13,1],[11,2,13,27],[12,29,12,36],[13,29,13,36],[7,2,9,27],[8,29,8,36],[14,21,14,28],[14,29,14,36],[15,21,15,28],[15,29,15,36],[16,2,16,28],[33,2,33,34],[34,2,34,34],[2,2,4,36],[0,2,0,35],[6,2,6,19],[6,20,6,27],[6,29,6,36],[25,29,25,36],[18,2,18,27],[18,29,18,36],[16,29,16,36],[20,2,22,28],[21,29,21,36],[19,31,19,33]]}
[]
[null,"Podmiot (Imię i Nazwisko/Nazwa):",null,null,null,null,null,null,null,null,{"$f":"'I.i II Ogólne i  Ident.'!U34&'I.i II Ogólne i  Ident.'!W38&'I.i II Ogólne i  Ident.'!AD34&'I.i II Ogólne i  Ident.'!W38&'I.i II Ogólne i  Ident.'!C34","v":"  "}]
[null,"IV.B. ","CEL OPERACJI - ZWIĘKSZENIE RENTOWNOŚCI I KONKURENCYJNOŚCI GOSPODARSTWA W OBSZARZE ROZWÓJ PRODUKCJI MLEKA KROWIEGO"]
[]
[]
[]
[]
[null,"1.","W wyniku realizacji operacji wzrost średniej rocznej liczby krów mlecznych w stadzie wyniesie (w szt.) ",null,null,null,null,null,null,null,null,null,null,null,null,null,null,null,null,null,null,null,null,null,null,null,null,null,null,null,null,null,null,null,null,null,null,null,null,null,null,null,null,null,null,null,null,null,null,null,null,null,null,"(wybierz z listy)"]
[null,null,null,null,null,null,null,null,null,null,null,null,null,null,null,null,null,null,null,null,null,null,null,null,null,null,null,null,null,null,null,null,null,null,null,null,null,null,null,null,null,null,null,null,null,null,null,null,null,null,null,null,null,"TAK"]
[null,null,null,null,null,null,null,null,null,null,null,null,null,null,null,null,null,null,null,null,null,null,null,null,null,null,null,null,null,null,null,null,null,null,null,null,null,null,null,null,null,null,null,null,null,null,null,null,null,null,null,null,null,"NIE"]
[]
[null,"2.","W wyniku realizacji operacji średnia roczna liczba krów mlecznych w stadzie będzie wynosiła (w szt.) 3"]
[]
[]
[]
[]
[null,"3.","Liczba utrzymywanych krów mlecznych w okresie bazowym (w szt) 3"]
[]
[null,"4.","Wielkość produkcji mleka w okresie bazowym (w l) 3"]
[null,null,null,null,null,null,null,null,null,null,null,null,null,null,null,null,null,null,null,null,null,null,null,null,null,null,null,null,null,null,null,null,null,null,"NIE"]
[null,"5.","Podmiot ubiegający się o przyznanie pomocy uczestniczy w unijnym systemie jakości, o którym mowa w art. 16 ust. 1 lit. a rozporządzenia nr 1305/2013 lub krajowym systemie jakości, o którym mowa w art. 16 ust. 1 lit. b tego rozporządzenia, w ramach działania „Systemy jakości produktów rolnych i środków spożywczych\" objętego PROW 2014-2020"]
[null,null,null,null,null,null,null,null,null,null,null,null,null,null,null,null,null,null,null,null,null,null,null,null,null,null,null,null,null,"(wybierz z listy)"]
[]
[]
[null,"6.","Podmiot ubiegający się o przyznanie pomocy uczestniczy w systemie rolnictwa ekologicznego, o  którym mowa w rozporządzeniu nr 834/2007"]
[null,null,null,null,null,null,null,null,null,null,null,null,null,null,null,null,null,null,null,null,null,null,null,null,null,null,null,null,null,"(wybierz z listy)"]
[]
[]
[]
[null,"7.","Operacja uwzględnia inwestycje służące ochronie środowiska lub zapobieganiu zmianie klimatu"]
[null,null,null,null,null,null,null,null,null,null,null,null,null,null,null,null,null,null,null,null,null,null,null,null,null,null,null,null,null,"(wybierz z listy)"]
[]
[]
[null,null,"3 Należy wypełnić w oparciu o dane określone w Biznesplanie"]

{"sheet":"C - Opasy - rozwój","index":7,"n_rows":34,"n_cols":41,"rows_kept":34,"cut":false,"hidden":false,"merged":[[33,2,33,34],[26,1,29,1],[26,2,29,28],[27,29,27,36],[30,31,30,33],[31,1,32,1],[31,2,32,28],[32,29,32,36],[7,2,7,19],[7,20,7,27],[7,29,7,36],[8,1,9,1],[8,2,10,27],[19,29,19,36],[13,29,13,36],[14,29,14,36],[16,29,16,36],[15,29,15,36],[22,29,22,36],[1,1,1,9],[1,10,1,36],[3,1,3,37],[4,2,5,36],[12,1,14,1],[19,2,19,27],[21,1,24,1],[21,2,24,28],[12,2,14,27],[15,21,15,28],[16,2,16,27],[17,31,17,33],[18,21,18,28],[18,29,18,36],[9,29,9,36]]}
[]
[null,"Podmiot (Imię i Nazwisko/Nazwa):",null,null,null,null,null,null,null,null,{"$f":"'I.i II Ogólne i  Ident.'!U34&'I.i II Ogólne i  Ident.'!W38&'I.i II Ogólne i  Ident.'!AD34&'I.i II Ogólne i  Ident.'!W38&'I.i II Ogólne i  Ident.'!C34","v":"  "}]
[]
[]
[null,"IV.C. ","CEL OPERACJI -  ZWIĘKSZENIE RENTOWNOŚCI I KONKURENCYJNOŚCI GOSPODARSTWA W OBSZARZE ROZWÓJ PRODUKCJI BYDŁA MIĘSNEGO"]
[]
[]
[]
[null,"1.","W wyniku realizacji operacji wzrost średniej rocznej liczby krów nieprzeznaczonych do produkcji mleka w stadzie wyniesie (w szt.)"]
[null,null,null,null,null,null,null,null,null,null,null,null,null,null,null,null,null,null,null,null,null,null,null,null,null,null,null,null,null,null,null,null,null,null,null,null,null,null,null,null,"(wybierz z listy)"]
[null,null,null,null,null,null,null,null,null,null,null,null,null,null,null,null,null,null,null,null,null,null,null,null,null,null,null,null,null,null,null,null,null,null,null,null,null,null,null,null,"TAK"]
[null,null,null,null,null,null,null,null,null,null,null,null,null,null,null,null,null,null,null,null,null,null,null,null,null,null,null,null,null,null,null,null,null,null,null,null,null,null,null,null,"NIE"]
[null,"2.","W wyniku realizacji operacji średnia roczna liczba krów nieprzeznaczonych do produkcji mleka w stadzie będzie wynosiła (w szt.) 3"]
[]
[]
[]
[null,"3.","Ilość wyprodukowanego żywca w okresie bazowym (w szt.) 3"]
[]
[]
[null,"4.","Ilość sprzedanego żywca w okresie bazowym (w szt.) 3"]
[]
[null,"5.","Podmiot ubiegający się o przyznanie pomocy uczestniczy w unijnym systemie jakości, o którym mowa w art. 16 ust. 1 lit. a rozporządzenia nr 1305/2013 lub krajowym systemie jakości, o którym mowa w art. 16 ust. 1 lit. b tego rozporządzenia, w ramach działania „Systemy jakości produktów rolnych i środków spożywczych\" objętego PROW 2014-2020"]
[null,null,null,null,null,null,null,null,null,null,null,null,null,null,null,null,null,null,null,null,null,null,null,null,null,null,null,null,null,"(wybierz z listy)"]
[]
[]
[]
[null,"6.","Podmiot ubiegający się o przyznanie pomocy uczestniczy w systemie rolnictwa ekologicznego, o  którym mowa w rozporządzeniu nr 834/2007 \n"]
[null,null,null,null,null,null,null,null,null,null,null,null,null,null,null,null,null,null,null,null,null,null,null,null,null,null,null,null,null,"(wybierz z listy)"]
[]
[]
[]
[null,"7.","Operacja uwzględnia inwestycje służące ochronie środowiska lub zapobieganiu zmianie klimatu"]
[null,null,null,null,null,null,null,null,null,null,null,null,null,null,null,null,null,null,null,null,null,null,null,null,null,null,null,null,null,"(wybierz z listy)"]
[null,null,"3 Należy wypełnić w oparciu o dane określone w Biznesplanie"]

{"sheet":"D - Pozostałe operacje","index":8,"n_rows":164,"n_cols":54,"rows_kept":164,"cut":false,"hidden":false,"merged":[[161,2,161,30],[161,31,161,36],[163,2,163,33],[165,2,182,36],[145,2,146,30],[145,31,145,36],[147,29,147,36],[148,2,149,30],[148,31,148,36],[151,2,152,30],[151,31,151,36],[154,1,154,26],[156,1,156,2],[156,3,156,16],[132,2,133,30],[132,31,132,36],[134,29,134,36],[138,2,139,30],[143,1,143,2],[143,3,143,16],[158,2,159,30],[158,31,158,36],[160,29,160,36],[121,1,121,2],[121,3,121,16],[123,2,124,30],[123,31,123,36],[125,29,125,36],[126,31,126,36],[128,1,128,26],[130,1,130,2],[130,3,130,14],[126,2,126,30],[108,2,109,30],[108,31,108,36],[111,2,112,30],[111,31,111,36],[91,2,92,30],[115,31,115,36],[117,29,117,36],[118,2,119,30],[118,31,118,36],[88,2,89,30],[88,31,88,36],[90,29,90,36],[91,31,91,36],[97,2,97,26],[99,2,100,30],[99,31,99,36],[101,29,101,36],[105,2,106,30],[75,2,76,30],[75,31,75,36],[78,2,78,26],[80,2,81,30],[80,31,80,36],[82,29,82,36],[83,2,84,30],[83,31,83,36],[86,2,86,26],[10,1,11,1],[14,31,14,36],[11,31,11,36],[10,2,12,30],[102,2,103,30],[36,2,37,30],[13,1,14,1],[18,31,18,36],[13,2,15,30],[22,31,22,36],[21,1,23,1],[21,2,23,26],[17,1,19,1],[29,1,31,1],[29,2,31,30],[30,31,30,36],[32,1,34,1],[32,2,34,30],[33,31,33,36],[49,31,49,36],[52,2,52,26],[54,2,54,30],[54,31,54,36],[94,2,95,30],[68,31,68,36],[68,2,69,30],[25,1,28,1],[25,2,28,30],[26,31,26,36],[113,1,113,2],[113,3,113,13],[115,2,116,30],[56,29,56,36],[57,2,58,30],[57,31,57,36],[59,2,59,34],[36,1,37,1],[38,30,38,32],[38,34,38,36],[39,1,40,1],[39,2,40,30],[39,31,39,36],[60,2,60,26],[61,2,61,26],[63,2,63,30],[63,31,63,36],[66,2,66,26],[73,2,73,26],[1,10,1,36],[135,31,135,36],[138,31,138,36],[102,31,102,36],[105,31,105,36],[135,2,136,30],[0,2,0,34],[8,29,8,36],[2,1,2,37],[3,2,6,36],[1,1,1,9],[8,2,8,19],[17,2,19,29],[8,20,8,27],[96,29,96,36],[36,31,36,36],[42,2,42,12],[42,13,42,36],[44,2,44,26],[46,2,47,30],[46,31,46,36],[48,29,48,36],[49,2,50,30],[94,31,94,36]]}
[]
[null,"Podmiot (Imię i Nazwisko/Nazwa):",null,null,null,null,null,null,null,null,{"$f":"'I.i II Ogólne i  Ident.'!U34&'I.i II Ogólne i  Ident.'!W38&'I.i II Ogólne i  Ident.'!AD34&'I.i II Ogólne i  Ident.'!W38&'I.i II Ogólne i  Ident.'!C34","v":"  "}]
[]
[null,"IV.D. ","CEL OPERACJI -  ZWIĘKSZENIE RENTOWNOŚCI I KONKURENCYJNOŚCI GOSPODARSTWA ZWIĄZANE Z RACJONALIZACJĄ TECHNOLOGII PRODUKCJI, WPROWADZENIEM INNOWACJI, ZMIANĄ PROFILU PRODUKCJI, ZWIĘKSZENIEM SKALI PRODUKCJI, POPRAWĄ JAKOŚCI PRODUKCJI LUB ZWIĘKSZENIEM WARTOŚCI DODANEJ PRODUKTU"]
[]
[]
[]
[]
[null,null,null,null,null,null,null,null,null,null,null,null,null,null,null,null,null,null,null,null,null,null,null,null,null,null,null,null,null,null,null,null,null,null,null,null,null,null,null,null,null,null,null,null,null,null,null,null,null,null,null,null,null,"(wybierz z listy)"]
[null,null,null,null,null,null,null,null,null,null,null,null,null,null,null,null,null,null,null,null,null,null,null,null,null,null,null,null,null,null,null,null,null,null,null,null,null,null,null,null,null,null,null,null,null,null,null,null,null,null,null,null,null,"TAK"]
[null,"1.","Operacja obejmuje wyłącznie inwestycje dotyczące budowy lub modernizacji budynków inwentarskich lub magazynu paszowego",null,null,null,null,null,null,null,null,null,null,null,null,null,null,null,null,null,null,null,null,null,null,null,null,null,null,null,null,null,null,null,null,null,null,null,null,null,null,null,null,null,null,null,null,null,null,null,null,null,null,"NIE"]
[null,null,null,null,null,null,null,null,null,null,null,null,null,null,null,null,null,null,null,null,null,null,null,null,null,null,null,null,null,null,null,"(wybierz z listy)"]
[]
[null,"2.","Operacja obejmuje  inwestycje, gdzie koszty budowy lub modernizacji budynków inwentarskich lub magazynu paszowego stanowią co najmniej 50 % wszystkich kosztów operacji"]
[null,null,null,null,null,null,null,null,null,null,null,null,null,null,null,null,null,null,null,null,null,null,null,null,null,null,null,null,null,null,null,"(wybierz z listy)"]
[]
[]
[null,"3.","Operacja związana jest ze zwiększeniem skali produkcji rolnej, której realizacja wpłynie również na zwiększenie uczestnictwa w rynku 3"]
[null,null,null,null,null,null,null,null,null,null,null,null,null,null,null,null,null,null,null,null,null,null,null,null,null,null,null,null,null,null,null,"(wybierz z listy)"]
[]
[]
[null,"4.","Operacja związana jest ze zmianą profilu produkcji rolnej, której realizacja wpłynie również na zróżnicowanie produkcji rolnej w gospodarstwie 3"]
[null,null,null,null,null,null,null,null,null,null,null,null,null,null,null,null,null,null,null,null,null,null,null,null,null,null,null,null,null,null,null,"(wybierz z listy)"]
[]
[]
[null,"5.","Podmiot ubiegający się o przyznanie pomocy uczestniczy w unijnym systemie jakości, o którym mowa w art. 16 ust. 1 lit. a rozporządzenia nr 1305/2013 lub krajowym systemie jakości, o którym mowa w art. 16 ust. 1 lit. b tego rozporządzenia, w ramach działania „Systemy jakości produktów rolnych i środków spożywczych\" objętego PROW 2014-2020"]
[null,null,null,null,null,null,null,null,null,null,null,null,null,null,null,null,null,null,null,null,null,null,null,null,null,null,null,null,null,null,null,"(wybierz z listy)"]
[]
[]
[null,"6.","Podmiot ubiegający się o przyznanie pomocy uczestniczy w systemie rolnictwa ekologicznego, o  którym mowa w rozporządzeniu nr 834/2007 "]
[null,null,null,null,null,null,null,null,null,null,null,null,null,null,null,null,null,null,null,null,null,null,null,null,null,null,null,null,null,null,null,"(wybierz z listy)"]
[]
[null,"7.","Operacja uwzględnia inwestycje służące ochronie środowiska lub zapobieganiu zmianie klimatu"]
[null,null,null,null,null,null,null,null,null,null,null,null,null,null,null,null,null,null,null,null,null,null,null,null,null,null,null,null,null,null,null,"(wybierz z listy)"]
[]
[]
[null,"8.","Operacja dotyczy wsparcia gospodarstwa w zakresie chowu drobiu - produkcja ekologiczna",null,null,null,null,null,null,null,null,null,null,null,null,null,null,null,null,null,null,null,null,null,null,null,null,null,null,null,null,"(wybierz z listy)"]
[]
[]
[null,"9.","Operacja dotyczy wsparcia gospodarstwa w zakresie chowu drobiu - zmiana sposobu chowu z nieekologicznego na ekologiczny",null,null,null,null,null,null,null,null,null,null,null,null,null,null,null,null,null,null,null,null,null,null,null,null,null,null,null,null,"(wybierz z listy)"]
[null,null,null,null,null,null,null,null,null,null,null,null,null,null,null,null,null,null,null,null,null,null,null,null,null,null,null,null,null,null,null,null,null,null,null,null,null,null,null,null,null,null,null,null,null,null,null,null,null,null,null,null,null,"Należy określić lokalizację operacji"]
[]
[null,"10.","Kryteria wojewódzkie:",null,null,null,null,null,null,null,null,null,null,null,null,null,null,null,null,null,null,null,null,null,null,null,null,null,null,null,null,null,null,null,null,null,null,null,null,null,null,null,null,null,null,null,null,null,null,null,null,null,null,{"$f":"IF('[7]IV.Opis operacji'!C46=\"(wybierz z listy)\",\"Należy określić lokalizację operacji\",\" \")","v":"Należy określić lokalizację operacji"}]
[]
[null,"10.1.","dolnośląskie"]
[]
[null,"a) ","operacja dotyczy budowy lub modernizacji budynków inwentarskich dla bydła, owiec lub kóz",null,null,null,null,null,null,null,null,null,null,null,null,null,null,null,null,null,null,null,null,null,null,null,null,null,null,null,null,"(wybierz z listy)"]
[]
[]
[null,"b) ","operacja dotyczy powiększenia powierzchni sadów lub plantacji krzewów owocowych, gatunków owocujących efektywnie dłużej niż 5 lat",null,null,null,null,null,null,null,null,null,null,null,null,null,null,null,null,null,null,null,null,null,null,null,null,null,null,null,null,"(wybierz z listy)"]
[]
[]
[null,"10.2.","kujawsko-pomorskie"]
[]
[null,"a) ","operacja dotyczy budowy lub modernizacji budynków inwentarskich dla świń",null,null,null,null,null,null,null,null,null,null,null,null,null,null,null,null,null,null,null,null,null,null,null,null,null,null,null,null,"(wybierz z listy)"]
[]
[]
[null,"b) ","podmiot ubiegający się o przyznanie pomocy jest członkiem grupy producentów rolnych lub organizacji producentów",null,null,null,null,null,null,null,null,null,null,null,null,null,null,null,null,null,null,null,null,null,null,null,null,null,null,null,null,"(wybierz z listy)"]
[]
[]
[null,"10.3.","lubelskie - nie określono"]
[null,"10.4.","lubuskie"]
[]
[null,"a) ","operacja realizowana jest przez co najmniej 2 rolników",null,null,null,null,null,null,null,null,null,null,null,null,null,null,null,null,null,null,null,null,null,null,null,null,null,null,null,null,"(wybierz z listy)"]
[]
[]
[null,"10.5.","łódzkie"]
[]
[null,"a) ","podmiot ubiegający się o przyznanie pomocy jest członkiem grupy producentów rolnych lub organizacji producentów",null,null,null,null,null,null,null,null,null,null,null,null,null,null,null,null,null,null,null,null,null,null,null,null,null,null,null,null,"(wybierz z listy)"]
[]
[]
[]
[]
[null,"10.6.","małopolskie"]
[]
[null,"a) ","operacja dotyczy budowy lub modernizacji budynków inwentarskich dla trawożernych zwierząt gospodarskich",null,null,null,null,null,null,null,null,null,null,null,null,null,null,null,null,null,null,null,null,null,null,null,null,null,null,null,null,"(wybierz z listy)"]
[]
[]
[null,"10.7.","mazowieckie"]
[]
[null,"a) ","operacja dotyczy budowy obiektów służących do przechowywania produktów rolnych wytwarzanych w gospodarstwie",null,null,null,null,null,null,null,null,null,null,null,null,null,null,null,null,null,null,null,null,null,null,null,null,null,null,null,null,"(wybierz z listy)"]
[]
[]
[null,"b) ","podmiot ubiegający się o przyznanie pomocy jest Beneficjentem działania „Ułatwianie startu młodym rolnikom” PROW 2007-2013 lub operacji typu „Premie dla młodych rolników” PROW 2014-2020",null,null,null,null,null,null,null,null,null,null,null,null,null,null,null,null,null,null,null,null,null,null,null,null,null,null,null,null,"(wybierz z listy)"]
[]
[]
[null,"10.8.","opolskie"]
[]
[null,"a) ","podmiot ubiegający się o przyznanie pomocy jest członkiem grupy producentów rolnych lub organizacji producentów",null,null,null,null,null,null,null,null,null,null,null,null,null,null,null,null,null,null,null,null,null,null,null,null,null,null,null,null,"(wybierz z listy)"]
[]
[]
[null,"b) ","podmiot ubiegający się o przyznanie pomocy jest Beneficjentem działania „Ułatwianie startu młodym rolnikom” PROW 2007-2013 lub opercji typu „Premie dla młodych rolników” PROW 2014-2020",null,null,null,null,null,null,null,null,null,null,null,null,null,null,null,null,null,null,null,null,null,null,null,null,null,null,null,null,"(wybierz z listy)"]
[]
[]
[null,"c) ","operacja dotyczy przygotowania do sprzedaży produktów rolnych wytwarzanych w gospodarstwie",null,null,null,null,null,null,null,null,null,null,null,null,null,null,null,null,null,null,null,null,null,null,null,null,null,null,null,null,"(wybierz z listy)"]
[]
[]
[null,"10.9.","podkarpackie"]
[]
[null,"a) ","podmiot ubiegający się o przyznanie pomocy jest członkiem grupy producentów rolnych lub organizacji producentów",null,null,null,null,null,null,null,null,null,null,null,null,null,null,null,null,null,null,null,null,null,null,null,null,null,null,null,null,"(wybierz z listy)"]
[]
[]
[null,"b) ","operacja ma na celu rozszerzenie produkcji gospodarstwa o profil: zielarstwo lub pszczelarstwo",null,null,null,null,null,null,null,null,null,null,null,null,null,null,null,null,null,null,null,null,null,null,null,null,null,null,null,null,"(wybierz z listy)"]
[]
[]
[null,"c) ","operacja dotyczy budowy obiektów służących do przechowywania produktów rolnych wytwarzanych w gospodarstwie",null,null,null,null,null,null,null,null,null,null,null,null,null,null,null,null,null,null,null,null,null,null,null,null,null,null,null,null,"(wybierz z listy)"]
[]
[]
[null,"d) ","operacja dotyczy przygotowania do sprzedaży produktów rolnych wytwarzanych w gospodarstwie",null,null,null,null,null,null,null,null,null,null,null,null,null,null,null,null,null,null,null,null,null,null,null,null,null,null,null,null,"(wybierz z listy)"]
[]
[]
[null,"e) ","operacja dotyczy budowy lub modernizacji budynków inwentarskich dla bydła, owiec lub kóz",null,null,null,null,null,null,null,null,null,null,null,null,null,null,null,null,null,null,null,null,null,null,null,null,null,null,null,null,"(wybierz z listy)"]
[]
[null,"10.10.",null,"podlaskie",null,null,null,null,null,null,null,null,null,null,null,null,null,null,null,null,null,null,null,null,null,null,null,null,null,null,null,null,null,null,null,null,null,null,null,null,null,null,null,null,null,null,null,null,null,null,null,null,null," "]
[]
[null,"a) ","podmiot ubiegający się o przyznanie pomocy jest członkiem grupy producentów rolnych lub organizacji producentów",null,null,null,null,null,null,null,null,null,null,null,null,null,null,null,null,null,null,null,null,null,null,null,null,null,null,null,null,"(wybierz z listy)"]
[]
[]
[null,"b) ","operacja realizowana w gospodarstwie położonym na obszarze, na którym są podejmowane środki w związku z wystąpieniem choroby zakaźnej zwierząt podlegającej obowiązkowi zwalczania",null,null,null,null,null,null,null,null,null,null,null,null,null,null,null,null,null,null,null,null,null,null,null,null,null,null,null,null,"(wybierz z listy)"]
[]
[]
[null,"10.11.",null,"pomorskie"]
[]
[null,"a) ","operacja dotyczy budowy obiektów służących do przechowywania produktów rolnych wytwarzanych w gospodarstwie",null,null,null,null,null,null,null,null,null,null,null,null,null,null,null,null,null,null,null,null,null,null,null,null,null,null,null,null,"(wybierz z listy)"]
[]
[]
[null,"b) ","operacja realizowana wspólnie przez co najmniej 2 rolników",null,null,null,null,null,null,null,null,null,null,null,null,null,null,null,null,null,null,null,null,null,null,null,null,null,null,null,null,"(wybierz z listy)"]
[]
[null,"10.12. śląskie - nie określono"]
[]
[null,"10.13.",null,"świętokrzyskie"]
[]
[null,"a) ","operacja dotyczy przygotowania do sprzedaży produktów rolnych wytwarzanych w gospodarstwie",null,null,null,null,null,null,null,null,null,null,null,null,null,null,null,null,null,null,null,null,null,null,null,null,null,null,null,null,"(wybierz z listy)"]
[]
[]
[null,"b) ","podmiot ubiegający się o przyznanie pomocy zawarł umowę na dostawę produktów, których dotyczy operacja, zawartą na okres co najmniej jednego roku poprzedzającego dzień złożenia wniosku o przyznanie pomocy, z podmiotami mającymi miejsce zamieszkania albo siedzibę na obszarze tego województwa",null,null,null,null,null,null,null,null,null,null,null,null,null,null,null,null,null,null,null,null,null,null,null,null,null,null,null,null,"(wybierz z listy)"]
[]
[]
[null,"c) ","podmiot ubiegający się o przyznanie pomocy jest członkiem grupy producentów rolnych lub organizacji producentów",null,null,null,null,null,null,null,null,null,null,null,null,null,null,null,null,null,null,null,null,null,null,null,null,null,null,null,null,"(wybierz z listy)"]
[]
[]
[]
[]
[null,"10.14.",null,"warmińsko-mazurskie"]
[]
[null,"a) ","operacja dotyczy budowy obiektów służących do przechowywania produktów rolnych wytwarzanych w gospodarstwie",null,null,null,null,null,null,null,null,null,null,null,null,null,null,null,null,null,null,null,null,null,null,null,null,null,null,null,null,"(wybierz z listy)"]
[]
[]
[null,"b) ","operacja dotyczy przygotowania do sprzedaży produktów rolnych wytwarzanych w gospodarstwie",null,null,null,null,null,null,null,null,null,null,null,null,null,null,null,null,null,null,null,null,null,null,null,null,null,null,null,null,"(wybierz z listy)"]
[]
[]
[null,"c) ","operacja dotyczy budowy lub modernizacji budynków inwentarskich dla owiec, kóz lub koni",null,null,null,null,null,null,null,null,null,null,null,null,null,null,null,null,null,null,null,null,null,null,null,null,null,null,null,null,"(wybierz z listy)"]
[]
[]
[null,"10.15. wielkopolskie - nie określono"]
[]
[null,"10.16.",null,"zachodniopomorskie"]
[]
[null,"a) ","operacja dotyczy budowy obiektów służących do przechowywania produktów rolnych wytwarzanych w gospodarstwie",null,null,null,null,null,null,null,null,null,null,null,null,null,null,null,null,null,null,null,null,null,null,null,null,null,null,null,null,"(wybierz z listy)"]
[]
[]
[null,"b) ","operacja realizowana wspólnie przez co najmniej 2 rolników",null,null,null,null,null,null,null,null,null,null,null,null,null,null,null,null,null,null,null,null,null,null,null,null,null,null,null,null,"(wybierz z listy)"]
[]
[null,"11.","Opis, w jaki sposób operacja wpływa na kryteria wojewódzkie"]

{"sheet":"V.zestawienie RF","index":9,"n_rows":37,"n_cols":14,"rows_kept":37,"cut":false,"hidden":false,"merged":[[10,19,13,19],[10,20,13,20],[3,3,3,5],[4,3,5,3],[4,5,5,5],[4,8,5,8],[13,1,13,7],[3,1,5,1],[4,6,5,6],[4,9,4,13],[3,2,5,2],[3,6,3,7],[4,7,5,7],[10,18,13,18],[35,1,35,2],[4,4,5,4],[35,3,36,13],[36,1,36,2],[14,2,14,13],[19,1,19,7],[0,3,0,11],[7,3,7,5],[33,2,33,7],[32,1,32,7],[28,1,28,7],[27,1,27,7],[23,1,23,7],[29,2,29,13],[24,2,24,13],[2,1,2,13],[20,2,20,13],[8,2,8,13],[3,8,3,13]]}
[null,null,"Podmiot (Imię i Nazwisko/Nazwa):",{"$f":"'I.i II Ogólne i  Ident.'!U34&'I.i II Ogólne i  Ident.'!W38&'I.i II Ogólne i  Ident.'!AD34&'I.i II Ogólne i  Ident.'!W38&'I.i II Ogólne i  Ident.'!C34","v":"  "}]
[]
[null,"V. ZESTAWIENIE RZECZOWO-FINANSOWE OPERACJI"]
[null,"Lp.","Wyszczególnienie zakresu rzeczowego ","Wpływ na cel przekrojowy",null,null,"Mierniki rzeczowe",null,"Koszty kwalifikowalne operacji "]
[null,null,null,"Innowacy-jność***","Środowi-sko *** ","Klimat***","Jednostka miary","Ilość\n (liczba)"," Ogółem \n(w zł)"," w tym etapy (w zł)****:"]
[null,null,null,null,null,null,null,null,null,"I","II","III","IV","V"]
[null,1,2,3,4,5,6,7,8,9,10,11,12,13]
[null,"I.","Koszty inwestycyjne nie objęte leasingiem (Ki):","***wpisać TAK/NIE"]
[null,"A*"]
[null,"1 ** "]
[null,2,null,null,null,null,null,null,null,null,"  "]
[null,3]
[null,"…"]
[null,"Suma A"]
[null,"B *"]
[null,"1 ** "]
[null,2]
[null,3]
[null,"…"]
[null,"Suma B"]
[null,"… *"]
[null,"1 ** "]
[null,"…"]
[null,"Suma …"]
[null,"II","Koszty inwestycyjne objęte leasingiem (Kl)"]
[null,1]
[null,"…."]
[null,"Suma II"]
[null,"Suma poszczególnych sum zadań inwestycyjnych (Ki+Kl)"]
[null,"III","Koszty ogólne (Ko)"]
[null,1]
[null,"…"]
[null,"Suma Koszty ogólne (Ko) "]
[null,"IV","Suma kosztów kwalifikowalnych operacji (Ki + Kl + Ko)"]
[]
[null,"* Zadanie lub grupa zadań realizowanych w ramach operacji",null,"****Operacja obejmująca wyłącznie inwestycje niepolegające na nabyciu rzeczy będących przedmiotem leasingu może być realizowana maksymalnie w 2 etapach."]
[null,"** Zadanie lub dostawa/robota/usługa realizowana w ramach zadania"]

{"sheet":"VI.Finans.","index":10,"n_rows":174,"n_cols":45,"rows_kept":174,"cut":false,"hidden":false,"merged":[[123,24,123,31],[123,33,123,34],[123,1,123,2],[123,3,123,21],[115,21,115,28],[113,2,113,11],[115,29,115,36],[165,2,166,27],[113,21,113,28],[113,29,113,36],[138,21,140,36],[139,2,139,11],[124,3,124,29],[124,30,124,35],[126,3,126,29],[126,30,126,35],[128,30,128,35],[128,9,128,14],[128,3,128,8],[128,19,128,26],[130,2,131,11],[130,12,131,20],[130,21,131,36],[132,21,134,36],[120,31,120,36],[115,2,115,20],[117,2,118,36],[110,2,110,11],[107,2,107,11],[107,21,107,28],[107,29,107,36],[98,2,99,11],[110,21,110,28],[104,21,104,28],[104,29,104,36],[110,29,110,36],[104,2,104,11],[98,21,99,28],[172,28,172,31],[169,3,169,27],[168,32,168,36],[165,28,165,36],[168,28,168,31],[166,28,166,31],[166,32,166,36],[148,1,149,37],[167,3,167,36],[163,2,163,37],[168,3,168,27],[158,3,158,29],[158,30,158,35],[12,15,12,17],[11,18,11,19],[12,18,12,19],[24,18,24,19],[17,15,17,17],[15,4,15,14],[22,15,22,17],[12,4,12,14],[23,15,23,17],[21,18,21,19],[14,4,14,14],[23,18,23,19],[13,18,13,19],[20,4,20,14],[14,15,14,17],[15,18,15,19],[18,18,18,19],[18,15,18,17],[17,4,17,14],[17,18,17,19],[22,4,22,14],[21,4,21,14],[19,15,19,17],[19,4,19,14],[20,18,20,19],[21,15,21,17],[24,20,24,22],[22,18,22,19],[27,25,27,30],[48,25,48,30],[46,20,46,24],[38,25,38,30],[22,23,22,24],[24,25,24,30],[21,25,21,30],[27,4,27,14],[27,18,27,19],[25,2,25,36],[24,15,24,17],[27,31,27,36],[32,15,32,17],[31,25,31,30],[36,25,36,30],[34,25,34,30],[30,25,30,30],[47,31,47,36],[31,31,31,36],[48,31,48,36],[36,18,36,19],[38,2,39,3],[35,4,35,14],[39,4,39,14],[43,25,43,30],[36,15,36,17],[38,15,38,17],[39,18,39,19],[43,15,43,17],[39,23,39,24],[43,18,43,19],[39,20,39,22],[37,2,37,36],[26,2,35,3],[32,18,32,19],[26,4,26,14],[29,25,29,30],[27,15,27,17],[48,2,48,24],[46,2,46,14],[46,31,46,36],[30,31,30,36],[29,31,29,36],[28,31,28,36],[47,2,47,24],[38,20,38,22],[38,23,38,24],[32,25,32,30],[32,4,32,14],[29,4,29,14],[29,15,29,17],[31,15,31,17],[31,4,31,14],[35,31,35,36],[36,20,36,24],[26,20,35,24],[26,31,26,36],[26,25,26,30],[26,18,26,19],[26,15,26,17],[32,31,32,36],[28,18,28,19],[28,15,28,17],[28,25,28,30],[52,1,53,1],[75,2,75,20],[62,28,62,36],[62,4,62,27],[58,2,58,3],[60,2,60,3],[72,2,73,20],[63,28,63,36],[55,2,57,27],[71,2,71,36],[65,2,65,28],[65,31,65,36],[61,2,61,3],[61,4,61,27],[61,28,61,36],[67,2,67,28],[72,21,73,28],[68,1,68,36],[72,29,73,36],[58,4,58,27],[58,28,58,36],[59,2,59,3],[3,1,3,36],[11,31,11,36],[10,31,10,36],[11,4,11,14],[6,2,6,25],[8,2,8,14],[7,25,7,30],[10,25,10,30],[8,20,8,24],[8,25,8,30],[7,2,7,14],[7,15,7,19],[8,15,8,19],[11,15,11,17],[10,15,10,17],[8,31,8,36],[10,18,10,19],[10,4,10,14],[11,25,11,30],[10,20,10,22],[10,23,10,24],[11,20,11,22],[11,23,11,24],[10,2,15,3],[93,21,93,28],[97,2,97,28],[101,29,101,36],[98,29,99,36],[98,12,99,20],[91,2,91,20],[97,29,97,36],[94,2,94,20],[93,2,93,20],[94,29,94,36],[91,29,91,36],[101,21,101,28],[95,2,95,20],[95,21,95,28],[93,29,93,36],[92,29,92,36],[101,2,101,11],[92,2,92,20],[95,29,95,36],[94,21,94,28],[92,21,92,28],[90,29,90,36],[91,21,91,28],[90,21,90,28],[77,29,77,36],[90,2,90,20],[76,29,76,36],[74,29,74,36],[79,2,79,20],[78,29,78,36],[88,29,89,36],[76,2,76,20],[78,21,78,28],[87,2,87,36],[78,2,78,20],[77,21,77,28],[79,21,79,28],[75,29,75,36],[81,1,82,36],[79,29,79,36],[88,21,89,28],[74,2,74,20],[74,21,74,28],[76,21,76,28],[75,21,75,28],[88,2,89,20],[77,2,77,20],[69,2,69,29],[59,4,59,27],[46,25,46,30],[50,2,50,28],[67,31,67,36],[64,29,64,36],[30,4,30,14],[30,15,30,17],[62,2,62,3],[60,4,60,27],[33,25,33,30],[34,15,34,17],[44,20,44,22],[35,18,35,19],[35,15,35,17],[43,23,43,24],[39,15,39,17],[43,20,43,22],[55,28,57,36],[46,15,46,19],[59,28,59,36],[47,25,47,30],[64,46,64,47],[60,28,60,36],[63,46,63,47],[62,46,62,47],[50,31,50,36],[52,2,53,36],[63,2,63,27],[33,18,33,19],[31,18,31,19],[33,15,33,17],[45,31,45,36],[45,20,45,24],[45,25,45,30],[44,25,44,30],[44,15,44,17],[38,18,38,19],[44,31,44,36],[34,46,51,47],[33,31,33,36],[38,31,38,36],[36,31,36,36],[39,31,39,36],[39,25,39,30],[35,25,35,30],[1,1,1,9],[1,10,1,36],[7,31,7,36],[14,20,14,22],[14,23,14,24],[7,20,7,24],[9,2,9,36],[19,31,19,36],[14,25,14,30],[15,25,15,30],[17,25,17,30],[18,25,18,30],[17,23,17,24],[15,15,15,17],[18,4,18,14],[12,20,12,22],[12,23,12,24],[16,2,16,36],[17,2,22,3],[12,25,12,30],[21,31,21,36],[20,31,20,36],[22,31,22,36],[22,25,22,30],[13,23,13,24],[12,31,12,36],[13,25,13,30],[13,4,13,14],[14,18,14,19],[13,15,13,17],[13,20,13,22],[24,31,24,36],[15,31,15,36],[14,31,14,36],[24,23,24,24],[13,31,13,36],[18,31,18,36],[17,31,17,36],[21,23,21,24],[20,25,20,30],[20,23,20,24],[19,25,19,30],[24,2,24,14],[23,2,23,14],[20,15,20,17],[19,18,19,19],[20,20,20,22],[21,20,21,22],[17,20,17,22],[23,31,23,36],[23,25,23,30],[22,20,22,22],[23,23,23,24],[15,20,15,22],[15,23,15,24],[18,23,18,24],[19,23,19,24],[18,20,18,22],[23,20,23,22],[19,20,19,22],[30,18,30,19],[45,18,45,19],[45,15,45,17],[44,18,44,19],[33,4,33,14],[38,4,38,14],[28,4,28,14],[34,31,34,36],[43,2,43,14],[36,2,36,14],[44,23,44,24],[34,4,34,14],[34,18,34,19],[29,18,29,19],[45,2,45,14],[44,2,44,14],[43,31,43,36],[133,2,133,11],[135,21,137,36],[136,2,136,11],[175,1,177,37],[150,1,150,37],[141,21,143,36],[142,2,142,11],[144,21,146,36],[145,2,145,11],[153,1,153,2],[153,3,153,35],[154,3,154,29],[154,30,154,35],[156,3,156,29],[156,30,156,35],[173,3,173,27],[172,3,172,27],[171,3,171,27],[173,28,173,36],[169,28,169,36],[171,32,171,36],[171,28,171,31],[170,3,170,36],[172,32,172,36]]}
[]
[null,"Podmiot (Imię i Nazwisko/Nazwa):",null,null,null,null,null,null,null,null,{"$f":"'I.i II Ogólne i  Ident.'!U34&'I.i II Ogólne i  Ident.'!W38&'I.i II Ogólne i  Ident.'!AD34&'I.i II Ogólne i  Ident.'!W38&'I.i II Ogólne i  Ident.'!C34","v":"  "}]
[]
[null,"VI. PLAN FINANSOWY OPERACJI"]
[]
[null,null,null,null,null,null,null,null,null,null,null,null,null,null,null,null,null,null,null,null,null,null,null,null,null,null,null,null,null,null,null,null,null,null,null,null,null,null,null,null,null,null,null,500000]
[null,"1.","Planowane koszty realizacji operacji"]
[null,null,"Nazwa wskaźnika",null,null,null,null,null,null,null,null,null,null,null,null,"Ilość ",null,null,null,null,"Powierzchnia/\nObjętość",null,null,null,null,"Całkowity koszt operacji\n(w zł z VAT)",null,null,null,null,null,"Koszty kwalifikowalne operacji (w zł bez VAT)"]
[null,null,1,null,null,null,null,null,null,null,null,null,null,null,null,2,null,null,null,null,3,null,null,null,null,4,null,null,null,null,null,5]
[null,null,"1.1. Planowane do wybudowania budynki produkcyjne"]
[null,null,"w tym:",null,"obory",null,null,null,null,null,null,null,null,null,null,null,null,null,"szt",null,null,null,null,"m2"]
[null,null,null,null,"chlewnie",null,null,null,null,null,null,null,null,null,null,null,null,null,"szt",null,null,null,null,"m2"]
[null,null,null,null,"inne budynki przeznaczone na inwentarz żywy",null,null,null,null,null,null,null,null,null,null,null,null,null,"szt",null,null,null,null,"m2"]
[null,null,null,null,"szklarnie",null,null,null,null,null,null,null,null,null,null,null,null,null,"szt",null,null,null,null,"m2"]
[null,null,null,null,"magazyny paszowe",null,null,null,null,null,null,null,null,null,null,null,null,null,"szt",null,null,null,null,"m2"]
[null,null,null,null,"pozostałe budynki gospodarcze",null,null,null,null,null,null,null,null,null,null,null,null,null,"szt",null,null,null,null,"m2"]
[null,null,"1.2. Planowane do modernizacji budynki produkcyjne"]
[null,null,"w tym:",null,"obory",null,null,null,null,null,null,null,null,null,null,null,null,null,"szt",null,null,null,null,"m2"]
[null,null,null,null,"chlewnie",null,null,null,null,null,null,null,null,null,null,null,null,null,"szt",null,null,null,null,"m2"]
[null,null,null,null,"inne budynki przeznaczone na inwentarz żywy",null,null,null,null,null,null,null,null,null,null,null,null,null,"szt",null,null,null,null,"m2"]
[null,null,null,null,"szklarnie",null,null,null,null,null,null,null,null,null,null,null,null,null,"szt",null,null,null,null,"m2"]
[null,null,null,null,"magazyny paszowe",null,null,null,null,null,null,null,null,null,null,null,null,null,"szt",null,null,null,null,"m2"]
[null,null,null,null,"pozostałe budynki gospodarcze",null,null,null,null,null,null,null,null,null,null,null,null,null,"szt",null,null,null,null,"m2"]
[null,null,"1.3. Płyty obornikowe",null,null,null,null,null,null,null,null,null,null,null,null,null,null,null,"szt",null,null,null,null,"m2"]
[null,null,"1.4. Zbiorniki na gnojówkę \ni gnojowicę",null,null,null,null,null,null,null,null,null,null,null,null,null,null,null,"szt",null,null,null,null,"m3"]
[null,null,"1.5. Planowane do zakupienia sprzęty ruchome"]
[null,null,"w tym:",null,"ciągniki rolnicze",null,null,null,null,null,null,null,null,null,null,null,null,null,"szt"]
[null,null,null,null,"ładowarki samobieżne",null,null,null,null,null,null,null,null,null,null,null,null,null,"szt"]
[null,null,null,null,"kombajny zbożowe",null,null,null,null,null,null,null,null,null,null,null,null,null,"szt"]
[null,null,null,null,"maszyny do zbioru (z wyłączeniem kombajnów zbożowych) ",null,null,null,null,null,null,null,null,null,null,null,null,null,"szt"]
[null,null,null,null,"przyczepy transportowe",null,null,null,null,null,null,null,null,null,null,null,null,null,"szt"]
[null,null,null,null,"narzędzia i maszyny do uprawy gleby",null,null,null,null,null,null,null,null,null,null,null,null,null,"szt"]
[null,null,null,null,"maszyny do nawożenia",null,null,null,null,null,null,null,null,null,null,null,null,null,"szt"]
[null,null,null,null,"maszyny i urządzenia do siewu i sadzenia",null,null,null,null,null,null,null,null,null,null,null,null,null,"szt"]
[null,null,null,null,"pozostałe maszyny i urządzenia",null,null,null,null,null,null,null,null,null,null,null,null,null,"szt"]
[null,null,null,null,"elementy wyposażenia, elementy maszyn, narzędzi, wyposażenie dodatkowe",null,null,null,null,null,null,null,null,null,null,null,null,null,"szt"]
[null,null,"1.6. Planowany do zakupu sprzęt komputerowy",null,null,null,null,null,null,null,null,null,null,null,null,null,null,null,"szt"]
[null,null,"1.7. Elementy infrastruktury technicznej"]
[null,null,"w tym:",null,"place manewrowe",null,null,null,null,null,null,null,null,null,null,null,null,null,"szt",null,null,null,null,"m2"]
[null,null,null,null,"drogi dojazdowe",null,null,null,null,null,null,null,null,null,null,null,null,null,"szt",null,null,null,null,"mb"]
[]
[]
[]
[null,null,"1.8. Planowane  do założenia sady lub plantacje krzewów owocowych, gatunków owocujących efektywnie dłużej niż 5 lat",null,null,null,null,null,null,null,null,null,null,null,null,null,null,null,"szt",null,null,null,null,"ha"]
[null,null,"1.9. Planowane do wybudowania lub zmodernizowania obiekty służące produkcji i sprzedaży bezpośredniej w gospodarstwach rolnych",null,null,null,null,null,null,null,null,null,null,null,null,null,null,null,"szt",null,null,null,null,"m2"]
[null,null,"1.10. Pozostałe inwestycje",null,null,null,null,null,null,null,null,null,null,null,null,null,null,null,"szt"]
[null,null,"1.11. Koszty ogólne"]
[null,null,"1.12. Koszty niekwalifikowalne"]
[null,null,"1.13. Suma kosztów",null,null,null,null,null,null,null,null,null,null,null,null,null,null,null,null,null,null,null,null,null,null,{"$f":"SUM(Z11:AE16)+SUM(Z18:AE25)+SUM(Z27:AE37)+SUM(Z39:AE40)+SUM(Z44:AE47)+Z48","v":0},null,null,null,null,null,{"$f":"SUM(AF11:AK16)+SUM(AF18:AK25)+SUM(AF27:AK37)+SUM(AF39:AK40)+SUM(AF44:AK48)","v":0}]
[]
[null,"2.","Limit pomocy na gospodarstwo i beneficjenta (w zł)",null,null,null,null,null,null,null,null,null,null,null,null,null,null,null,null,null,null,null,null,null,null,null,null,null,null,null,null,"(wybierz z listy)",null,null,null,null,null,null,null,null,null,null,null,null,"(wybierz z listy)"]
[null,null,null,null,null,null,null,null,null,null,null,null,null,null,null,null,null,null,null,null,null,null,null,null,null,null,null,null,null,null,null,null,null,null,null,null,null,null,null,null,null,null,null,null,200000]
[null,"3.","Pomoc uzyskana uprzednio w ramach PROW na lata 2014-2020 w zakresie typu operacji \"MODERNIZACJA GOSPODARSTW ROLNYCH\" w ramach poddziałania \"WSPARCIE INWESTYCJI W GOSPODARSTWACH ROLNYCH\" oraz typu operacji \"RESTRUKTURYZACJA MAŁYCH GOSPODARSTW\" w ramach poddziałania \"POMOC NA ROZPOCZĘCIE DZIAŁALNOŚCI GOSPODARCZEJ NA RZECZ ROZWOJU MAŁYCH GOSPODARSTW\" (kwoty pomocy wypłacone lub określone w umowie o przyznaniu pomocy/decyzji) ",null,null,null,null,null,null,null,null,null,null,null,null,null,null,null,null,null,null,null,null,null,null,null,null,null,null,null,null,null,null,null,null,null,null,null,null,null,null,null,null,null,500000]
[null,null,null,null,null,null,null,null,null,null,null,null,null,null,null,null,null,null,null,null,null,null,null,null,null,null,null,null,null,null,null,null,null,null,null,null,null,null,null,null,null,null,null,null,900000]
[]
[null,null,"Numer umowy/ numer decyzji",null,null,null,null,null,null,null,null,null,null,null,null,null,null,null,null,null,null,null,null,null,null,null,null,null,"Kwota (w zł)"]
[]
[]
[null,null,"3.1."]
[null,null,"3.2."]
[null,null,"3.3."]
[null,null,"3.4."]
[null,null,"3.5."]
[null,null,"3.6. Suma pkt  3.1. - 3.5.:",null,null,null,null,null,null,null,null,null,null,null,null,null,null,null,null,null,null,null,null,null,null,null,null,null,{"$f":"SUM(AC59:AK63)","v":0}]
[]
[null,"4.","Kwota do wykorzystania"]
[]
[null,"5.","Poziom współfinansowania operacji nie więcej niż (procentowo):",null,null,null,null,null,null,null,null,null,null,null,null,null,null,null,null,null,null,null,null,null,null,null,null,null,null,null,null,"(wybierz z listy)",null,null,null,null,null,null,null,"(wybierz z listy)"]
[null,null,null,null,null,null,null,null,null,null,null,null,null,null,null,null,null,null,null,null,null,null,null,null,null,null,null,null,null,null,null,null,null,null,null,null,null,null,null,0.5]
[null,"6.","Podział na etapy planowanej do realizacji operacji:",null,null,null,null,null,null,null,null,null,null,null,null,null,null,null,null,null,null,null,null,null,null,null,null,null,null,null,null,null,null,null,null,null,null,null,null,0.6]
[]
[null,"6.1.","Operacja związana bezpośrednio z budową, modernizacją budynków inwentarskich, w tym ich wyposażaniem, lub adaptacją innych istniejących w gospodarstwie budynków na budynki inwentarskie, w tym ich wyposażaniem, lub budową lub modernizacją magazynów paszowych w gospodarstwach, w których jest prowadzona produkcja zwierzęca, w tym ich wyposażaniem:"]
[null,null,"Etapy5:",null,null,null,null,null,null,null,null,null,null,null,null,null,null,null,null,null,null,"Koszty kwalifikowalne operacji",null,null,null,null,null,null,null,"Wnioskowana kwota pomocy "]
[]
[null,null,"6.1.1    I etap operacji"]
[null,null,"6.1.2.   II etap operacji"]
[null,null,"6.1.3.   III etap operacji"]
[null,null,"6.1.4.   IV etap operacji"]
[null,null,"6.1.5.   V etap operacji"]
[null,null,"6.1.6. Suma pkt. 6.1.1. - 6.1.5.:",null,null,null,null,null,null,null,null,null,null,null,null,null,null,null,null,null,null,{"$f":"SUM(V75:AC79)","v":0},null,null,null,null,null,null,null,{"$f":"SUM(AD75:AK79)","v":0}]
[]
[null,"5Operacja obejmująca wyłącznie inwestycje niepolegające na nabyciu rzeczy będących przedmiotem leasingu może być realizowana maksymalnie w 2 etapach. W przypadku operacji obejmującej inwestycje polegające na nabyciu rzeczy będących przedmiotem leasingu pomoc może być wypłacona maksymalnie w 5 etapach z zastrzeżeniem, że wniosek o płatność będzie składany nie częściej niż co 6 miesięcy."]
[]
[]
[]
[]
[]
[null,"6.2.","Operacja niezwiązana bezpośrednio z budową, modernizacją budynków inwentarskich, w tym ich wyposażaniem, lub adaptacją innych istniejących w gospodarstwie budynków na budynki inwentarskie, w tym ich wyposażaniem, lub budową lub modernizacją magazynów paszowych w gospodarstwach, w których jest prowadzona produkcja zwierzęca, w tym ich wyposażaniem:"]
[null,null,"Etapy5:",null,null,null,null,null,null,null,null,null,null,null,null,null,null,null,null,null,null,"Koszty kwalifikowalne operacji",null,null,null,null,null,null,null,"Wnioskowana kwota pomocy "]
[]
[null,null,"6.2.1.   I etap operacji"]
[null,null,"6.2.2.   II etap operacji"]
[null,null,"6.2.3.   III etap operacji"]
[null,null,"6.2.4.   IV etap operacji"]
[null,null,"6.2.5.   V etap operacji"]
[null,null,"6.2.6. Suma pkt. 6.2.1. - 6.2.5.:",null,null,null,null,null,null,null,null,null,null,null,null,null,null,null,null,null,null,{"$f":"SUM(V91:AC95)","v":0},null,null,null,null,null,null,null,{"$f":"SUM(AD91:AK95)","v":0}]
[]
[null,"6.3."," Podział na etapy planowanej do realizacji operacji ogółem:"]
[null,null,"Etapy5:",null,null,null,null,null,null,null,null,null,"Planowany termin zakończenia etapu (miesiąc/rok)",null,null,null,null,null,null,null,null,"Koszty kwalifikowalne operacji",null,null,null,null,null,null,null,"Wnioskowana kwota pomocy "]
[]
[]
[null,null,"6.3.1.   I etap operacji",null,null,null,null,null,null,null,null,null,null,null,null,"-",null,null,null,null,null,{"$f":"V75+V91","v":0},null,null,null,null,null,null,null,{"$f":"AD75+AD91","v":0}]
[]
[]
[null,null,"6.3.2.   II etap operacji",null,null,null,null,null,null,null,null,null,null,null,null,"-",null,null,null,null,null,{"$f":"V76+V92","v":0},null,null,null,null,null,null,null,{"$f":"AD76+AD92","v":0}]
[]
[]
[null,null,"6.3.3.   III etap operacji",null,null,null,null,null,null,null,null,null,null,null,null,"-",null,null,null,null,null,{"$f":"V77+V93","v":0},null,null,null,null,null,null,null,{"$f":"AD77+AD93","v":0}]
[]
[]
[null,null,"6.3.4.   IV etap operacji",null,null,null,null,null,null,null,null,null,null,null,null,"-",null,null,null,null,null,{"$f":"V78+V94","v":0},null,null,null,null,null,null,null,{"$f":"AD78+AD94","v":0}]
[]
[]
[null,null,"6.3.5.   V etap operacji",null,null,null,null,null,null,null,null,null,null,null,null,"-",null,null,null,null,null,{"$f":"V79+V95","v":0},null,null,null,null,null,null,null,{"$f":"AD79+AD95","v":0}]
[]
[null,null,"6.3.6. Suma pkt. 6.3.1. - 6.3.5.:",null,null,null,null,null,null,null,null,null,null,null,null,null,null,null,null,null,null,{"$f":"SUM(V102:AC114)","v":0},null,null,null,null,null,null,null,{"$f":"SUM(AD102:AK114)","v":0}]
[]
[]
[]
[]
[null,"7.","Wnioskowana zaliczka",null,null,null,null,null,null,null,null,null,null,null,null,null,null,null,null,null,null,null,null,null,null,null,null,null,null,null,null,"(wybierz z listy)",null,null,null,null,null,null,null,"(wybierz z listy)"]
[null,null,null,null,null,null,null,null,null,null,null,null,null,null,null,null,null,null,null,null,null,null,null,null,null,null,null,null,null,null,null,null,null,null,null,null,null,null,null,"TAK"]
[null,null,null,null,null,null,null,null,null,null,null,null,null,null,null,null,null,null,null,null,null,null,null,null,null,null,null,null,null,null,null,null,null,null,null,null,null,null,null,"NIE"]
[null,"7.1.",null,"Wysokość zaliczki",null,null,null,null,null,null,null,null,null,null,null,null,null,null,null,null,null,null,null,null,null,null,null,null,null,null,null,null,","]
[null,"7.2. ",null,"Wypłata zaliczki:"]
[]
[null,"7.2.1. ",null,"jednorazowo",null,null,null,null,null,null,null,null,null,null,null,null,null,null,null,null,null,null,null,null,null,null,null,null,null,null,"(wybierz z listy)"]
[]
[null,"7.2.2. ",null,"w transzach",null,null,null,null,null,"(wybierz z listy)",null,null,null,null,null,null,null,null,null,"liczba transz:"]
[]
[null,null,"Transze zaliczki",null,null,null,null,null,null,null,null,null,"Termin wypłaty transzy (miesiąc/rok)",null,null,null,null,null,null,null,null,"Wnioskowana kwota transzy"]
[]
[]
[null,null,"7.2.2.1.  I transza zaliczki",null,null,null,null,null,null,null,null,null,null,null,null,"-"]
[]
[]
[null,null,"7.2.2.2.  II transza zaliczki6 ",null,null,null,null,null,null,null,null,null,null,null,null,"-"]
[]
[]
[null,null,"7.2.2.3.  III transza zaliczki 6",null,null,null,null,null,null,null,null,null,null,null,null,"-"]
[]
[]
[null,null,"7.2.2.4.  IV transza zaliczki 6",null,null,null,null,null,null,null,null,null,null,null,null,"-"]
[]
[]
[null,null,"7.2.2.5.  V transza zaliczki 6",null,null,null,null,null,null,null,null,null,null,null,null,"-"]
[]
[]
[null,"5Operacja obejmująca wyłącznie inwestycje niepolegające na nabyciu rzeczy będących przedmiotem leasingu może być realizowana maksymalnie w 2 etapach. W przypadku operacji obejmującej inwestycje polegające na nabyciu rzeczy będących przedmiotem leasingu pomoc może być wypłacona maksymalnie w 5 etapach z zastrzeżeniem, że wniosek o płatność będzie składany nie częściej niż co 6 miesięcy"]
[]
[null,"6 wypłata drugiej i kolejnych transz nastąpi po rozliczeniu we wniosku o płatność, określonej w umowie o przyznaniu pomocy części, nie niższej jednak niż 60%, dotychczas otrzymanej zaliczki."]
[]
[]
[null,"7.3.",null,"Rozliczenie zaliczki wypłaconej jednorazowo w przypadku operacji realizowanych w wielu etapach\n(tj. od 2 do 5 etapów) nastąpi:"]
[null,"7.3.1.",null,"w ramach pierwszego wniosku o płatność (pośrednią)",null,null,null,null,null,null,null,null,null,null,null,null,null,null,null,null,null,null,null,null,null,null,null,null,null,null,"(wybierz z listy)"]
[]
[null,"7.3.2.",null,"w ramach wniosku o płatność końcową",null,null,null,null,null,null,null,null,null,null,null,null,null,null,null,null,null,null,null,null,null,null,null,null,null,null,"(wybierz z listy)"]
[]
[null,"7.3.3.",null,"w określonych kwotach w ramach kolejnych wniosków o płatność",null,null,null,null,null,null,null,null,null,null,null,null,null,null,null,null,null,null,null,null,null,null,null,null,null,null,"(wybierz z listy)"]
[]
[null,null,null,null,null,null,null,null,null,null,null,null,null,null,null,null,null,null,null,null,null,null,null,null,null,null,null,null,null,null,null,null,null,null,null,null,null,null,null,null,null,null,"(wybierz z listy)"]
[]
[]
[null,"8.","Określenie możliwości realizacji operacji przez podmiot ubiegający się o przyznanie pomocy bez udziału środków publicznych"]
[]
[null,null,"Pytanie",null,null,null,null,null,null,null,null,null,null,null,null,null,null,null,null,null,null,null,null,null,null,null,null,null,"Odpowiedź (należy wstawić znak X we właściwym polu)"]
[null,null,null,null,null,null,null,null,null,null,null,null,null,null,null,null,null,null,null,null,null,null,null,null,null,null,null,null,"TAK",null,null,null,"NIE"]
[null,null,"A.","Określenie poziomu i zakresu, do jakiego podmiot ubiegający się o przyznanie pomocy zrealizowałby inwestycję bez pomocy publicznej:"]
[null,null,"1.","Czy planowana do realizacji operacja powstałaby bez pomocy publicznej w zakresie identycznym jak wskazany we wniosku o przyznanie pomocy, z zastosowaniem tych samych rozwiązań technicznych / technologicznych?"]
[null,null,"2.","Jeżeli w punkcie A1 zaznaczono odpowiedź NIE, należy podać wartość netto nakładów inwestycyjnych, które zostałyby poniesione w przypadku nieotrzymania pomocy (szacunkowo w zł)."]
[null,null,"B.","Określenie czasu realizacji inwestycji przez podmiot ubiegający się o przyznanie pomocy:"]
[null,null,"3.","Czy w przypadku niekorzystania z pomocy finansowej podmiot ubiegający się o przyznanie pomocy rozpocząłby realizację inwestycji w tym samym czasie?"]
[null,null,"4.","Czy w przypadku niekorzystania z pomocy finansowej podmiot ubiegający się o przyznanie pomocy zakończyłby inwestycję w tym samym czasie (tzn. w miesiącu, w którym zaplanowano złożenie wniosku o płatność)?"]
[null,null,"5.","Jeżeli w punkcie B3 lub B4 wskazano odpowiedź NIE, należy podać, o ile dłużej trwałby proces inwestycyjny (od momentu rozpoczęcia inwestycji do momentu złożenia wniosku o płatność) w przypadku niekorzystania z pomocy finansowej przez podmiot ubiegający się o przyznanie pomocy (w miesiącach)."]

{"sheet":"VII.Inf.zał.","index":11,"n_rows":120,"n_cols":35,"rows_kept":120,"cut":false,"hidden":false,"merged":[[119,1,119,35],[4,1,4,35],[53,1,55,2],[53,3,55,26],[3,1,3,35],[5,1,7,2],[5,3,7,26],[5,27,7,29],[5,30,7,32],[41,1,43,2],[41,3,43,26],[41,27,43,29],[50,3,52,26],[50,27,52,29],[47,1,49,2],[47,3,49,26],[47,27,49,29],[44,27,46,29],[26,1,28,2],[26,3,28,26],[26,27,28,29],[23,1,25,2],[56,1,58,2],[62,1,64,2],[53,27,55,29],[56,3,58,26],[56,27,58,29],[68,1,70,2],[77,1,79,2],[62,3,64,26],[62,27,64,29],[74,3,76,26],[74,27,76,29],[77,3,79,26],[77,27,79,29],[59,3,61,26],[92,27,94,29],[89,1,91,2],[92,1,94,2],[95,1,97,2],[95,3,97,26],[95,27,97,29],[89,27,91,29],[104,1,106,2],[83,3,85,26],[83,27,85,29],[86,3,88,26],[83,1,85,2],[104,27,106,29],[120,1,120,35],[21,40,23,63],[24,40,28,63],[29,40,29,63],[30,40,31,63],[32,40,32,63],[80,1,82,2],[80,3,82,26],[86,1,88,2],[92,3,94,26],[89,3,91,26],[80,27,82,29],[86,27,88,29],[38,1,40,2],[38,3,40,26],[38,27,40,29],[68,3,70,26],[44,1,46,2],[32,1,34,2],[32,3,34,26],[68,27,70,29],[71,3,73,26],[71,27,73,29],[59,1,61,2],[93,40,94,63],[69,40,80,63],[81,40,82,63],[83,40,92,63],[33,40,35,63],[36,40,38,63],[39,40,40,63],[53,40,53,63],[54,40,55,63],[56,40,56,63],[1,1,1,9],[2,1,2,37],[1,10,1,35],[57,40,59,63],[60,40,62,63],[63,40,65,63],[66,40,68,63],[71,1,73,2],[74,1,76,2],[59,27,61,29],[5,33,7,35],[50,1,52,2],[14,36,16,41],[8,1,8,35],[9,1,11,2],[9,3,11,26],[9,27,11,29],[12,1,12,35],[13,1,13,35],[14,3,16,26],[23,3,25,26],[65,1,67,2],[65,3,67,26],[65,27,67,29],[17,36,19,41],[14,1,19,2],[17,3,19,26],[17,27,19,29],[29,3,31,26],[32,27,34,29],[35,3,37,26],[51,40,52,63],[35,27,37,29],[42,40,43,63],[44,3,46,26],[45,38,50,66],[29,27,31,29],[35,1,37,2],[29,1,31,2],[20,1,22,2],[20,3,22,26],[20,27,22,29],[23,27,25,29],[14,27,16,29],[107,1,109,2],[107,3,109,26],[107,27,109,29],[98,1,100,2],[98,3,100,26],[98,27,100,29],[101,1,103,2],[101,3,103,26],[101,27,103,29],[104,3,106,26],[116,1,118,2],[116,3,118,26],[116,27,118,29],[110,1,112,2],[110,3,112,26],[110,27,112,29],[113,1,115,2],[113,3,115,26],[113,27,115,29]]}
[]
[null,"Podmiot (Imię i Nazwisko/Nazwa):",null,null,null,null,null,null,null,null,{"$f":"'I.i II Ogólne i  Ident.'!U34&'I.i II Ogólne i  Ident.'!W38&'I.i II Ogólne i  Ident.'!AD34&'I.i II Ogólne i  Ident.'!W38&'I.i II Ogólne i  Ident.'!C34","v":"  "}]
[]
[null,"VII. INFORMACJA O ZAŁĄCZNIKACH"]
[null,"Do wniosku o przyznanie pomocy dołącza się:"]
[null,"Lp.",null,"Nazwa załącznika",null,null,null,null,null,null,null,null,null,null,null,null,null,null,null,null,null,null,null,null,null,null,null,"Liczba załączników",null,null,"Tak",null,null,"ND"]
[]
[]
[null,"Załącznik niezbędny do przeprowadzenia wstępnej weryfikacji spełniania podstawowych wymogów formalnych:"]
[null,"1.",null,"Wniosek o wpis do ewidencji producentów, o której mowa w przepisach o krajowym systemie ewidencji producentów, ewidencji gospodarstw rolnych oraz ewidencji wniosków o przyznanie płatności, jeżeli podmiotowi ubiegającemu się o przyznanie pomocy, jego małżonkowi, spółce cywilnej, której jest wspólnikiem, nie został nadany numer identyfikacyjny - kopia, a w przypadku składania wniosku o wpis tego podmiotu do tej ewidencji łącznie z wnioskiem o przyznanie pomocy – oryginał wniosku"]
[null,null,null,null,null,null,null,null,null,null,null,null,null,null,null,null,null,null,null,null,null,null,null,null,null,null,null,null,null,null,null," ",null,null," "]
[]
[null,"UWAGA: Niedołączenie wymienionego powyżej załącznika przez podmiot ubiegający się o przyznanie pomocy, który nie wypełnił pola 1.1 części II wniosku, zgodnie z przepisem  § 14 ust. 1 rozporządzenia, skutkuje pozostawieniem wniosku bez rozpatrzenia (z zastrzeżeniem § 14 ust. 2 rozporządzenia)."]
[null,"Pozostałe załączniki wymagane do przeprowadzenia weryfikacji wniosku"]
[null,"2.",null,"Biznesplan: \n- na elektronicznym nośniku danych (CD lub DVD), opracowany na formularzu udostępnionym przez ARiMR, oraz"]
[null,null,null,null,null,null,null,null,null,null,null,null,null,null,null,null,null,null,null,null,null,null,null,null,null,null,null,null,null,null,null," ",null,null," "]
[]
[null,null,null,"- wydruk arkusza podsumowującego biznesplan - oryginał"]
[null,null,null,null,null,null,null,null,null,null,null,null,null,null,null,null,null,null,null,null,null,null,null,null,null,null,null,null,null,null,null," ",null,null," "]
[]
[null,"3.",null,"Oświadczenie Współposiadacza gospodarstwa o wyrażeniu zgody na ubieganie się o przyznanie pomocy przez podmiot ubiegający się o przyznanie pomocy, sporządzone na formularzu opracowanym i udostępnionym przez ARiMR - w przypadku gdy operacja będzie realizowana w gospodarstwie stanowiącym przedmiot współposiadania (Załącznik Nr 1 do Wniosku o przyznanie pomocy) - oryginał"]
[null,null,null,null,null,null,null,null,null,null,null,null,null,null,null,null,null,null,null,null,null,null,null,null,null,null,null,null,null,null,null," ",null,null," "]
[]
[null,"4.",null,"Oświadczenie Właściciela albo Współwłaściciela gospodarstwa albo jego części o wyrażeniu zgody na realizację operacji,sporządzone na formularzu opracowanym i udostępnionym przez ARiMR - w przypadku gdy operacja będzie realizowana w gospodarstwie niestanowiącym własności podmiotu ubiegającego się o przyznanie pomocy albo stanowiącym współwłasność  tego podmiotu i nie dotyczy wyłącznie nabycia rzeczy ruchomych, które nie wymagają instalacji (Załącznik Nr 2 do Wniosku o przyznanie pomocy) - oryginał"]
[null,null,null,null,null,null,null,null,null,null,null,null,null,null,null,null,null,null,null,null,null,null,null,null,null,null,null,null,null,null,null," ",null,null," "]
[]
[null,"5.",null,"Oświadczenie Współposiadacza nieruchomości wchodzącej w skład gospodarstwa o wyrażeniu zgody na ubieganie się o przyznanie pomocy przez podmiot ubiegający się o przyznanie pomocy, sporządzone na formularzu opracowanym i udostępnionym przez ARiMR - w przypadku gdy operacja będzie realizowana w gospodarstwie, w skład którego wchodzi nieruchomość będąca przedmiotem współposiadania (Załącznik Nr 3 do Wniosku o przyznanie pomocy) - oryginał"]
[null,null,null,null,null,null,null,null,null,null,null,null,null,null,null,null,null,null,null,null,null,null,null,null,null,null,null,null,null,null,null," ",null,null," "]
[]
[null,"6.",null,"Opis zadań wymienionych w zestawieniu rzeczowo-finansowym operacji, sporządzony na formularzu opracowanym i udostępnionym przez ARiMR – w przypadku operacji, w ramach której będzie realizowane co najmniej jedno zadanie niewymagające załączenia do wniosku kosztorysu, o którym mowa w pkt. 14 (Załącznik Nr 4 do Wniosku o przyznanie pomocy) - oryginał"]
[null,null,null,null,null,null,null,null,null,null,null,null,null,null,null,null,null,null,null,null,null,null,null,null,null,null,null,null,null,null,null,null,null,null," "]
[]
[null,"7.",null,"Dokument tożsamości - w przypadku gdy podmiot ubiegający się o przyznanie pomocy jest osobą fizyczną albo wspólnikiem spółki cywilnej będącym osobą fizyczną - kopia"]
[null,null,null,null,null,null,null,null,null,null,null,null,null,null,null,null,null,null,null,null,null,null,null,null,null,null,null,null,null,null,null," ",null,null," "]
[]
[null,"8.",null,"Umowa spółki cywilnej - w przypadku gdy operacja będzie realizowana w ramach wykonywania działalności gospodarczej w formie spółki cywilnej – kopia"]
[null,null,null,null,null,null,null,null,null,null,null,null,null,null,null,null,null,null,null,null,null,null,null,null,null,null,null,null,null,null,null," ",null,null," "]
[]
[null,"9.",null,"Uchwała wspólników spółki cywilnej upoważniająca wspólnika tej spółki do złożenia wniosku w imieniu wspólników – w przypadku gdy operacja będzie realizowana w ramach wykonywania działalności gospodarczej w formie spółki cywilnej i wspólnik składa wniosek w imieniu wspólników - kopia ",null,null,null,null,null,null,null,null,null,null,null,null,null,null,null,null,null,null,null,null,null,null,null," "]
[null,null,null,null,null,null,null,null,null,null,null,null,null,null,null,null,null,null,null,null,null,null,null,null,null,null,null,null,null,null,null," ",null,null," "]
[]
[null,"10.",null,"Zaświadczenie wydane przez naczelnika właściwego urzędu skarbowego potwierdzające wpis w ewidencji podatników podatku dochodowego od osób fizycznych z tytułu prowadzenia działów specjalnych produkcji rolnej - w przypadku gdy podmiot ubiegający się o przyznanie pomocy prowadzi produkcję w zakresie działów specjalnych produkcji rolnej - oryginał"]
[]
[]
[null,"11.",null,"Dokument albo dokumenty potwierdzające posiadanie kwalifikacji zawodowych, o których mowa w § 13 ust. 1 pkt 4 rozporządzenia, w przypadku operacji realizowanej przez młodego rolnika - kopia"]
[]
[]
[null,"12.",null,"Dokumenty potwierdzające osiągnięcie przychodu z tytułu prowadzenia działalności rolniczej, o którym mowa w § 2 ust. 3 rozporządzenia - kopia"]
[]
[]
[null,"13.",null,"Umowa, o której mowa w § 3 pkt 2 rozporządzenia  - w przypadku osób wspólnie wnioskujących – kopia"]
[]
[]
[null,"14.",null,"Kosztorys inwestorski – w przypadku gdy operacja obejmuje inwestycję polegającą na budowie, przebudowie lub remoncie połączonym z modernizacją - oryginał"]
[]
[]
[null,"15.",null,"Promesa umowy leasingu dotyczącej planowanego zakupu rzeczy wraz z harmonogramem spłat rat leasingowych z wyszczególnieniem części kapitałowej i części odsetkowej – w przypadku gdy operacja obejmuje inwestycje polegające na nabyciu rzeczy będących przedmiotem leasingu - kopia",null,null,null,null,null,null,null,null,null,null,null,null,null,null,null,null,null,null,null,null,null,null,null," "]
[null,null,null,null,null,null,null,null,null,null,null,null,null,null,null,null,null,null,null,null,null,null,null,null,null,null,null,null,null,null,null," ",null,null," "]
[]
[null,"16.",null,"Plan sprzedaży - oryginał lub umowa przedwstępna sprzedaży całej produkcji wytworzonej w gospodarstwie w związku z realizacją operacji – w przypadku gdy w związku z realizacją operacji wzrośnie produkcja - kopia",null,null,null,null,null,null,null,null,null,null,null,null,null,null,null,null,null,null,null,null,null,null,null," "]
[null,null,null,null,null,null,null,null,null,null,null,null,null,null,null,null,null,null,null,null,null,null,null,null,null,null,null,null,null,null,null," ",null,null," "]
[]
[null,"17.",null,"Dokument albo dokumenty potwierdzające posiadanie samoistne lub zależne gospodarstwa, w którym będzie realizowana operacja, przy czym w przypadku posiadania samoistnego nieruchomości, dla której księga wieczysta jest prowadzona w systemie informatycznym, o którym mowa w art. 251 ustawy z dnia 6 lipca 1982 r. o księgach wieczystych i hipotece (Dz. U. z 2013 r. poz. 707, z późn. zm.), jest wystarczające podanie numeru księgi wieczystej - kopia",null,null,null,null,null,null,null,null,null,null,null,null,null,null,null,null,null,null,null,null,null,null,null," "]
[null,null,null,null,null,null,null,null,null,null,null,null,null,null,null,null,null,null,null,null,null,null,null,null,null,null,null,null,null,null,null," ",null,null," "]
[]
[null,"18.",null,"Plan rozmieszczenia na terenie gospodarstwa budynków, budowli i plantacji wieloletnich oraz rzuty budynków służących do produkcji rolnej wraz z rozplanowaniem wewnętrznym – w przypadku operacji niedotyczącej wyłącznie zakupu maszyn lub urządzeń, które będą wykorzystywane wyłącznie poza budynkami i budowlami - oryginał",null,null,null,null,null,null,null,null,null,null,null,null,null,null,null,null,null,null,null,null,null,null,null," "]
[null,null,null,null,null,null,null,null,null,null,null,null,null,null,null,null,null,null,null,null,null,null,null,null,null,null,null,null,null,null,null," ",null,null," "]
[]
[null,"19.",null,"Projekt budowlany – w przypadku gdy operacja obejmuje inwestycję polegającą na budowie, przebudowie lub remoncie połączonym z modernizacją - kopia"]
[]
[]
[null,"20.",null,"Ostateczne pozwolenia, zezwolenia lub inne decyzje, których uzyskanie jest wymagane przez odrębne przepisy do realizacji inwestycji objętych operacją, a także inne dokumenty potwierdzające spełnienie określonych w odrębnych przepisach warunków realizacji inwestycji objętych operacją – w przypadku gdy w ramach operacji będą realizowane tego typu inwestycje - kopie",null,null,null,null,null,null,null,null,null,null,null,null,null,null,null,null,null,null,null,null,null,null,null," "]
[null,null,null,null,null,null,null,null,null,null,null,null,null,null,null,null,null,null,null,null,null,null,null,null,null,null,null,null,null,null,null," ",null,null," "]
[]
[null,"21.",null,"Zaświadczenie wystawione przez powiatowego lekarza weterynarii potwierdzające spełnianie wymagań w zakresie higieny i warunków utrzymania zwierząt – w przypadku gdy operacja jest związana z produkcją zwierzęcą - oryginał",null,null,null,null,null,null,null,null,null,null,null,null,null,null,null,null,null,null,null,null,null,null,null," "]
[null,null,null,null,null,null,null,null,null,null,null,null,null,null,null,null,null,null,null,null,null,null,null,null,null,null,null,null,null,null,null," ",null,null," "]
[]
[null,"22.",null,"Dokumentacja dotycząca ewidencji środków trwałych oraz wartości niematerialnych i prawnych – w przypadku podmiotów  ubiegających się o przyznanie pomocy obowiązanych do prowadzenia ewidencji zgodnie z przepisami o podatku dochodowym od osób fizycznych lub przepisami o rachunkowości - kopia",null,null,null,null,null,null,null,null,null,null,null,null,null,null,null,null,null,null,null,null,null,null,null," "]
[null,null,null,null,null,null,null,null,null,null,null,null,null,null,null,null,null,null,null,null,null,null,null,null,null,null,null,null,null,null,null," ",null,null," "]
[]
[null,"23.",null,"Dokumentacja dotycząca wykazu środków trwałych oraz wartości niematerialnych i prawnych – w przypadku podmiotów ubiegających się o przyznanie pomocy obowiązanych do prowadzenia wykazu zgodnie z przepisami o zryczałtowanym podatku dochodowym od niektórych przychodów osiąganych przez osoby fizyczne - kopia",null,null,null,null,null,null,null,null,null,null,null,null,null,null,null,null,null,null,null,null,null,null,null," "]
[null,null,null,null,null,null,null,null,null,null,null,null,null,null,null,null,null,null,null,null,null,null,null,null,null,null,null,null,null,null,null," ",null,null," "]
[]
[null,"24.",null,"Dokumenty potwierdzające uczestnictwo podmiotu ubiegającego się o przyznanie pomocy w unijnym systemie jakości, o którym mowa w art. 16 ust. 1 lit. a rozporządzenia nr 1305/2013 lub krajowym systemie jakości, o którym mowa w art. 16 ust. 1 lit. b tego rozporządzenia w ramach działania „Systemy jakości produktów rolnych i środków spożywczych” objętego PROW 2014-2020 - kopia",null,null,null,null,null,null,null,null,null,null,null,null,null,null,null,null,null,null,null,null,null,null,null," "]
[null,null,null,null,null,null,null,null,null,null,null,null,null,null,null,null,null,null,null,null,null,null,null,null,null,null,null,null,null,null,null," ",null,null," "]
[]
[null,"25.",null,"Dokument potwierdzający członkostwo w grupie producentów rolnych lub organizacji producentów - orginał",null,null,null,null,null,null,null,null,null,null,null,null,null,null,null,null,null,null,null,null,null,null,null," "]
[null,null,null,null,null,null,null,null,null,null,null,null,null,null,null,null,null,null,null,null,null,null,null,null,null,null,null,null,null,null,null," ",null,null," "]
[]
[null,"26.",null,"Umowa na dostawy produktów, których dotyczy operacja, zawarta na okres co najmniej jednego roku poprzedzającego dzień złożenia wniosku o przyznanie pomocy, z podmiotami mającymi miejsce zamieszkania albo siedzibę na obszarze województwa świętokrzyskiego - w przypadku operacji realizowanych w tym województwie - kopia.",null,null,null,null,null,null,null,null,null,null,null,null,null,null,null,null,null,null,null,null,null,null,null," "]
[null,null,null,null,null,null,null,null,null,null,null,null,null,null,null,null,null,null,null,null,null,null,null,null,null,null,null,null,null,null,null," ",null,null," "]
[]
[null,"27.",null,"Informacja o numerze rachunku bankowego podmiotu ubiegającego się o przyznanie pomocy – w przypadku gdy podmiot ten ubiega się o zaliczkę - oryginał",null,null,null,null,null,null,null,null,null,null,null,null,null,null,null,null,null,null,null,null,null,null,null," "]
[null,null,null,null,null,null,null,null,null,null,null,null,null,null,null,null,null,null,null,null,null,null,null,null,null,null,null,null,null,null,null," ",null,null," "]
[]
[null,"28.",null,"Inne dokumenty potwierdzające spełnienie warunków do przyznania pomocy:",null,null,null,null,null,null,null,null,null,null,null,null,null,null,null,null,null,null,null,null,null,null,null," "]
[null,null,null,null,null,null,null,null,null,null,null,null,null,null,null,null,null,null,null,null,null,null,null,null,null,null,null,null,null,null,null," ",null,null," "]
[]
[null,"28.1.",null,null,null,null,null,null,null,null,null,null,null,null,null,null,null,null,null,null,null,null,null,null,null,null,null," "]
[null,null,null,null,null,null,null,null,null,null,null,null,null,null,null,null,null,null,null,null,null,null,null,null,null,null,null,null,null,null,null," ",null,null," "]
[]
[null,"28.2",null,null,null,null,null,null,null,null,null,null,null,null,null,null,null,null,null,null,null,null,null,null,null,null,null," "]
[null,null,null,null,null,null,null,null,null,null,null,null,null,null,null,null,null,null,null,null,null,null,null,null,null,null,null,null,null,null,null," ",null,null," "]
[]
[null,"28.3",null,null,null,null,null,null,null,null,null,null,null,null,null,null,null,null,null,null,null,null,null,null,null,null,null," "]
[null,null,null,null,null,null,null,null,null,null,null,null,null,null,null,null,null,null,null,null,null,null,null,null,null,null,null,null,null,null,null," ",null,null," "]
[]
[null,"28.4",null,null,null,null,null,null,null,null,null,null,null,null,null,null,null,null,null,null,null,null,null,null,null,null,null," "]
[null,null,null,null,null,null,null,null,null,null,null,null,null,null,null,null,null,null,null,null,null,null,null,null,null,null,null,null,null,null,null," ",null,null," "]
[]
[null,"28.5",null,null,null,null,null,null,null,null,null,null,null,null,null,null,null,null,null,null,null,null,null,null,null,null,null," "]
[null,null,null,null,null,null,null,null,null,null,null,null,null,null,null,null,null,null,null,null,null,null,null,null,null,null,null,null,null,null,null," ",null,null," "]
[]
[null,"28.6",null,null,null,null,null,null,null,null,null,null,null,null,null,null,null,null,null,null,null,null,null,null,null,null,null," "]
[null,null,null,null,null,null,null,null,null,null,null,null,null,null,null,null,null,null,null,null,null,null,null,null,null,null,null,null,null,null,null," ",null,null," "]
[]
[null,"28.7",null,null,null,null,null,null,null,null,null,null,null,null,null,null,null,null,null,null,null,null,null,null,null,null,null," "]
[null,null,null,null,null,null,null,null,null,null,null,null,null,null,null,null,null,null,null,null,null,null,null,null,null,null,null,null,null,null,null," ",null,null," "]
[]
[null,"UWAGA: \nKopie dokumentów powinny być poświadczone za zgodność z oryginałem przez notariusza lub potwierdzone za zgodność z oryginałem przez upoważnionego pracownika Agencji lub podmiot, który wydał dokument, z tym że kopie dokumentów, o których mowa w pkt 13, 22, 23 mogą być również potwierdzone przez podmiot ubiegający się o przyznanie pomocy lub jedną z osób wspólnie wnioskujących."]

{"sheet":"VII.Inf.zał. NN","index":12,"n_rows":34,"n_cols":35,"rows_kept":34,"cut":false,"hidden":false,"merged":[[33,1,33,35],[24,1,26,2],[24,3,26,26],[24,27,26,29],[27,1,29,2],[27,3,29,26],[27,27,29,29],[21,1,23,2],[21,3,23,26],[21,27,23,29],[30,1,32,2],[30,3,32,26],[30,27,32,29],[15,1,17,2],[15,3,17,26],[15,27,17,29],[18,1,20,2],[18,3,20,26],[18,27,20,29],[9,1,11,2],[9,3,11,26],[9,27,11,29],[12,1,14,2],[12,3,14,26],[12,27,14,29],[1,1,1,9],[1,10,1,35],[2,1,2,37],[3,1,5,29],[6,1,8,2],[6,3,8,26],[6,27,8,29]]}
[]
[null,"Podmiot (Imię i Nazwisko/Nazwa):",null,null,null,null,null,null,null,null,{"$f":"'I.i II Ogólne i  Ident.'!U34&'I.i II Ogólne i  Ident.'!W38&'I.i II Ogólne i  Ident.'!AD34&'I.i II Ogólne i  Ident.'!W38&'I.i II Ogólne i  Ident.'!C34","v":"  "}]
[]
[null,"Dodatkowe załączniki wymagane do przeprowadzenia weryfikacji wniosku następcy prawnego Beneficjenta lub nabywcy"]
[null,null,null,null,null,null,null,null,null,null,null,null,null,null,null,null,null,null,null,null,null,null,null,null,null,null,null,null,null,null,null," ",null,null," "]
[]
[null,"29.",null,"Dodatkowe dane dotyczące wniosku następcy prawnego beneficjenta lub nabywcy - sporządzone na formularzu opracowanym i udostępnionym przez ARiMR (Załącznik Nr 5 do Wniosku o przyznanie pomocy) - oryginał",null,null,null,null,null,null,null,null,null,null,null,null,null,null,null,null,null,null,null,null,null,null,null," "]
[null,null,null,null,null,null,null,null,null,null,null,null,null,null,null,null,null,null,null,null,null,null,null,null,null,null,null,null,null,null,null," ",null,null," "]
[]
[null,"30.",null,"Uzasadnienie wniosku następcy prawnego/nabywcy - oryginał",null,null,null,null,null,null,null,null,null,null,null,null,null,null,null,null,null,null,null,null,null,null,null," "]
[null,null,null,null,null,null,null,null,null,null,null,null,null,null,null,null,null,null,null,null,null,null,null,null,null,null,null,null,null,null,null," ",null,null," "]
[]
[null,"31.",null,"Dokument potwierdzający fakt zaistnienia następstwa prawnego -   kopia ",null,null,null,null,null,null,null,null,null,null,null,null,null,null,null,null,null,null,null,null,null,null,null," "]
[null,null,null,null,null,null,null,null,null,null,null,null,null,null,null,null,null,null,null,null,null,null,null,null,null,null,null,null,null,null,null," ",null,null," "]
[]
[null,"32.",null,"Dokument potwierdzający fakt nabycia gospodarstwa lub jego części -  kopia ",null,null,null,null,null,null,null,null,null,null,null,null,null,null,null,null,null,null,null,null,null,null,null," "]
[null,null,null,null,null,null,null,null,null,null,null,null,null,null,null,null,null,null,null,null,null,null,null,null,null,null,null,null,null,null,null," ",null,null," "]
[]
[null,"33.",null,"Oświadczenie następcy prawnego o jego wstąpieniu w prawa i obowiązki beneficjenta wynikające z umowy o przyznaniu pomocy - sporządzone na formularzu udostępnionym przez ARiMR (Załącznik nr 6 do Wniosku o przyznanie pomocy) - oryginał",null,null,null,null,null,null,null,null,null,null,null,null,null,null,null,null,null,null,null,null,null,null,null," "]
[null,null,null,null,null,null,null,null,null,null,null,null,null,null,null,null,null,null,null,null,null,null,null,null,null,null,null,null,null,null,null," ",null,null," "]
[]
[null,"34.",null,"Oświadczenie osoby wspólnie wnioskującej o wyrażeniu zgody na przyznanie pomocy następcy prawnemu jednego z beneficjentów albo nabywcy gospodarstwa albo jego części, sporządzone na formularzu udostępnionym przez ARiMR - (Załącznik nr 7 do Wniosku o przyznanie pomocy) - oryginał",null,null,null,null,null,null,null,null,null,null,null,null,null,null,null,null,null,null,null,null,null,null,null," "]
[null,null,null,null,null,null,null,null,null,null,null,null,null,null,null,null,null,null,null,null,null,null,null,null,null,null,null,null,null,null,null," ",null,null," "]
[]
[null,"35.",null,"Umowa przejęcia długu - w przypadku, gdy podmiotem ubiegającym się o przyznanie pomocy jest nabywca gospodarstwa beneficjenta  – kopia ",null,null,null,null,null,null,null,null,null,null,null,null,null,null,null,null,null,null,null,null,null,null,null," "]
[null,null,null,null,null,null,null,null,null,null,null,null,null,null,null,null,null,null,null,null,null,null,null,null,null,null,null,null,null,null,null," ",null,null," "]
[]
[null,"36.",null,"Zaświadczenie wydane przez leasingodawcę o wyrażeniu zgody na zmianę strony promesy/umowy leasingowej zawartej z beneficjentem – w przypadku, gdy operacja obejmuje inwestycje polegające na nabyciu rzeczy będących przedmiotem leasingu i nie zostały zrefundowane wszystkie płatności leasingowe na rzecz beneficjenta  – oryginał",null,null,null,null,null,null,null,null,null,null,null,null,null,null,null,null,null,null,null,null,null,null,null," "]
[null,null,null,null,null,null,null,null,null,null,null,null,null,null,null,null,null,null,null,null,null,null,null,null,null,null,null,null,null,null,null," ",null,null," "]
[]
[null,"37.",null,"Umowa cesji wierzytelności - w przypadku, gdy podmiotem ubiegającym się o przyznanie pomocy jest nabywca gospodarstwa beneficjenta lub jego części i nie zostały zrealizowane przez ARiMR wszystkie płatności na rzecz beneficjenta – kopia"]
[]
[]
[null,"UWAGA: \nKopie dokumentów powinny być poświadczone za zgodność z oryginałem przez notariusza lub potwierdzone za zgodność z oryginałem przez upoważnionego pracownika Agencji lub podmiot, który wydał dokument, z tym że kopie dokumentów, o których mowa w pkt 13, 22, 23 mogą być również potwierdzone przez podmiot ubiegający się o przyznanie pomocy lub jedną z osób wspólnie wnioskujących."]

{"sheet":"VIII. Ośw. Podmiotu","index":13,"n_rows":34,"n_cols":34,"rows_kept":34,"cut":false,"hidden":false,"merged":[[29,2,29,35],[26,3,26,35],[27,3,27,35],[28,2,28,35],[20,2,20,35],[24,2,24,35],[21,2,21,35],[22,2,22,35],[23,2,23,35],[34,3,34,35],[31,22,32,35],[33,2,33,12],[33,22,33,35],[31,1,32,14],[19,2,19,35],[13,6,14,35],[3,2,3,34],[4,1,4,32],[7,6,8,35],[17,2,17,35],[18,2,18,35],[16,2,16,35],[1,1,1,9],[1,10,1,35],[13,2,14,5],[11,24,11,32],[9,33,9,34],[9,29,9,30],[11,2,11,20],[10,2,10,27],[7,2,8,5],[2,3,2,26],[5,33,5,34],[5,24,5,32],[5,2,5,21]]}
[]
[null,"Podmiot (Imię i Nazwisko/Nazwa):",null,null,null,null,null,null,null,null,{"$f":"'I.i II Ogólne i  Ident.'!U34&'I.i II Ogólne i  Ident.'!W38&'I.i II Ogólne i  Ident.'!AD34&'I.i II Ogólne i  Ident.'!W38&'I.i II Ogólne i  Ident.'!C34","v":"  "}]
[]
[null,null,"VIII. OŚWIADCZENIE PODMIOTU UBIEGAJĄCEGO SIĘ O PRZYZNANIE POMOCY"]
[]
[null,"1a.","Wnioskuję o przyznanie pomocy finansowej w wysokości:",null,null,null,null,null,null,null,null,null,null,null,null,null,null,null,null,null,null,null,null,null,null,null,null,null,null,null,null,null,null,"zł"]
[]
[null,null,"słownie zł.:"]
[]
[]
[]
[null,"1b.","Wnioskuję o wypłatę zaliczki w wysokości:",null,null,null,null,null,null,null,null,null,null,null,null,null,null,null,null,null,null,null,null,null," ",null,null,null,null,null,null,null,null,"zł"]
[]
[null,null,"słownie zł.:"]
[]
[]
[null,"2.","Oświadczam, że znane mi są zasady ubiegania się i przyznawania pomocy określone w przepisach rozporządzenia Ministra Rolnictwa i Rozwoju Wsi z dnia 21 sierpnia 2015 r. w sprawie szczegółowych warunków i trybu przyznawania oraz wypłaty pomocy finansowej na operacje typu „Modernizacja gospodarstw rolnych” w ramach poddziałania „Wsparcie inwestycji w gospodarstwach rolnych” objętego Programem Rozwoju Obszarów Wiejskich na lata 2014–2020 (Dz. U. poz 1371) oraz wymagania uszczegółowione w Instrukcji wypełniania wniosku o przyznanie pomocy, w tym zasady refundacji kosztów kwalifikowalnych określonych we wniosku, poniesionych w związku z realizacją operacji oraz zasady udzielania zaliczek.        "]
[null,"3.","Oświadczam, że koszty kwalifikowalne w niniejszym wniosku nie będą finansowane z innych środków publicznych."]
[null,"4.","Oświadczam, że realizacja operacji nie jest możliwa bez udziału środków publicznych."]
[null,"5.","Oświadczam, że informacje zawarte we wniosku oraz jego załącznikach są prawdziwe i zgodne ze stanem prawnym i faktycznym, znane mi są skutki odpowiedzialności karnej wynikającej z art. 297 § 1 ustawy z dnia 6 czerwca 1997 r. Kodeks karny (Dz.U. Nr 88, poz. 553, z późn. zm.)."]
[null,"6.","Oświadczam, że nie podlegam zakazowi dostępu do środków publicznych, o których mowa w art. 5 ust. 3 pkt 4 ustawy z dnia 27 sierpnia 2009 r. o finansach publicznych (Dz. U. z 2013 r., poz. 885, z późn. zm.), na podstawie prawomocnego orzeczenia sądu. Jednocześnie zobowiązuję się do niezwłocznego poinformowania Agencji o zakazie dostępu do środków publicznych,o których mowa w art. 5 ust. 3 pkt 4 ustawy z dnia 27 sierpnia 2009 r. o finansach publicznych, na podstawie prawomocnego orzeczenia sądu, orzeczonym w stosunku do mnie po złożeniu wniosku o przyznanie pomocy."]
[null,"7.","Oświadczam, że znane mi są regulacje art. 59 ust. 7 rozporządzenia Parlamentu Europejskiego i Rady (UE) nr  1306/2013 z dnia 17 grudnia 2013 r. w sprawie finansowania wspólnej polityki rolnej, zarządzania nią i monitorowania jej oraz uchylającego rozporządzenia Rady (EWG) nr 352/78, (WE) nr 165/94, (WE) nr 2799/98, (WE) nr 814/2000, (WE) nr 1290/2005 i (WE) nr 485/2008 (Dz. Urz. UE L 347 z 20.12.2013, str. 549, z późn. zm.) stanowiące, iż wniosek o przyznanie pomocy jest odrzucany, jeżeli Podmiot ubiegający się o przyznanie pomocy lub jego przedstawiciel uniemożliwia przeprowadzenie kontroli na miejscu, z wyjątkiem przypadków siły wyższej lub nadzwyczajnych okoliczności.\n"]
[null,"8.","Oświadczam, że znane mi są regulacje dotyczące prowadzenia oddzielnego systemu rachunkowości albo korzystania z odpowiedniego kodu rachunkowego, o których mowa w art. 66 ust. 1 lit. c pkt i rozporządzenia Parlamentu Europejskiego i Rady (UE) nr 1305/2013 z dnia 17 grudnia 2013 r. w sprawie wsparcia rozwoju obszarów wiejskich przez Europejski Fundusz Rolny na rzecz Rozwoju Obszarów Wiejskich (EFRROW) i uchylającego rozporządzenie Rady (WE) nr 1698/2005 (Dz. Urz. UE L 347 z 20.12.2013, str. 487, z późn. zm.), dla wszystkich transakcji związanych z realizacją operacji, w ramach prowadzonych ksiąg rachunkowych albo przez prowadzenie zestawienia faktur lub równoważnych dokumentów księgowych na formularzu udostępnionym przez ARiMR, gdy beneficjent nie jest zobowiązany do prowadzenia ksiąg rachunkowych na podstawie przepisów odrębnych."]
[null,"9.","Jestem świadomy, że zgodnie z art. 35 ust. 5 oraz ust. 6 rozporządzenia delegowanego Komisji (UE) nr 640/2014 z dnia 11 marca 2014 r. uzupełniającego  rozporządzenie  Parlamentu  Europejskiego i  Rady  (UE) nr  1306/2013 w  odniesieniu  do  zintegrowanego  systemu  zarządzania i  kontroli  oraz  warunków  odmowy lub  wycofania  płatności  oraz  do  kar  administracyjnych  mających  zastosowanie  do  płatności bezpośrednich, wsparcia rozwoju obszarów wiejskich oraz zasady wzajemnej zgodności (Dz. Urz. UE L 181 z 20.06.2014, str. 48) w przypadku ustalenia poważnej niezgodności/przedstawienia fałszywych dowodów w celu otrzymania wsparcia lub w wyniku zaniedbania niedostarczenia niezbędnych informacji, wsparcia odmawia się lub cofa się je w całości oraz że zostanę wykluczony z takiego samego środka lub rodzaju operacji w roku kalendarzowym, w którym stwierdzono niezgodność, oraz w kolejnym roku kalendarzowym."]
[null,"10.","Przyjmuję do wiadomości, iż Prezes Agencji poda do publicznej wiadomości, na stronie internetowej administrowanej przez Agencję, informację o kolejności przysługiwania pomocy, ustalonej przy zastosowaniu kryteriów oceny operacji. "]
[null,"11.","Przyjmuję do wiadomości, iż:"]
[null,null,"a)","zebrane dane osobowe będą przetwarzane przez Agencję Restrukturyzacji i Modernizacji Rolnictwa z siedzibą: \n00-175 Warszawa Al. Jana Pawła II 70, zgodnie z przepisami ustawy z dnia 29 sierpnia 1997 r. o ochronie danych osobowych (Dz.U. z 2015 r., poz. 2135 i 2281) w celu przyznania pomocy finansowej i płatności oraz działań kontrolnych i audytowych w ramach poddziałania „Wsparcie inwestycji w gospodarstwach rolnych” objętego Programem Rozwoju Obszarów Wiejskich na lata 2014–2020 na operacje typu „Modernizacja gospodarstw rolnych”;"]
[null,null,"b)","przysługuje mi, jako osobie fizycznej, prawo wglądu do moich danych osobowych oraz do ich poprawiania."]
[null,"12.","Przyjmuję do wiadomości, że dane beneficjenta mogą być przetwarzane przez organy audytowe i dochodzeniowe Unii Europejskiej i państw członkowskich dla zabezpieczenia interesów finansowych Unii."]
[null,"13.","Przyjmuję do wiadomości, że dane beneficjenta oraz kwota wypłaty pomocy z publicznych środków finansowych, w tym wypłacona kwota z tytułu udzielonej pomocy w ramach poddziałania „Wsparcie inwestycji w gospodarstwach rolnych” objętego Programem Rozwoju Obszarów Wiejskich na lata 2014–2020 na operacje typu „Modernizacja gospodarstw rolnych” będzie publikowana na stronie internetowej MRiRW."]
[]
[null," ",null,null,null,null,null,null,null,null,null,null,null,null,null,null,null,null,null,null,null,null," "]
[]
[null,null,"(miejscowość i data)",null,null,null,null,null,null,null,null,null,null,null,null,null,null,null,null,null,null,null,"(podpis podmiotu ubiegającego się o przyznanie pomocy/ osoby reprezentującej ten podmiot/ pełnomocnika tego podmiotu)"]

{"sheet":"Zał 1 Ośw. współpos. gosp","index":14,"n_rows":42,"n_cols":33,"rows_kept":42,"cut":false,"hidden":false,"merged":[[17,2,17,36],[37,24,37,36],[38,24,38,36],[40,2,40,36],[41,2,41,36],[28,2,28,35],[18,2,18,36],[19,2,20,36],[21,2,21,36],[43,1,43,19],[22,2,22,27],[23,2,23,36],[25,2,26,36],[30,2,32,16],[33,2,33,16],[33,24,34,36],[34,2,34,15],[24,10,24,30],[30,24,32,36],[9,2,9,17],[10,1,10,36],[11,2,12,36],[15,2,15,36],[16,2,16,36],[0,32,0,36],[1,1,1,28],[1,32,1,36],[2,32,2,36],[3,2,8,17],[3,33,3,35],[4,33,4,35]]}
[]
[null,"Załącznik Nr 1 do wniosku o przyznanie pomocy ",null,null,null,null,null,null,null,null,null,null,null,null,null,null,null,null,null,null,null,null,null,null,null,null,null,null,null,null,null,null,"W-1.1_4.1.3"]
[]
[]
[]
[]
[]
[]
[]
[null,null,"(Imię i Nazwisko, Adres, seria i numer dokumentu tożsamości,PESEL, NIP*/ Nazwa, Adres siedziby, NIP, REGON)"]
[]
[null,null,"Oświadczenie Współposiadacza gospodarstwa o wyrażeniu zgody na ubieganie się o przyznanie pomocy przez podmiot ubiegający się o przyznanie pomocy, w przypadku gdy operacja będzie realizowana w gospodarstwie stanowiącym przedmiot współposiadania"]
[]
[]
[]
[null,null,"Oświadczam, iż wyrażam zgodę na ubieganie się o przyznanie pomocy przez:"]
[]
[null,null,"(Imię i Nazwisko podmiotu ubiegającego się o przyznanie pomocy, Adres,seria i numer dokumentu tożsamości/ Nazwa podmiotu Adres siedziby, NIP, REGON)"]
[null,null,"w ramach poddziałania \"Wsparcie inwestycji w gospodarstwach rolnych\" PROW 2014-2020, typ operacji „Modernizacja gospodarstw rolnych\", celem realizacji operacji polegającej na:"]
[]
[]
[null,null,"(zakres operacji)"]
[null,null,"w gospodarstwie zlokalizowanym w:"]
[]
[null,null,null,null,null,null,null,null,null,null,"(adres gospodarstwa i nr działki/działek będących we współposiadaniu)"]
[null,null,"Jednocześnie oświadczam, że jestem świadomy, iż pomoc udzielona Współposiadaczowi gospodarstwa wpływa na zmniejszenie ogólnego limitu pomocy na jedno gospodarstwo i jednego beneficjenta."]
[]
[]
[null,null,"Przyjmuję do wiadomości, iż: \na) zebrane dane osobowe będą przetwarzane przez Agencję Restrukturyzacji i Modernizacji Rolnictwa z siedzibą: 00-175 Warszawa, Al. Jana Pawła II 70, zgodnie z przepisami ustawy z dnia 29 sierpnia 1997  r. o ochronie danych osobowych (Dz.U. z 2015 r., poz. 2135 i 2281) w celu przyznania pomocy finansowej i płatności oraz działań kontrolnych i audytowych w ramach poddziałania „Wsparcie inwestycji w gospodarstwach rolnych” objętego Programem Rozwoju Obszarów Wiejskich na lata 2014–2020 na operacje typu „Modernizacja gospodarstw rolnych”;\nb) przysługuje mi, jako osobie fizycznej, prawo wglądu do moich danych osobowych oraz do ich poprawiania"]
[]
[]
[]
[]
[null,null,"(miejscowość i data)",null,null,null,null,null,null,null,null,null,null,null,null,null,null,null,null,null,null,null,null,null,"(podpis Współposiadacza/ osoby reprezentującej Współposiadacza/ pełnomocnika Współposiadacza)"]
[]
[]
[]
[]
[null,null,null,null,null,null,null,null,null,null,null,null,null,null,null,null,null,null,null,null,null,null,null,null,"(podpis podmiotu ubiegającego się o przyznanie pomocy/ osoby reprezentującej ten podmiot/ pełnomocnika tego podmiotu)"]
[]
[null,null,"*  Obowiązek podawania numeru NIP nie dotyczy osób fizycznych objętych rejestrem PESEL, nieprowadzących działalności gospodarczej lub niebędących zarejestrowanymi podatnikami podatku od towarów i usług"]
[null,null,"** niepotrzebne skreślić"]

{"sheet":"Zał. 2 Oświad. właściciela","index":15,"n_rows":44,"n_cols":33,"rows_kept":44,"cut":false,"hidden":false,"merged":[[16,2,16,36],[17,2,17,36],[14,4,14,15],[14,16,14,36],[27,2,28,36],[18,26,18,35],[18,2,18,25],[14,2,14,3],[33,23,35,36],[29,2,30,36],[33,2,35,17],[20,2,20,36],[21,2,21,36],[23,2,23,36],[25,2,25,36],[26,2,26,36],[32,2,32,36],[0,32,0,36],[4,33,4,35],[9,26,10,36],[11,2,12,36],[1,32,1,36],[9,2,9,16],[2,32,3,36],[1,1,1,27],[5,33,5,35],[4,2,8,17],[36,23,37,36],[36,2,36,17],[45,1,45,19],[43,2,43,36],[40,23,40,35],[39,23,39,36],[42,2,42,36]]}
[]
[null,"Załącznik Nr 2 do wniosku o przyznanie pomocy ",null,null,null,null,null,null,null,null,null,null,null,null,null,null,null,null,null,null,null,null,null,null,null,null,null,null,null,null,null,null,"W-1.2_4.1.3"]
[]
[]
[]
[]
[]
[]
[]
[null,null,"(Imię i Nazwisko, Adres, seria i numer dokumentu tożsamości, PESEL, NIP*/ Nazwa, Adres siedziby, NIP, REGON)",null,null,null,null,null,null,null,null,null,null,null,null,null,null,null,"Oświadczenie"]
[]
[null,null,"Właściciela albo Współwłaściciela gospodarstwa albo jego części o wyrażeniu zgody na realizację operacji,  w przypadku gdy operacja będzie realizowana w gospodarstwie niestanowiącym własności podmiotu ubiegającego się o przyznanie pomocy albo stanowiącym współwłasność tego podmiotu i nie dotyczy wyłącznie nabycia rzeczy ruchomych, które nie wymagają instalacji"]
[]
[]
[null,null,"Będąc  ",null,"Właścicielem/ Współwłaścicielem **",null,null,null,null,null,null,null,null,null,null,null,"gospodarstwa albo jego części, zlokalizowanego w:"]
[]
[]
[null,null,"(adres gospodarstwa i nr działki/działek) "]
[null,null,"oświadczam, iż wyrażam zgodę na realizację przez:"]
[]
[]
[null,null,"(Imię i Nazwisko podmiotu ubiegającego się o przyznanie pomocy adres, seria i numer dokumentu tożsamości/ Nazwa tego podmiotu, Adres siedziby, NIP, REGON)"]
[]
[null,null,"operacji innej niż nabycie rzeczy ruchomej, która nie wymaga instalacji, polegającej na:"]
[]
[]
[null,null,"(zakres operacji)"]
[null,null,"Jednocześnie zobowiązuję się do umożliwienia wskazanemu wyżej podmiotowi ubiegającemu się o przyznanie pomocy realizacji wieloletnich zobowiązań związanych z operacją,"]
[]
[null,null,"Jednocześnie oświadczam, że jestem świadomy, iż pomoc udzielona Współwłaścicielowi gospodarstwa wpływa na zmniejszenie ogólnego limitu pomocy na jedno gospodarstwo i jednego beneficjenta."]
[]
[]
[null,null,"Przyjmuję do wiadomości, iż: \na) zebrane dane osobowe będą przetwarzane przez Agencję Restrukturyzacji i Modernizacji Rolnictwa z siedzibą: 00-175 Warszawa, Al. Jana Pawła II 70, zgodnie z przepisami ustawy z dnia 29 sierpnia 1997  r. o ochronie danych osobowych (Dz.U. z 2015 r., poz. 2135 i 2281) w celu przyznania pomocy finansowej i płatności oraz działań kontrolnych i audytowych w ramach poddziałania „Wsparcie inwestycji w gospodarstwach rolnych” objętego Programem Rozwoju Obszarów Wiejskich na lata 2014–2020 na operacje typu „Modernizacja gospodarstw rolnych”;\nb) przysługuje mi, jako osobie fizycznej, prawo wglądu do moich danych osobowych oraz do ich poprawiania.\n"]
[]
[]
[]
[null,null,"(miejscowość i data)",null,null,null,null,null,null,null,null,null,null,null,null,null,null,null,null,null,null,null,null,"(podpis Właściciela  albo Współwłaściciela gospodarstwa/ osoby reprezentującej Właściciela albo Współwłaściciela  gospodarstwa/ pełnomocnika Właściciela albo Współwłaściciela gospodarstwa)"]
[]
[]
[]
[null,null,null,null,null,null,null,null,null,null,null,null,null,null,null,null,null,null,null,null,null,null,null,"(podpis podmiotu ubiegającego się o przyznanie pomocy/ osoby reprezentującej ten podmiot/ pełnomocnika tego podmiotu)"]
[]
[null,null,"*  obowiązek podawania numeru NIP nie dotyczy osób fizycznych objętych rejestrem PESEL, nieprowadzących działalności gospodarczej lub niebędących zarejestrowanymi podatnikami podatku od towarów i usług"]
[null,null,"** niepotrzebne skreślić"]

{"sheet":"Zał 3 Ośw. współp. nier","index":16,"n_rows":39,"n_cols":33,"rows_kept":39,"cut":false,"hidden":false,"merged":[[38,2,38,36],[40,1,40,19],[31,2,31,16],[31,24,32,36],[32,2,32,15],[34,24,34,36],[35,24,35,36],[37,2,37,36],[21,10,21,30],[23,2,24,36],[28,2,30,16],[28,24,30,36],[20,2,20,36],[26,2,26,36],[18,2,18,36],[14,2,14,36],[15,2,15,36],[16,2,17,36],[19,2,19,27],[9,2,9,17],[10,2,10,36],[11,2,11,36],[12,2,12,36],[13,2,13,36],[0,32,0,36],[1,1,1,28],[1,32,1,36],[2,32,2,36],[3,2,8,17],[3,33,3,35],[4,33,4,35]]}
[]
[null,"Załącznik Nr 3 do wniosku o przyznanie pomocy ",null,null,null,null,null,null,null,null,null,null,null,null,null,null,null,null,null,null,null,null,null,null,null,null,null,null,null,null,null,null,"W-1.3_4.1.3"]
[]
[]
[]
[]
[]
[]
[]
[null,null,"(Imię i Nazwisko, Adres, seria i numer dokumentu tożsamości, PESEL, NIP*/ Nazwa, Adres siedziby, NIP, REGON)"]
[null,null,"Oświadczenie Współposiadacza nieruchomości wchodzącej w skład gospodarstwa o wyrażeniu zgody na ubieganie się o przyznanie pomocy przez podmiot ubiegający się o przyznanie pomocy, w przypadku gdy operacja będzie realizowana w gospodarstwie, w skład którego wchodzi nieruchomość będąca przedmiotem współposiadania"]
[]
[null,null,"Oświadczam, iż wyrażam zgodę na ubieganie się o przyznanie pomocy przez:"]
[]
[null,null,"(Imię i Nazwisko podmiotu ubiegającego się o przyznanie pomocy, Adres,seria i numer dokumentu tożsamości/ Nazwa tego podmiotu, Adres siedziby, NIP, REGON)"]
[null,null,"na operacje typu „Modernizacja gospodarstw rolnych\" w ramach poddziałania \"Wsparcie inwestycji w gospodarstwach rolnych\" PROW 2014-2020, celem realizacji operacji polegającej na:"]
[]
[]
[null,null,"(zakres operacji)"]
[null,null,"w gospodarstwie, w skład którego wchodzi/ą nieruchomości:"]
[]
[null,null,null,null,null,null,null,null,null,null,"(nr działki/działek będących we współposiadaniu/ rodzaj nieruchomości)"]
[]
[null,null,"Jednocześnie oświadczam, że jestem świadomy, iż pomoc udzielona Współposiadaczowi nieruchomości może mieć wpływ na zmniejszenie ogólnego limitu pomocy na jedno gospodarstwo i jednego beneficjenta."]
[]
[]
[null,null,"Przyjmuję do wiadomości, iż: \na) zebrane dane osobowe będą przetwarzane przez Agencję Restrukturyzacji i Modernizacji Rolnictwa z siedzibą: 00-175 Warszawa, Al. Jana Pawła II 70, zgodnie z przepisami ustawy z dnia 29 sierpnia 1997  r. o ochronie danych osobowych (Dz.U. z 2015 r., poz. 2135 i 2281) w celu przyznania pomocy finansowej i płatności oraz działań kontrolnych i audytowych w ramach poddziałania „Wsparcie inwestycji w gospodarstwach rolnych” objętego Programem Rozwoju Obszarów Wiejskich na lata 2014–2020 na operacje typu „Modernizacja gospodarstw rolnych”;\nb) przysługuje mi, jako osobie fizycznej, prawo wglądu do moich danych osobowych oraz do ich poprawiania."]
[]
[]
[]
[]
[null,null,"(miejscowość i data)",null,null,null,null,null,null,null,null,null,null,null,null,null,null,null,null,null,null,null,null,null,"(podpis Współposiadacza/ osoby reprezentującej Współposiadacza/ pełnomocnika Współposiadacza)"]
[]
[]
[]
[null,null,null,null,null,null,null,null,null,null,null,null,null,null,null,null,null,null,null,null,null,null,null,null,"(podpis podmiotu ubiegającego się o przyznanie pomocy/ osoby reprezentującej ten podmiot/ pełnomocnika  tego podmiotu)"]
[]
[null,null,"*  obowiązek podawania numeru NIP nie dotyczy osób fizycznych objętych rejestrem PESEL, nieprowadzących działalności gospodarczej lub niebędących zarejestrowanymi podatnikami podatku od towarów i usług"]
[null,null,"** niepotrzebne skreślić"]

{"sheet":"Zał. 4 Opis Zadań","index":17,"n_rows":28,"n_cols":11,"rows_kept":28,"cut":false,"hidden":false,"merged":[[22,4,22,6],[18,4,18,6],[21,4,21,6],[20,4,20,6],[19,4,19,6],[12,4,12,6],[11,4,11,6],[10,4,10,6],[9,4,9,6],[6,4,8,6],[17,4,17,6],[16,4,16,6],[15,4,15,6],[14,4,14,6],[13,4,13,6],[10,7,10,9],[19,7,19,9],[18,7,18,9],[17,7,17,9],[11,7,11,9],[23,7,23,9],[14,7,14,9],[13,7,13,9],[12,7,12,9],[22,7,22,9],[21,7,21,9],[20,7,20,9],[1,2,1,5],[3,2,4,10],[6,2,8,2],[6,3,8,3],[30,3,30,4],[30,5,30,6],[25,3,26,4],[25,8,26,10],[27,3,27,4],[27,8,28,10],[6,7,8,9],[6,10,8,10],[16,7,16,9],[15,7,15,9],[9,7,9,9],[29,2,29,10]]}
[]
[null,null,"Załącznik Nr 4 do wniosku o przyznanie pomocy ",null,null,null,null,null,null,null,"W-1.4_4.1.3"]
[null,null,null," ","                                "]
[null,null,"Opis zadań wymienionych w zestawieniu rzeczowo-finansowym operacji"]
[]
[]
[null,null,"Lp.","Pozycja zestawienia rzeczowo-finansowego operacji","Parametr(y) charakteryzujący(e) przedmiot (przedział mocy, wydajność, szerokość robocza, wyposażenie itp.)",null,null,"Żródło ceny i \nMarka, typ lub rodzaj",null,null,"Wartość zadania\nw  zł netto"]
[]
[]
[null,null,1,2,3,null,null,4,null,null,5]
[null,null,"1."]
[null,null,"2."]
[null,null,"3."]
[null,null,"4."]
[null,null,"5."]
[null,null,"6."]
[null,null,"7."]
[null,null,"8."]
[null,null,"9."]
[null,null,"10."]
[null,null,"11."]
[null,null,"12."]
[null,null,"..."]
[null,null,null,null,null,null,null,"RAZEM:"]
[]
[]
[]
[null,null,null,"miejscowość i data",null,null,null,null,"(podpis podmiotu ubiegającego się o przyznanie pomocy/ osoby reprezentującej ten podmiot/ pełnomocnika tego podmiotu)"]

{"sheet":"zał. 5 następca_nabywca","index":18,"n_rows":60,"n_cols":43,"rows_kept":60,"cut":false,"hidden":false,"merged":[[36,2,37,2],[33,2,34,2],[6,38,7,38],[6,28,7,28],[6,29,7,29],[6,30,7,30],[6,34,7,34],[6,35,7,35],[6,37,7,37],[21,3,21,38],[25,27,27,32],[25,33,27,38],[23,3,23,38],[25,2,27,20],[25,21,27,26],[28,21,28,26],[3,2,3,38],[6,2,7,12],[6,13,7,14],[6,15,7,15],[6,16,7,16],[6,17,7,17],[6,18,7,18],[6,19,7,19],[6,20,7,20],[6,21,7,21],[6,22,7,22],[6,23,7,23],[6,24,7,24],[6,25,7,25],[6,26,7,26],[6,27,7,27],[28,33,28,38],[29,21,29,26],[29,27,29,32],[29,33,29,38],[30,21,30,26],[30,27,30,32],[30,33,30,38],[39,33,39,38],[44,4,45,31],[44,33,44,38],[39,3,40,31],[32,30,32,37],[31,27,31,32],[33,3,34,31],[33,33,33,38],[36,3,37,31],[36,33,36,38],[31,33,31,38],[31,3,31,20],[31,21,31,26],[59,2,59,15],[59,22,60,39],[1,32,1,36],[15,33,15,38],[18,33,18,38],[57,2,58,16],[57,22,58,39],[48,4,49,31],[43,4,43,38],[48,33,48,38],[51,4,52,31],[51,33,51,38],[54,4,54,31],[54,33,54,38],[46,4,46,31],[46,33,46,38],[9,2,11,2],[9,3,9,21],[9,22,9,29],[9,30,9,38],[10,3,11,21],[10,22,11,29],[10,30,11,38],[18,3,19,31],[28,3,28,20],[29,3,29,20],[30,3,30,20],[28,27,28,32],[6,36,7,36],[6,33,7,33],[6,32,7,32],[6,31,7,31],[15,3,16,31]]}
[]
[null,null,"Załącznik nr 5 do wniosku o przyznanie pomocy",null,null,null,null,null,null,null,null,null,null,null,null,null,null,null,null,null,null,null,null,null,null,null,null,null,null,null,null,null,"W-1.5_4.1.3"]
[]
[null,null,"Dodatkowe dane dotyczące wniosku następcy prawnego beneficjenta lub nabywcy "]
[]
[]
[null,null,"1. Numer umowy beneficjenta ",null,null,null,null,null,null,null,null,null,null,null,null,null,null,null," "]
[]
[]
[null,null,"1.1.","Nazwisko/Nazwa",null,null,null,null,null,null,null,null,null,null,null,null,null,null,null,null,null,null,"Pierwsze imię",null,null,null,null,null,null,null,"Drugie imię"]
[]
[]
[]
[]
[]
[null,null,"2.","Data zaistnienia następstwa prawnego albo data nabycia gospodarstwa beneficjenta lub części tego gospodarstwa",null,null,null,null,null,null,null,null,null,null,null,null,null,null,null,null,null,null,null,null,null,null,null,null,null,null,null,null,null,null,null,null,null,null,null,null,null,null,"(wybierz z listy)"]
[null,null,null,null,null,null,null,null,null,null,null,null,null,null,null,null,null,null,null,null,null,null,null,null,null,null,null,null,null,null,null,null,null,null,null,null,null,null,null,null,null,null,"nie dotyczy"]
[null,null,null,null,null,null,null,null,null,null,null,null,null,null,null,null,null,null,null,null,null,null,null,null,null,null,null,null,null,null,null,null,null,null,null,null,null,null,null,null,null,null,"TAK"]
[null,null,"3.","Beneficjent zgłosił uprzednio Agencji Restrukturyzacji i Modernizacji Rolnictwa zamiar zbycia gospodarstwa albo jego części",null,null,null,null,null,null,null,null,null,null,null,null,null,null,null,null,null,null,null,null,null,null,null,null,null,null,null,null,null,"(wybierz z listy)",null,null,null,null,null,null,null,null,"NIE"]
[]
[]
[null,null,"4.","Pomoc uzyskana przez beneficjenta i następcę prawnego beneficjenta lub nabywcę"]
[]
[null,null,"4.1.","Pomoc uzyskana uprzednio (przed zaistnieniem następstwa prawnego lub zbyciem przedsiębiorstwa) przez beneficjenta w zakresie poddziałania 4.1.3. \"Wsparcie inwestycji w gospodarstwach rolnych\", typ operacji „Modernizacja gospodarstw rolnych\" oraz poddziałania \"Restrukturyzacja małych gospodarstw\" w ramach PROW na lata 2014-2020 (kwoty pomocy wypłacone lub określone w umowie przyznania pomocy):"]
[]
[null,null,"Numer umowy/ nr decyzji",null,null,null,null,null,null,null,null,null,null,null,null,null,null,null,null,null,null,"Kwota przyznana ",null,null,null,null,null,"Kwota dotychczas wypłacona ",null,null,null,null,null,"Kwota pozostała do wypłaty"]
[]
[]
[null,null,"4.1.1."]
[null,null,"4.1.2."]
[null,null,"4.1.3."]
[null,null,null,"4.1.4. Suma pkt  4.1.1. - 4.1.3.:"]
[]
[null,null,"4.2.","Suma kwot pomocy wypłaconej w ramach operacji zrealizowanych przez beneficjenta i jego następcę prawnego/nabywcę i kwot pomocy przyznanej w ramach operacji niezakończonych przez beneficjenta i jego następcę prawnego/ nabywcę (w zł) przed zaistnieniem następstwa prawnego"]
[]
[]
[null,null,"4.3.","Kwota niewypłaconej części pomocy beneficjentowi w ramach umowy o przejęcie zobowiązań której ubiega się następca prawny lub nabywca"]
[]
[]
[null,null,"4.4.","Kwota do wykorzystania przez następcę prawnego lub nabycę na operację objętą wnioskiem, z uwzględnieniem limitu pomocy "]
[]
[]
[]
[null,null,"5. ",null,"Wysokość zaliczki"]
[null,null,"5.1.",null,"Beneficjentowi przyznano zaliczkę na realizację operacji określonej w umowie o przyznaniu pomocy",null,null,null,null,null,null,null,null,null,null,null,null,null,null,null,null,null,null,null,null,null,null,null,null,null,null,null,null,"(wybierz z listy)",null,null,null,null,null,null,null,null,"(wybierz z listy)"]
[null,null,null,null,null,null,null,null,null,null,null,null,null,null,null,null,null,null,null,null,null,null,null,null,null,null,null,null,null,null,null,null,null,null,null,null,null,null,null,null,null,null,"TAK"]
[null,null,"5.2.",null,"Kwota wypłaconej beneficjentowi zaliczki na realizację operacji (w zł)",null,null,null,null,null,null,null,null,null,null,null,null,null,null,null,null,null,null,null,null,null,null,null,null,null,null,null,null,null,null,null,null,null,null,null,null,null,"NIE"]
[]
[null,null,"5.3.",null,"Wypłacona zaliczka, przed zaistnieniem następstwa prawnego/ nabyciem gospodarstwa została w całości rozliczona",null,null,null,null,null,null,null,null,null,null,null,null,null,null,null,null,null,null,null,null,null,null,null,null,null,null,null,null,"(wybierz z listy)"]
[]
[]
[null,null,"5.4.",null,"Kwota zaliczki pozostałej do rozliczenia w ramach kontynuacji operacji przez następcę prawnego/ nabywcę:"]
[]
[]
[null,null,"5.5.",null,"Wnioskowana przez następcę prawnego / nabywcę kwota zaliczki"]
[]
[]
[]
[]
[null,null,"(miejscowość i data)",null,null,null,null,null,null,null,null,null,null,null,null,null,null,null,null,null,null,null,"(podpis następcy prawnego lub nabywcy/ osoby reprezentującej następcę prawnego lub nabywcę/ jego pełnomocnika"]

{"sheet":"Zał 6 Ośw. następcy prawneg","index":19,"n_rows":40,"n_cols":34,"rows_kept":40,"cut":false,"hidden":false,"merged":[[42,2,42,20],[25,3,25,37],[26,3,26,37],[27,3,27,37],[31,3,33,17],[31,25,33,37],[34,3,34,16],[34,25,34,37],[37,25,37,37],[39,2,39,37],[40,3,40,37],[23,3,23,33],[21,3,21,37],[0,33,0,37],[1,2,1,18],[1,33,1,37],[2,2,2,18],[2,33,3,37],[4,3,9,18],[4,34,4,36],[5,34,5,36],[10,3,10,18],[10,27,12,37],[13,4,14,37],[17,3,17,37],[19,3,20,37]]}
[]
[null,null,"Załącznik Nr 6 do wniosku o przyznanie pomocy",null,null,null,null,null,null,null,null,null,null,null,null,null,null,null,null,null,null,null,null,null,null,null,null,null,null,null,null,null,null,"W-1.6_4.1.3"]
[]
[]
[]
[]
[]
[]
[]
[]
[null,null,null," Imię i nazwisko, adres, seria i numer dokumentu tożsamości, PESEL, NIP* / Nazwa, adres siedziby, NIP, REGON     "]
[]
[]
[null,null,null,null,"Oświadczenie następcy prawnego o jego wstąpieniu w prawa i obowiązki beneficjenta wynikające z umowy o przyznaniu pomocy "]
[]
[]
[]
[null,null,null,"Oświadczam, że wstąpiłem w prawa i obowiązki beneficjenta wynikające z umowy o przyznaniu pomocy nr: "]
[]
[]
[]
[null,null,null,"(numer umowy o przyznaniu pomocy zawartej przez Agencję z beneficjentem)"]
[]
[null,null,null,"zawartej pomiędzy Agencją Restrukturyzacji i Modernizacją Rolnictwa, a"]
[]
[]
[null,null,null,"(Imię i Nazwisko beneficjenta, Adres,seria i numer dokumentu tożsamości, NIP* lub                                                                                                                                        Nazwa beneficjenta, Adres siedziby, NIP, REGON)"]
[]
[]
[]
[]
[]
[]
[]
[null,null,null,"(miejscowość i data)",null,null,null,null,null,null,null,null,null,null,null,null,null,null,null,null,null,null,null,null,null,"(podpis następcy prawnego beneficjenta/ osoby reprezentującej następcę/ jego pełnomocnika)"]
[]
[]
[]
[]
[null,null,"*Obowiązek podawania numeru NIP nie dotyczy osób fizycznych objętych rejestrem PESEL, nieprowadzących działalności gospodarczej lub niebędących zarejestrowanymi podatnikami podatku od towarów i usług"]

{"sheet":"Zał 7 Zgoda osoby WUM","index":20,"n_rows":43,"n_cols":34,"rows_kept":43,"cut":false,"hidden":false,"merged":[[41,3,41,37],[42,3,42,37],[44,2,44,20],[33,3,35,17],[33,25,35,37],[36,3,36,17],[36,25,37,37],[37,3,37,16],[40,3,40,27],[30,11,30,31],[16,2,16,37],[17,2,17,37],[18,2,18,37],[19,2,19,37],[20,2,21,37],[22,2,22,37],[24,2,24,37],[25,2,26,37],[27,2,27,37],[28,2,28,37],[29,2,29,37],[15,2,15,37],[0,33,0,37],[1,2,1,29],[1,33,1,37],[2,33,2,37],[3,3,8,18],[3,34,3,36],[4,34,4,36],[9,3,9,18],[10,2,10,37],[11,2,12,37],[13,3,13,36],[14,2,14,37]]}
[]
[null,null,"Załącznik Nr 7 do wniosku o przyznanie pomocy",null,null,null,null,null,null,null,null,null,null,null,null,null,null,null,null,null,null,null,null,null,null,null,null,null,null,null,null,null,null,"W-1.7_4.1.3"]
[]
[]
[]
[]
[]
[]
[]
[null,null,null,"(Imię i Nazwisko, Adres, seria i numer dokumentu tożsamości, PESEL, NIP*/ Nazwa, Adres siedziby, NIP, REGON)"]
[]
[null,null,"Oświadczenie osoby wspólnie wnioskującej o wyrażeniu zgody na przyznanie pomocy następcy prawnemu jednego z beneficjentów albo nabywcy gospodarstwa albo jego części ** "]
[]
[]
[null,null,"Zgodnie z przepisami § 33 ust. 3 rozporządzenia Ministra Rolnictwa i Rozwoju Wsi z dnia 21 sierpnia 2015 r. w sprawie szczegółowych warunków i trybu przyznawania oraz wypłaty pomocy finansowej na operacje typu „Modernizacja gospodarstw rolnych” w ramach poddziałania „Wsparcie inwestycji w gospodarstwach rolnych” objętego Programem Rozwoju Obszarów Wiejskich na lata 2014–2020 (Dz. U. poz. 1371)"]
[null,null,"oświadczam, iż wyrażam zgodę na przyznanie pomocy, w tym kontynuację realizacji operacji przez:"]
[]
[null,null,"(Imię i Nazwisko następcy prawnego beneficjenta/ nabywcy, Adres,seria i numer dokumentu tożsamości/ Nazwa następcy prawnego beneficjenta/ nabywcy, Adres siedziby, NIP*/ REGON)"]
[]
[null,null,"jako następcy prawnego beneficjenta/ nabywcy:"]
[]
[]
[null,null,"(Imię i Nazwisko beneficjenta, Adres, seria i numer dokumentu tożsamości/ Nazwa beneficjenta, Adres siedziby, NIP*, REGON)"]
[]
[null,null,"w ramach wspólnego ubiegania się o pomoc z poddziałania \"Wsparcie inwestycji w gospodarstwach rolnych\" PROW 2014-2020, typ operacji „Modernizacja gospodarstw rolnych\", celem realizacji operacji polegającej na:"]
[]
[]
[null,null,"(zakres operacji)"]
[null,null,"w gospodarstwie zlokalizowanym w:"]
[]
[null,null,null,null,null,null,null,null,null,null,null,"(adres gospodarstwa)"]
[]
[]
[]
[]
[]
[null,null,null,"(miejscowość i data)",null,null,null,null,null,null,null,null,null,null,null,null,null,null,null,null,null,null,null,null,null,"(podpis osoby wspólnie wnioskującej/ pełnomocnika osoby wspólnie wnioskujacej)"]
[]
[]
[]
[]
[null,null,null,"*  Obowiązek podawania numeru NIP nie dotyczy osób fizycznych objętych rejestrem PESEL, nieprowadzących działalności gospodarczej lub niebędących zarejestrowanymi podatnikami podatku od towarów i usług"]
[null,null,null,"** dotyczy w przypadku wspólnego ubiegania się o pomoc"]